Workbook

Sheet Start Here
B2: Welcome to the Australian Coastal Priority Recreational Infrastructure Climate Change Tool
B4: NB: If you see an error message when opening this document for the first time please follow these steps:
C5: 1. Disable protected view
C6: 2. Make this a trusted document
B8: The user guide for this tool as well as additional reference documentation is linked below. Please read through the guide before using this tool.
B9: This tool has been developed to directly support the guidelines published by the National Committee on Coastal and Ocean Engineering (NCCOE) to
B10: assist coastal managers and decision makers in adapting to a changing environment.
B11: If you have not yet read the three guidelines it is highly recommended that you do so before using this tool.
C12: Guidelines for Responding to the Effects of Climate Change in Coastal and Ocean Engineering
C13: Engineering Guidelines for Working with the Australian Coast in an Ecologically Sustainable Way
C14: Climate Change Adaptation Guidelines in Coastal Management and Planning
B16: The Goal
B18: This tool has been designed to help asset managers assess the benefit of their coastal recreational assets, vulnerabilities to climate change, and options for future adaptation
B19: The goals of this tool are to:
C20: ="- Provide Council with the means to simply determine the relative strengths and weaknesses of their coastal recreational assets" -> - Provide Council with the means to simply determine the relative strengths and weaknesses of their coastal recreational assets
C21: ="- Assess assets' climate change adaptation options and management strategies" -> - Assess assets' climate change adaptation options and management strategies
C22: ="- Provide business case support for additional works/development" -> - Provide business case support for additional works/development
C23: ="- Allow for quick, rational prioritisation of funding allocation" -> - Allow for quick, rational prioritisation of funding allocation
C24: ="- Empower Council to seek further information and understanding of their coastal recreational assets" -> - Empower Council to seek further information and understanding of their coastal recreational assets
B26: The Tool
B28: The tool was designed to be used from the office without additional site visits necessarily being needed.
B29: This tool requires user input to function and uses colour formatting to indicate fields where input is necessary:
C31: Green fields are required inputs from the user
C32: Blue fields are optional inputs from the user
C33: Gray fields do not require input but provide guidance from the tool
C35: Fields with a purple border have options available from a dropdown. These can be either required or optional.
B37: The general steps for completing your asset assessment using this tool are as follows:
C38: 1. Read through and familiarise yourself with the three guidelines provided by the NCCOE
C39: 2. Go to the 'Council Data' sheet in this workbook and update any missing or incorrect information about your LGA.
C40: 3. Choose a coastal recreational asset which will act as training for the process
C41: 4. Begin by entering the basic details in the 'New Asset' worksheet and clicking 'Create Asset'.
C42: 5. Work through the asset page, collecting and entering information as necessary.
C43: 6. Consult with colleagues or the supporting literature if unsure of any process and familiarise yourself with the inputs and outputs of the process
C44: 7. Once the initial asset is complete, additional assets may be imported and the process repeated.
C45: 8. Complete an assessment for all coastal recreational assets in your LGA which may be at risk from climate change.
B47: Definitions
C49: Coastal Recreational Asset | D49: In the context of this tool a coastal recreational asset can be any of the following: Beach - A sandy stretch of coastline which may or may not have been modified from its natural alignment Boat Ramp - A sloped concrete (or packed earth) accessway which allows the loading and unloading of vessels from the water and whose toe is always submerged. Jetty - A fixed or floating structure which protrudes perpendicularly into the water and is used for access to water vessels. Wharf - A fixed or floating structure which lies parallel to the shoreline and is used for access to water vessels. Park - An area of land which has been modified by human infrastructure for the primary purpose of recreation. Pathway - A stretch of concrete which is used for access between two or more locations. Promenade - A stretch of concrete which lies atop a coastal defence structure (i.e. seawall or revetment) and is used for access between two or more locations. Pool - An ocean pool which lies within, or immediately adjacent to, the intertidal zone of a beach or piece of coastline.
C50: Asset condition | D50: Taken from the Integrated Planning and Reporting Manual for local government in NSW, 2013:
C51: Design Life | D51: The planned life of an asset after which time renewal and/or reconstruction will be required to maintain its serviceability and function. See Section 6.3 of the Climate Change Adaptation Guidelines.
C52: Resilience | D52: The sensitivity of this asset to the effects of climate change. This is a measure of the vulnerability of an asset to extreme conditions under which it could be damaged or become unserviceable. For assets such as boat ramps and rock pools which are damaged over time, this is a measure of the serviceability of the asset.
C53: Short-term | D53: 10-year planning horizon
C54: Medium-term | D54: 20-year planning horizon
C55: Long-term | D55: 50-year planning horizon
C56: Adaptation | D56: Adaptation is the process of modifying an asset to cope with added risk due to climate change. This adaptation includes physical protection or modification of the asset, changes to its usage patterns, modification of its useage purpose, or abandonment of the site. In the context of this tool, adaptation planning accounts only for changes in sea-level due to melting of polar ice caps due to climate change, and not any of the other multidudinous effects of climate change. See Table 4 in Guidelines for Responding to the Effects of Climate Change in Coastal and Ocean Engineering for more information.

Sheet Council Data
B3: To begin please select which LGA you are in with the dropdown
B5: Bayside Council
B7: The following demographic, economic, land and tourism statistics have been collected for your LGA.
B8: These data are used by the tool to make projections about the future value of your recreational assets and make recommendations on future actions.
B9: All data has been collected from the following sources:
B10: Bureau of Statistics >> | C10: .id Consulting >> | E10: NSW Valuer General >> | G10: Destination NSW >>
B12: The values presented below are all editable so that you may change any data you believe are incorrect or that do not represent the best available information.
B13: Additionally there are fields afforded for council specific values which are not publicly available to be included to further increase the confidence of results from this tool
B15: Population
F27: Current:
C28: 2006 | D28: 2011 | E28: 2016 | F28: =YEAR(TODAY()) -> 2019 | G28: 2021 | H28: 2026 | I28: 2036 | J28: 2070
B29: Population trends: | C29: =IFERROR(INDEX(Councils[popA],metaRow)+INDEX(Councils[popB],metaRow)*C28+INDEX(Councils[popC],metaRow)*C28^2+INDEX(Councils[popD],metaRow)*C28^3,"") -> 131663.3224 | D29: =IFERROR(INDEX(Councils[popA],metaRow)+INDEX(Councils[popB],metaRow)*D28+INDEX(Councils[popC],metaRow)*D28^2+INDEX(Councils[popD],metaRow)*D28^3,"") -> 147790.6164 | E29: =IFERROR(INDEX(Councils[popA],metaRow)+INDEX(Councils[popB],metaRow)*E28+INDEX(Councils[popC],metaRow)*E28^2+INDEX(Councils[popD],metaRow)*E28^3,"") -> 162907.6304 | F29: 177014.3644 | G29: =IFERROR(INDEX(Councils[popA],metaRow)+INDEX(Councils[popB],metaRow)*G28+INDEX(Councils[popC],metaRow)*G28^2+INDEX(Councils[popD],metaRow)*G28^3,"") -> 177014.3644 | H29: =IFERROR(INDEX(Councils[popA],metaRow)+INDEX(Councils[popB],metaRow)*H28+INDEX(Councils[popC],metaRow)*H28^2+INDEX(Councils[popD],metaRow)*H28^3,"") -> 190110.8184 | I29: =IFERROR(INDEX(Councils[popA],metaRow)+INDEX(Councils[popB],metaRow)*I28+INDEX(Councils[popC],metaRow)*I28^2+INDEX(Councils[popD],metaRow)*I28^3,"") -> 213272.8864 | J29: =IFERROR(INDEX(Councils[popA],metaRow)+INDEX(Councils[popB],metaRow)*J28+INDEX(Councils[popC],metaRow)*J28^2+INDEX(Councils[popD],metaRow)*J28^3,"") -> 261796.34
B31: LGA land area: | C31: =IFERROR(INDEX(Councils[Area],metaRow),"") -> 4993 | D31: ha
B32: Population density: | C32: =IFERROR(F29/C31,"") -> 35.45250639 | D32: people/ha
B35: Mean Weekly Household Income
B36: (* trends are based on 1995-2016 NSW state trends and may not be representative of your LGA - adjust accordingly)
I48: =IFERROR(IF(INDEX(Councils[incA],metaRow)=0," - No trend data available",""),"") -> 
F49: Current:
C50: 2006 | D50: 2011 | E50: 2016 | F50: =YEAR(TODAY()) -> 2019 | G50: 2021 | H50: 2026 | I50: 2036 | J50: 2070
B51: Income trends: | C51: =IFERROR(INDEX(Councils[incA],metaRow)+INDEX(Councils[incB],metaRow)*C50+INDEX(Councils[incC],metaRow)*C50^2,"") -> 1096.2911 | D51: =IFERROR(INDEX(Councils[incA],metaRow)+INDEX(Councils[incB],metaRow)*D50+INDEX(Councils[incC],metaRow)*D50^2,"") -> 1328.45035 | E51: =IFERROR(INDEX(Councils[incA],metaRow)+INDEX(Councils[incB],metaRow)*E50+INDEX(Councils[incC],metaRow)*E50^2,"") -> 1560.6096 | F51: 1653.4733 | G51: =IFERROR(INDEX(Councils[incA],metaRow)+INDEX(Councils[incB],metaRow)*G50+INDEX(Councils[incC],metaRow)*G50^2,"") -> 1792.76885 | H51: =IFERROR(INDEX(Councils[incA],metaRow)+INDEX(Councils[incB],metaRow)*H50+INDEX(Councils[incC],metaRow)*H50^2,"") -> 2024.9281 | I51: =IFERROR(INDEX(Councils[incA],metaRow)+INDEX(Councils[incB],metaRow)*I50+INDEX(Councils[incC],metaRow)*I50^2,"") -> 2489.2466 | J51: =IFERROR(INDEX(Councils[incA],metaRow)+INDEX(Councils[incB],metaRow)*J50+INDEX(Councils[incC],metaRow)*J50^2,"") -> 4067.9295
B54: Gross Regional Profit
I66: =IFERROR(IF(INDEX(Councils[grpA],metaRow)=0," - No trend data available",""),"") -> 
F67: Current:
C68: 2006 | D68: 2011 | E68: 2016 | F68: =YEAR(TODAY()) -> 2019 | G68: 2021 | H68: 2026 | I68: 2036 | J68: 2070
B69: GRP trends: | C69: =IFERROR(INDEX(Councils[grpA],metaRow)+INDEX(Councils[grpB],metaRow)*C68+INDEX(Councils[grpC],metaRow)*C68^2,"") -> 1.031879045e+10 | D69: =IFERROR(INDEX(Councils[grpA],metaRow)+INDEX(Councils[grpB],metaRow)*D68+INDEX(Councils[grpC],metaRow)*D68^2,"") -> 1.188532721e+10 | E69: =IFERROR(INDEX(Councils[grpA],metaRow)+INDEX(Councils[grpB],metaRow)*E68+INDEX(Councils[grpC],metaRow)*E68^2,"") -> 1.450437623e+10 | F69: 1.584669927e+10 | G69: =IFERROR(INDEX(Councils[grpA],metaRow)+INDEX(Councils[grpB],metaRow)*G68+INDEX(Councils[grpC],metaRow)*G68^2,"") -> 1.817593751e+10 | H69: =IFERROR(INDEX(Councils[grpA],metaRow)+INDEX(Councils[grpB],metaRow)*H68+INDEX(Councils[grpC],metaRow)*H68^2,"") -> 2.290001103e+10 | I69: =IFERROR(INDEX(Councils[grpA],metaRow)+INDEX(Councils[grpB],metaRow)*I68+INDEX(Councils[grpC],metaRow)*I68^2,"") -> 3.550569486e+10 | J69: =IFERROR(INDEX(Councils[grpA],metaRow)+INDEX(Councils[grpB],metaRow)*J68+INDEX(Councils[grpC],metaRow)*J68^2,"") -> 1.098561865e+11
B71: Tourism
I83: =IFERROR(IF(INDEX(Councils[tourCurrent],metaRow)=0," - No tourism data available for Sydney LGAs",""),"") -> - No tourism data available for Sydney LGAs
F84: Current:
C85: 2009 | D85: 2011 | E85: 2016 | F85: =YEAR(TODAY()) -> 2019 | G85: 2021 | H85: 2026 | I85: 2036 | J85: 2070
B86: Tourism trends: | C86: =IFERROR(INDEX(Councils[tourA],metaRow)+INDEX(Councils[tourB],metaRow)*C85+INDEX(Councils[tourC],metaRow)*C85^2,"") -> 0 | D86: =IFERROR(INDEX(Councils[tourA],metaRow)+INDEX(Councils[tourB],metaRow)*D85+INDEX(Councils[tourC],metaRow)*D85^2,"") -> 0 | E86: =IFERROR(INDEX(Councils[tourA],metaRow)+INDEX(Councils[tourB],metaRow)*E85+INDEX(Councils[tourC],metaRow)*E85^2,"") -> 0 | F86: 0 | G86: =IFERROR(INDEX(Councils[tourA],metaRow)+INDEX(Councils[tourB],metaRow)*G85+INDEX(Councils[tourC],metaRow)*G85^2,"") -> 0 | H86: =IFERROR(INDEX(Councils[tourA],metaRow)+INDEX(Councils[tourB],metaRow)*H85+INDEX(Councils[tourC],metaRow)*H85^2,"") -> 0 | I86: =IFERROR(INDEX(Councils[tourA],metaRow)+INDEX(Councils[tourB],metaRow)*I85+INDEX(Councils[tourC],metaRow)*I85^2,"") -> 0 | J86: =IFERROR(INDEX(Councils[tourA],metaRow)+INDEX(Councils[tourB],metaRow)*J85+INDEX(Councils[tourC],metaRow)*J85^2,"") -> 0
B87: (total visitors per annum)
B88: Tourism spend: | C88: =INDEX(Councils[tourSpend],metaRow) -> 0
B89: ($/visitor)
B91: Land Value
B93: Total LGA land value: | C93: =IFERROR(INDEX(Councils[landTotVal],metaRow),"") -> 46211292023
B94: Total residential land value: | C94: =IFERROR(INDEX(Councils[landResVal],metaRow),"") -> 38555908500
B95: Total recreational land value:
B96: Total number of properties: | C96: =IFERROR(INDEX(Councils[landTotProp],metaRow),"") -> 32864
B97: Mean land value: | C97: =IFERROR(C93/C96,"") -> 1406137.172
B99: Council Specifics
F100: Current:
C101: 2006 | D101: 2011 | E101: 2016 | F101: =YEAR(TODAY()) -> 2019 | G101: 2021 | H101: 2026 | I101: 2036 | J101: 2070
B102: Council revenue trends:
B103: (total revenue per annum)
B104: Number of recreational assets:
B105: Current financial year recreational asset budget:
B107: Local height datum AHD offset: | D107: m
B108: (if your LGA uses a height datum which is not AHD, please type the offset here; if there is no value here all height values will be assumed to be AHD)
B109: e.g. Tweed River Datum is 0.893m above AHD so you would enter -0.893 in the provided cell

Sheet Asset Summary
A2: ="Recreational Asset Summary for " & thisCouncil -> Recreational Asset Summary for Bayside Council
A4: Asset_ID | B4: Asset_Name | C4: Asset_Type | D4: Latitude | E4: Longitude | F4: MCA_Score | G4: Confidence | H4: Rank | I4: Adaptation_Selection | J4: Link
J5: View
J6: View
J7: View
I8: =IF(ISBLANK(templateBeach!assetAdaptOpt),"",templateBeach!assetAdaptOpt) ->  | J8: View
I9: =IF(ISBLANK(templateBeach!assetAdaptOpt),"",templateBeach!assetAdaptOpt) ->  | J9: View
I10: =IF(ISBLANK(templateBeach!assetAdaptOpt),"",templateBeach!assetAdaptOpt) ->  | J10: View
I11: =IF(ISBLANK(templateBeach!assetAdaptOpt),"",templateBeach!assetAdaptOpt) ->  | J11: View
I12: =IF(ISBLANK(templateBeach!assetAdaptOpt),"",templateBeach!assetAdaptOpt) ->  | J12: View
I13: =IF(ISBLANK(templateBeach!assetAdaptOpt),"",templateBeach!assetAdaptOpt) ->  | J13: View
I14: =IF(ISBLANK(templateBeach!assetAdaptOpt),"",templateBeach!assetAdaptOpt) ->  | J14: View
I15: =IF(ISBLANK(templateBeach!assetAdaptOpt),"",templateBeach!assetAdaptOpt) ->  | J15: View
I16: =IF(ISBLANK(templateBeach!assetAdaptOpt),"",templateBeach!assetAdaptOpt) ->  | J16: View
I17: =IF(ISBLANK(templateBeach!assetAdaptOpt),"",templateBeach!assetAdaptOpt) ->  | J17: View
I18: =IF(ISBLANK(templateBeach!assetAdaptOpt),"",templateBeach!assetAdaptOpt) ->  | J18: View
I19: =IF(ISBLANK(templateBeach!assetAdaptOpt),"",templateBeach!assetAdaptOpt) ->  | J19: View
I20: =IF(ISBLANK(templateBeach!assetAdaptOpt),"",templateBeach!assetAdaptOpt) ->  | J20: View
I21: =IF(ISBLANK(templateBeach!assetAdaptOpt),"",templateBeach!assetAdaptOpt) ->  | J21: View
I22: =IF(ISBLANK(templateBeach!assetAdaptOpt),"",templateBeach!assetAdaptOpt) ->  | J22: View
I23: =IF(ISBLANK(templateBeach!assetAdaptOpt),"",templateBeach!assetAdaptOpt) ->  | J23: View
I24: =IF(ISBLANK(templateBeach!assetAdaptOpt),"",templateBeach!assetAdaptOpt) ->  | J24: View
I25: =IF(ISBLANK(templateBeach!assetAdaptOpt),"",templateBeach!assetAdaptOpt) ->  | J25: View
I26: =IF(ISBLANK(templateBeach!assetAdaptOpt),"",templateBeach!assetAdaptOpt) ->  | J26: View
I27: =IF(ISBLANK(templateBeach!assetAdaptOpt),"",templateBeach!assetAdaptOpt) ->  | J27: View
I28: =IF(ISBLANK(templateBeach!assetAdaptOpt),"",templateBeach!assetAdaptOpt) ->  | J28: View
I29: =IF(ISBLANK(templateBeach!assetAdaptOpt),"",templateBeach!assetAdaptOpt) ->  | J29: View
I30: =IF(ISBLANK(templateBeach!assetAdaptOpt),"",templateBeach!assetAdaptOpt) ->  | J30: View
I31: =IF(ISBLANK(templateBeach!assetAdaptOpt),"",templateBeach!assetAdaptOpt) ->  | J31: View
I32: =IF(ISBLANK(templateBeach!assetAdaptOpt),"",templateBeach!assetAdaptOpt) ->  | J32: View
I33: =IF(ISBLANK(templateBeach!assetAdaptOpt),"",templateBeach!assetAdaptOpt) ->  | J33: View
I34: =IF(ISBLANK(templateBeach!assetAdaptOpt),"",templateBeach!assetAdaptOpt) ->  | J34: View
I35: =IF(ISBLANK(templateBeach!assetAdaptOpt),"",templateBeach!assetAdaptOpt) ->  | J35: View
I36: =IF(ISBLANK(templateBeach!assetAdaptOpt),"",templateBeach!assetAdaptOpt) ->  | J36: View
I37: =IF(ISBLANK(templateBeach!assetAdaptOpt),"",templateBeach!assetAdaptOpt) ->  | J37: View
I38: =IF(ISBLANK(templateBeach!assetAdaptOpt),"",templateBeach!assetAdaptOpt) ->  | J38: View
I39: =IF(ISBLANK(templateBeach!assetAdaptOpt),"",templateBeach!assetAdaptOpt) ->  | J39: View
I40: =IF(ISBLANK(templateBeach!assetAdaptOpt),"",templateBeach!assetAdaptOpt) ->  | J40: View
I41: =IF(ISBLANK(templateBeach!assetAdaptOpt),"",templateBeach!assetAdaptOpt) ->  | J41: View
I42: =IF(ISBLANK(templateBeach!assetAdaptOpt),"",templateBeach!assetAdaptOpt) ->  | J42: View
I43: =IF(ISBLANK(templateBeach!assetAdaptOpt),"",templateBeach!assetAdaptOpt) ->  | J43: View
I44: =IF(ISBLANK(templateBeach!assetAdaptOpt),"",templateBeach!assetAdaptOpt) ->  | J44: View
I45: =IF(ISBLANK(templateBeach!assetAdaptOpt),"",templateBeach!assetAdaptOpt) ->  | J45: View
I46: =IF(ISBLANK(templateBeach!assetAdaptOpt),"",templateBeach!assetAdaptOpt) ->  | J46: View
I47: =IF(ISBLANK(templateBeach!assetAdaptOpt),"",templateBeach!assetAdaptOpt) ->  | J47: View
I48: =IF(ISBLANK(templateBeach!assetAdaptOpt),"",templateBeach!assetAdaptOpt) ->  | J48: View
I49: =IF(ISBLANK(templateBeach!assetAdaptOpt),"",templateBeach!assetAdaptOpt) ->  | J49: View
I50: =IF(ISBLANK(templateBeach!assetAdaptOpt),"",templateBeach!assetAdaptOpt) ->  | J50: View
I51: =IF(ISBLANK(templateBeach!assetAdaptOpt),"",templateBeach!assetAdaptOpt) ->  | J51: View
I52: =IF(ISBLANK(templateBeach!assetAdaptOpt),"",templateBeach!assetAdaptOpt) ->  | J52: View
I53: =IF(ISBLANK(templateBeach!assetAdaptOpt),"",templateBeach!assetAdaptOpt) ->  | J53: View
I54: =IF(ISBLANK(templateBeach!assetAdaptOpt),"",templateBeach!assetAdaptOpt) ->  | J54: View
I55: =IF(ISBLANK(templateBeach!assetAdaptOpt),"",templateBeach!assetAdaptOpt) ->  | J55: View
I56: =IF(ISBLANK(templateBeach!assetAdaptOpt),"",templateBeach!assetAdaptOpt) ->  | J56: View
I57: =IF(ISBLANK(templateBeach!assetAdaptOpt),"",templateBeach!assetAdaptOpt) ->  | J57: View
I58: =IF(ISBLANK(templateBeach!assetAdaptOpt),"",templateBeach!assetAdaptOpt) ->  | J58: View
I59: =IF(ISBLANK(templateBeach!assetAdaptOpt),"",templateBeach!assetAdaptOpt) ->  | J59: View
I60: =IF(ISBLANK(templateBeach!assetAdaptOpt),"",templateBeach!assetAdaptOpt) ->  | J60: View
I61: =IF(ISBLANK(templateBeach!assetAdaptOpt),"",templateBeach!assetAdaptOpt) ->  | J61: View
I62: =IF(ISBLANK(templateBeach!assetAdaptOpt),"",templateBeach!assetAdaptOpt) ->  | J62: View
I63: =IF(ISBLANK(templateBeach!assetAdaptOpt),"",templateBeach!assetAdaptOpt) ->  | J63: View
I64: =IF(ISBLANK(templateBeach!assetAdaptOpt),"",templateBeach!assetAdaptOpt) ->  | J64: View
I65: =IF(ISBLANK(templateBeach!assetAdaptOpt),"",templateBeach!assetAdaptOpt) ->  | J65: View
I66: =IF(ISBLANK(templateBeach!assetAdaptOpt),"",templateBeach!assetAdaptOpt) ->  | J66: View
I67: =IF(ISBLANK(templateBeach!assetAdaptOpt),"",templateBeach!assetAdaptOpt) ->  | J67: View
I68: =IF(ISBLANK(templateBeach!assetAdaptOpt),"",templateBeach!assetAdaptOpt) ->  | J68: View
I69: =IF(ISBLANK(templateBeach!assetAdaptOpt),"",templateBeach!assetAdaptOpt) ->  | J69: View
I70: =IF(ISBLANK(templateBeach!assetAdaptOpt),"",templateBeach!assetAdaptOpt) ->  | J70: View
I71: =IF(ISBLANK(templateBeach!assetAdaptOpt),"",templateBeach!assetAdaptOpt) ->  | J71: View
I72: =IF(ISBLANK(templateBeach!assetAdaptOpt),"",templateBeach!assetAdaptOpt) ->  | J72: View
I73: =IF(ISBLANK(templateBeach!assetAdaptOpt),"",templateBeach!assetAdaptOpt) ->  | J73: View
I74: =IF(ISBLANK(templateBeach!assetAdaptOpt),"",templateBeach!assetAdaptOpt) ->  | J74: View
I75: =IF(ISBLANK(templateBeach!assetAdaptOpt),"",templateBeach!assetAdaptOpt) ->  | J75: View
I76: =IF(ISBLANK(templateBeach!assetAdaptOpt),"",templateBeach!assetAdaptOpt) ->  | J76: View
I77: =IF(ISBLANK(templateBeach!assetAdaptOpt),"",templateBeach!assetAdaptOpt) ->  | J77: View
I78: =IF(ISBLANK(templateBeach!assetAdaptOpt),"",templateBeach!assetAdaptOpt) ->  | J78: View
I79: =IF(ISBLANK(templateBeach!assetAdaptOpt),"",templateBeach!assetAdaptOpt) ->  | J79: View
I80: =IF(ISBLANK(templateBeach!assetAdaptOpt),"",templateBeach!assetAdaptOpt) ->  | J80: View
I81: =IF(ISBLANK(templateBeach!assetAdaptOpt),"",templateBeach!assetAdaptOpt) ->  | J81: View
I82: =IF(ISBLANK(templateBeach!assetAdaptOpt),"",templateBeach!assetAdaptOpt) ->  | J82: View
I83: =IF(ISBLANK(templateBeach!assetAdaptOpt),"",templateBeach!assetAdaptOpt) ->  | J83: View
I84: =IF(ISBLANK(templateBeach!assetAdaptOpt),"",templateBeach!assetAdaptOpt) ->  | J84: View
I85: =IF(ISBLANK(templateBeach!assetAdaptOpt),"",templateBeach!assetAdaptOpt) ->  | J85: View
I86: =IF(ISBLANK(templateBeach!assetAdaptOpt),"",templateBeach!assetAdaptOpt) ->  | J86: View
I87: =IF(ISBLANK(templateBeach!assetAdaptOpt),"",templateBeach!assetAdaptOpt) ->  | J87: View
I88: =IF(ISBLANK(templateBeach!assetAdaptOpt),"",templateBeach!assetAdaptOpt) ->  | J88: View
I89: =IF(ISBLANK(templateBeach!assetAdaptOpt),"",templateBeach!assetAdaptOpt) ->  | J89: View
I90: =IF(ISBLANK(templateBeach!assetAdaptOpt),"",templateBeach!assetAdaptOpt) ->  | J90: View
I91: =IF(ISBLANK(templateBeach!assetAdaptOpt),"",templateBeach!assetAdaptOpt) ->  | J91: View
I92: =IF(ISBLANK(templateBeach!assetAdaptOpt),"",templateBeach!assetAdaptOpt) ->  | J92: View
I93: =IF(ISBLANK(templateBeach!assetAdaptOpt),"",templateBeach!assetAdaptOpt) ->  | J93: View
I94: =IF(ISBLANK(templateBeach!assetAdaptOpt),"",templateBeach!assetAdaptOpt) ->  | J94: View
I95: =IF(ISBLANK(templateBeach!assetAdaptOpt),"",templateBeach!assetAdaptOpt) ->  | J95: View
I96: =IF(ISBLANK(templateBeach!assetAdaptOpt),"",templateBeach!assetAdaptOpt) ->  | J96: View
I97: =IF(ISBLANK(templateBeach!assetAdaptOpt),"",templateBeach!assetAdaptOpt) ->  | J97: View
I98: =IF(ISBLANK(templateBeach!assetAdaptOpt),"",templateBeach!assetAdaptOpt) ->  | J98: View
I99: =IF(ISBLANK(templateBeach!assetAdaptOpt),"",templateBeach!assetAdaptOpt) ->  | J99: View
I100: =IF(ISBLANK(templateBeach!assetAdaptOpt),"",templateBeach!assetAdaptOpt) ->  | J100: View
I101: =IF(ISBLANK(templateBeach!assetAdaptOpt),"",templateBeach!assetAdaptOpt) ->  | J101: View
I102: =IF(ISBLANK(templateBeach!assetAdaptOpt),"",templateBeach!assetAdaptOpt) ->  | J102: View
I103: =IF(ISBLANK(templateBeach!assetAdaptOpt),"",templateBeach!assetAdaptOpt) ->  | J103: View
I104: =IF(ISBLANK(templateBeach!assetAdaptOpt),"",templateBeach!assetAdaptOpt) ->  | J104: View
I105: =IF(ISBLANK(templateBeach!assetAdaptOpt),"",templateBeach!assetAdaptOpt) ->  | J105: View
I106: =IF(ISBLANK(templateBeach!assetAdaptOpt),"",templateBeach!assetAdaptOpt) ->  | J106: View
I107: =IF(ISBLANK(templateBeach!assetAdaptOpt),"",templateBeach!assetAdaptOpt) ->  | J107: View
I108: =IF(ISBLANK(templateBeach!assetAdaptOpt),"",templateBeach!assetAdaptOpt) ->  | J108: View
I109: =IF(ISBLANK(templateBeach!assetAdaptOpt),"",templateBeach!assetAdaptOpt) ->  | J109: View
I110: =IF(ISBLANK(templateBeach!assetAdaptOpt),"",templateBeach!assetAdaptOpt) ->  | J110: View
I111: =IF(ISBLANK(templateBeach!assetAdaptOpt),"",templateBeach!assetAdaptOpt) ->  | J111: View
I112: =IF(ISBLANK(templateBeach!assetAdaptOpt),"",templateBeach!assetAdaptOpt) ->  | J112: View
I113: =IF(ISBLANK(templateBeach!assetAdaptOpt),"",templateBeach!assetAdaptOpt) ->  | J113: View
I114: =IF(ISBLANK(templateBeach!assetAdaptOpt),"",templateBeach!assetAdaptOpt) ->  | J114: View
I115: =IF(ISBLANK(templateBeach!assetAdaptOpt),"",templateBeach!assetAdaptOpt) ->  | J115: View
I116: =IF(ISBLANK(templateBeach!assetAdaptOpt),"",templateBeach!assetAdaptOpt) ->  | J116: View
I117: =IF(ISBLANK(templateBeach!assetAdaptOpt),"",templateBeach!assetAdaptOpt) ->  | J117: View
I118: =IF(ISBLANK(templateBeach!assetAdaptOpt),"",templateBeach!assetAdaptOpt) ->  | J118: View
I119: =IF(ISBLANK(templateBeach!assetAdaptOpt),"",templateBeach!assetAdaptOpt) ->  | J119: View
I120: =IF(ISBLANK(templateBeach!assetAdaptOpt),"",templateBeach!assetAdaptOpt) ->  | J120: View
I121: =IF(ISBLANK(templateBeach!assetAdaptOpt),"",templateBeach!assetAdaptOpt) ->  | J121: View
I122: =IF(ISBLANK(templateBeach!assetAdaptOpt),"",templateBeach!assetAdaptOpt) ->  | J122: View
I123: =IF(ISBLANK(templateBeach!assetAdaptOpt),"",templateBeach!assetAdaptOpt) ->  | J123: View
I124: =IF(ISBLANK(templateBeach!assetAdaptOpt),"",templateBeach!assetAdaptOpt) ->  | J124: View
I125: =IF(ISBLANK(templateBeach!assetAdaptOpt),"",templateBeach!assetAdaptOpt) ->  | J125: View
I126: =IF(ISBLANK(templateBeach!assetAdaptOpt),"",templateBeach!assetAdaptOpt) ->  | J126: View
I127: =IF(ISBLANK(templateBeach!assetAdaptOpt),"",templateBeach!assetAdaptOpt) ->  | J127: View
I128: =IF(ISBLANK(templateBeach!assetAdaptOpt),"",templateBeach!assetAdaptOpt) ->  | J128: View
I129: =IF(ISBLANK(templateBeach!assetAdaptOpt),"",templateBeach!assetAdaptOpt) ->  | J129: View
I130: =IF(ISBLANK(templateBeach!assetAdaptOpt),"",templateBeach!assetAdaptOpt) ->  | J130: View
I131: =IF(ISBLANK(templateBeach!assetAdaptOpt),"",templateBeach!assetAdaptOpt) ->  | J131: View
I132: =IF(ISBLANK(templateBeach!assetAdaptOpt),"",templateBeach!assetAdaptOpt) ->  | J132: View
I133: =IF(ISBLANK(templateBeach!assetAdaptOpt),"",templateBeach!assetAdaptOpt) ->  | J133: View
I134: =IF(ISBLANK(templateBeach!assetAdaptOpt),"",templateBeach!assetAdaptOpt) ->  | J134: View
I135: =IF(ISBLANK(templateBeach!assetAdaptOpt),"",templateBeach!assetAdaptOpt) ->  | J135: View
I136: =IF(ISBLANK(templateBeach!assetAdaptOpt),"",templateBeach!assetAdaptOpt) ->  | J136: View
I137: =IF(ISBLANK(templateBeach!assetAdaptOpt),"",templateBeach!assetAdaptOpt) ->  | J137: View
I138: =IF(ISBLANK(templateBeach!assetAdaptOpt),"",templateBeach!assetAdaptOpt) ->  | J138: View
I139: =IF(ISBLANK(templateBeach!assetAdaptOpt),"",templateBeach!assetAdaptOpt) ->  | J139: View
I140: =IF(ISBLANK(templateBeach!assetAdaptOpt),"",templateBeach!assetAdaptOpt) ->  | J140: View
I141: =IF(ISBLANK(templateBeach!assetAdaptOpt),"",templateBeach!assetAdaptOpt) ->  | J141: View
I142: =IF(ISBLANK(templateBeach!assetAdaptOpt),"",templateBeach!assetAdaptOpt) ->  | J142: View
I143: =IF(ISBLANK(templateBeach!assetAdaptOpt),"",templateBeach!assetAdaptOpt) ->  | J143: View
I144: =IF(ISBLANK(templateBeach!assetAdaptOpt),"",templateBeach!assetAdaptOpt) ->  | J144: View
I145: =IF(ISBLANK(templateBeach!assetAdaptOpt),"",templateBeach!assetAdaptOpt) ->  | J145: View
I146: =IF(ISBLANK(templateBeach!assetAdaptOpt),"",templateBeach!assetAdaptOpt) ->  | J146: View
I147: =IF(ISBLANK(templateBeach!assetAdaptOpt),"",templateBeach!assetAdaptOpt) ->  | J147: View
I148: =IF(ISBLANK(templateBeach!assetAdaptOpt),"",templateBeach!assetAdaptOpt) ->  | J148: View
I149: =IF(ISBLANK(templateBeach!assetAdaptOpt),"",templateBeach!assetAdaptOpt) ->  | J149: View
I150: =IF(ISBLANK(templateBeach!assetAdaptOpt),"",templateBeach!assetAdaptOpt) ->  | J150: View
I151: =IF(ISBLANK(templateBeach!assetAdaptOpt),"",templateBeach!assetAdaptOpt) ->  | J151: View
I152: =IF(ISBLANK(templateBeach!assetAdaptOpt),"",templateBeach!assetAdaptOpt) ->  | J152: View
I153: =IF(ISBLANK(templateBeach!assetAdaptOpt),"",templateBeach!assetAdaptOpt) ->  | J153: View
I154: =IF(ISBLANK(templateBeach!assetAdaptOpt),"",templateBeach!assetAdaptOpt) ->  | J154: View
I155: =IF(ISBLANK(templateBeach!assetAdaptOpt),"",templateBeach!assetAdaptOpt) ->  | J155: View
I156: =IF(ISBLANK(templateBeach!assetAdaptOpt),"",templateBeach!assetAdaptOpt) ->  | J156: View
I157: =IF(ISBLANK(templateBeach!assetAdaptOpt),"",templateBeach!assetAdaptOpt) ->  | J157: View
I158: =IF(ISBLANK(templateBeach!assetAdaptOpt),"",templateBeach!assetAdaptOpt) ->  | J158: View
I159: =IF(ISBLANK(templateBeach!assetAdaptOpt),"",templateBeach!assetAdaptOpt) ->  | J159: View
I160: =IF(ISBLANK(templateBeach!assetAdaptOpt),"",templateBeach!assetAdaptOpt) ->  | J160: View
I161: =IF(ISBLANK(templateBeach!assetAdaptOpt),"",templateBeach!assetAdaptOpt) ->  | J161: View
I162: =IF(ISBLANK(templateBeach!assetAdaptOpt),"",templateBeach!assetAdaptOpt) ->  | J162: View
I163: =IF(ISBLANK(templateBeach!assetAdaptOpt),"",templateBeach!assetAdaptOpt) ->  | J163: View
I164: =IF(ISBLANK(templateBeach!assetAdaptOpt),"",templateBeach!assetAdaptOpt) ->  | J164: View
I165: =IF(ISBLANK(templateBeach!assetAdaptOpt),"",templateBeach!assetAdaptOpt) ->  | J165: View
I166: =IF(ISBLANK(templateBeach!assetAdaptOpt),"",templateBeach!assetAdaptOpt) ->  | J166: View
I167: =IF(ISBLANK(templateBeach!assetAdaptOpt),"",templateBeach!assetAdaptOpt) ->  | J167: View
I168: =IF(ISBLANK(templateBeach!assetAdaptOpt),"",templateBeach!assetAdaptOpt) ->  | J168: View
I169: =IF(ISBLANK(templateBeach!assetAdaptOpt),"",templateBeach!assetAdaptOpt) ->  | J169: View
I170: =IF(ISBLANK(templateBeach!assetAdaptOpt),"",templateBeach!assetAdaptOpt) ->  | J170: View
I171: =IF(ISBLANK(templateBeach!assetAdaptOpt),"",templateBeach!assetAdaptOpt) ->  | J171: View
I172: =IF(ISBLANK(templateBeach!assetAdaptOpt),"",templateBeach!assetAdaptOpt) ->  | J172: View
I173: =IF(ISBLANK(templateBeach!assetAdaptOpt),"",templateBeach!assetAdaptOpt) ->  | J173: View
I174: =IF(ISBLANK(templateBeach!assetAdaptOpt),"",templateBeach!assetAdaptOpt) ->  | J174: View
I175: =IF(ISBLANK(templateBeach!assetAdaptOpt),"",templateBeach!assetAdaptOpt) ->  | J175: View
I176: =IF(ISBLANK(templateBeach!assetAdaptOpt),"",templateBeach!assetAdaptOpt) ->  | J176: View
I177: =IF(ISBLANK(templateBeach!assetAdaptOpt),"",templateBeach!assetAdaptOpt) ->  | J177: View
I178: =IF(ISBLANK(templateBeach!assetAdaptOpt),"",templateBeach!assetAdaptOpt) ->  | J178: View
I179: =IF(ISBLANK(templateBeach!assetAdaptOpt),"",templateBeach!assetAdaptOpt) ->  | J179: View
I180: =IF(ISBLANK(templateBeach!assetAdaptOpt),"",templateBeach!assetAdaptOpt) ->  | J180: View
I181: =IF(ISBLANK(templateBeach!assetAdaptOpt),"",templateBeach!assetAdaptOpt) ->  | J181: View
I182: =IF(ISBLANK(templateBeach!assetAdaptOpt),"",templateBeach!assetAdaptOpt) ->  | J182: View
I183: =IF(ISBLANK(templateBeach!assetAdaptOpt),"",templateBeach!assetAdaptOpt) ->  | J183: View
I184: =IF(ISBLANK(templateBeach!assetAdaptOpt),"",templateBeach!assetAdaptOpt) ->  | J184: View
I185: =IF(ISBLANK(templateBeach!assetAdaptOpt),"",templateBeach!assetAdaptOpt) ->  | J185: View
I186: =IF(ISBLANK(templateBeach!assetAdaptOpt),"",templateBeach!assetAdaptOpt) ->  | J186: View
I187: =IF(ISBLANK(templateBeach!assetAdaptOpt),"",templateBeach!assetAdaptOpt) ->  | J187: View
I188: =IF(ISBLANK(templateBeach!assetAdaptOpt),"",templateBeach!assetAdaptOpt) ->  | J188: View
I189: =IF(ISBLANK(templateBeach!assetAdaptOpt),"",templateBeach!assetAdaptOpt) ->  | J189: View
I190: =IF(ISBLANK(templateBeach!assetAdaptOpt),"",templateBeach!assetAdaptOpt) ->  | J190: View
I191: =IF(ISBLANK(templateBeach!assetAdaptOpt),"",templateBeach!assetAdaptOpt) ->  | J191: View
I192: =IF(ISBLANK(templateBeach!assetAdaptOpt),"",templateBeach!assetAdaptOpt) ->  | J192: View
I193: =IF(ISBLANK(templateBeach!assetAdaptOpt),"",templateBeach!assetAdaptOpt) ->  | J193: View
I194: =IF(ISBLANK(templateBeach!assetAdaptOpt),"",templateBeach!assetAdaptOpt) ->  | J194: View
I195: =IF(ISBLANK(templateBeach!assetAdaptOpt),"",templateBeach!assetAdaptOpt) ->  | J195: View
I196: =IF(ISBLANK(templateBeach!assetAdaptOpt),"",templateBeach!assetAdaptOpt) ->  | J196: View
I197: =IF(ISBLANK(templateBeach!assetAdaptOpt),"",templateBeach!assetAdaptOpt) ->  | J197: View
I198: =IF(ISBLANK(templateBeach!assetAdaptOpt),"",templateBeach!assetAdaptOpt) ->  | J198: View
I199: =IF(ISBLANK(templateBeach!assetAdaptOpt),"",templateBeach!assetAdaptOpt) ->  | J199: View
A200: =IF(ISBLANK(assetSummary[Asset_ID] 5:5),"No assets currently imported","") -> No assets currently imported

Sheet New Asset
B2: Single Asset Import
B3: To create a new asset please enter a name, location, and asset type below. Then click the submit button.
B6: Asset ID
B7: Name
B8: Asset type
B9: Latitude
B10: Longitude

Sheet templateJetty (hidden)
A4: ID HERE
A5: NAME HERE | C5: Lat,Lng | D5: MapURL
A7: Asset Data
B9: Info | C9: Characteristic | D9: Value | E9: Unit | F9: Comment
C10: Year of construction
B11: ⓘ | C11: Cost of initial construction | E11: $
B12: ⓘ | C12: Design life | E12: yrs
B13: ⓘ | C13: Today's construction cost | D13: =IFERROR(INDEX(metaAdjust[Dollar Adjustment],MATCH(currYear-assetConstYr,metaAdjust[Age],0))*assetConstCost,"Enter cost and construction year") -> Enter cost and construction year
B14: ⓘ | C14: Annual maintenance cost | E14: $
B15: ⓘ | C15: Date of last capital works (partial/full reconstruction)
B16: ⓘ | C16: Cost of last capital works | E16: $
C17: Current condition
B18: ⓘ | C18: Number of commercial properties using asset
B19: ⓘ | C19: Approximate annual revenue from these businesses | E19: $ p/a
A21: Physical Characteristics
B23: Info | C23: Characteristic | D23: Value | E23: Unit | F23: Comment
B24: ⓘ | C24: Length | E24: m
C25: Number of moorings
B26: ⓘ | C26: Representative height | E26: m
B27: ⓘ | C27: Oceanbed level | E27: m
B28: ⓘ | C28: Sheltered/Exposed
B29: ⓘ | C29: Coastline angle | E29: ° TN
A31: Multi-Criteria Analysis
A33: Cultural & Heritage Significance
B35: What is required:
B36: - | C36: Access to local cultural/historic knowledge
B37: - | C37: Participants
B39: What is desired:
B40: - | C40: Collaboration with your local aboriginal land council
B41: - | C41: Professional guidance on asset history of LGA
B43: Additional resources:
B44: - | C44: Local Aboriginal Land Councils
B45: - | C45: Aboriginal heritage (places of significance)
B46: - | C46: The cultures and the heritage of NSW
B47: - | C47: NCCOE Guideline 2: Working with the Coast in an Environmentally Sustainable Way (Chapter 6.3)
B48: Guidelines:
B49: Cultural and historic value aims to capture the significance peoples or groups find in places or objects due to cultural teachings and/or heritage claims.
B50: It is distinct from value placed on an asset by peoples due its usability or availability and instead relates to a group's relationship with the asset.
B51: To assess this criterion, please use the following table as a guide to assign this asset a value from 0 to 5.
B60: To increase the confidence of this criterion's score, it is advised that you consult with your local aboriginal land council and seek their input into the cultural significance of your assets
B61: Additionally you may wish to ask around your office or with respected members of the community to get a more complete picture of your assets' significance
B62: Weightings may be assigned for each entry based on the trust and/or significance of the opinion. E.g. Someone with more knowledge of the history of the area might have their opinion granted more 'weight' than someone who has only just arrived.
C64: You | D64: Aboriginal Land Council | E64: Person 2 | F64: Person 3 | G64: Person 4 | H64: Person 5 | I64: Person 6 | J64: Person 7 | K64: Person 8 | L64: Person 9 | M64: Person 10
B65: Scores: (/5)
B66: Weighting | C66: 1 | D66: 5 | E66: 1 | F66: 1 | G66: 1 | H66: 1 | I66: 1 | J66: 1 | K66: 1 | L66: 1 | M66: 1
B68: Recommended Value: | D68: =IFERROR(SUMPRODUCT(C65:M65,C66:M66)/SUMPRODUCT(--(C65:M65<>""),C66:M66),0) -> 0 | E68: /5
B71: Culture & Heritage Score: | E71: ="/5" -> /5
B72: Confidence Flag: | D72: =IF( NOT(ISNUMBER(D71)),"No value set",IF(ISNUMBER(D65),2,IF(COUNT(C65:M65)>=3,1,0))) -> No value set
B73: Comments (explain rationale):
A75: Replaceability
B77: What is required:
B78: - | C78: The replacement cost of this asset
B79: - | C79: The design life of this asset
B81: What is desired:
B82: - | C82: Detailed understanding of current asset availability in the region
B83: - | C83: Assessment of alternative locations
B85: Where to look:
B86: - | C86: Local asset register
B88: Additional resources:
B89: - | C89: IPWEA, Australian Infrastructure Financial Management Manual (AIFMM)
B90: - | C90: Guide to valuation and depreciation under the international accounting standards for the public sector
B91: - | C91: IPWEA, International Infrastructure Management Manual (IIMM)
B92: Guidelines:
B93: This tool uses an LGA's ability to pay, or an asset's replaceability as a baseline proxy for economic value.
B94: This method compares the depreciated replacement cost (also known as the Written Down Value; WDV) with LGA statistics to determine the relative ability for the asset to be replaced.
C96: Non-depreciated replacement cost
C97: Depreciated replacement cost
C98: Comments
B100: Are there other pre-existing assets nearby which could take up demand if this asset was decommissioned/damaged?
D101: No | F101: Comments:
B103: Are there any other nearby sites which could be repurposed to fulfil a similar role?
C104: Y/N | D104: No | F104: Comments:
A105: If yes, are they greenfield or brownfield site(s)?
B106: Approximate cost of site acquisition
C107: (in today's $)
D108: Median income | E108: GRP | G108: Land value | I108: Revenue | K108: Recreational budget
C109: Scores | D109: =IFERROR(IF(D104="Yes",IF(D105="Greenfield",(D106+assetWDV)/(cdIncCurr*assetLife*52),(D106*1.2+assetWDV)/(cdIncCurr*assetLife*52)),assetWDV/(cdIncCurr*assetLife*52)),"") ->  | E109: =IFERROR(IF(D104="Yes",IF(D105="Greenfield",(D106+assetWDV)/cdGRPCur,D106*1.2/cdGRPCur),assetWDV/cdGRPCur),"") -> 0 | G109: =IFERROR(IF(D104="Yes",IF(D105="Greenfield",(D106+assetWDV)/cdLandMeanVal,D106*1.2/cdLandMeanVal),assetWDV/cdLandMeanVal),"") -> 0 | I109: =IFERROR(IF(D104="Yes",IF(D105="Greenfield",(D106+assetWDV)/cdRevCurr,D106*1.2/cdRevCurr),assetWDV/cdRevCurr),"") ->  | K109: =IFERROR(IF(D104="Yes",IF(D105="Greenfield",(D106+assetWDV)/cdRecBudgCurr,D106*1.2/cdRecBudgCurr),assetWDV/cdRecBudgCurr),"") -> 
C110: Recommended values | D110: =IF(D101="Yes",IF(D109>5,3,IF(D109>1,4,5)),IF(D109>10,0,IF(D109>5,1,IF(D109>1,2,IF(D109>0.5,3,IF(D109>=0.1,4,5)))))) -> 0 | E110: =IF($D$101="Yes",IF(E109>0.001,3,IF(E109>0.0001,4,5)),IF(E109>0.001,0,IF(E109>0.0005,1,IF(E109>0.0001,2,IF(E109>0.00005,3,IF(E109>0.00001,4,5)))))) -> 5 | F110: =IF($D$101="Yes",IF(F109>100,3,IF(F109>10,4,5)),IF(F109>100,0,IF(F109>50,1,IF(F109>20,2,IF(F109>10,3,IF(F109>1,4,5)))))) -> 5 | G110: =IF(D101="Yes",IF(G109>2,3,IF(G109>1,4,5)),IF(G109>3,0,IF(G109>2,1,IF(G109>1,2,IF(G109>0.5,3,IF(G109>0.1,4,5)))))) -> 5 | H110: 5 | I110: =IF($D$101="Yes",IF(I109>1,3,IF(I109>0.5,4,5)),IF(I109>1,0,IF(I109>0.5,1,IF(I109>0.25,2,IF(I109>0.1,3,IF(I109>0.01,4,5)))))) -> 0 | J110: 5 | K110: =IF($D$101="Yes",IF(K109>2,3,IF(K109>1,4,5)),IF(K109>2,0,IF(K109>1,1,IF(K109>0.5,2,IF(K109>0.25,3,IF(K109>0.1,4,5)))))) -> 0 | L110: =IF($D$101="Yes",IF(L109>100,3,IF(L109>10,4,5)),IF(L109>100,0,IF(L109>50,1,IF(L109>20,2,IF(L109>10,3,IF(L109>1,4,5)))))) -> 5 | M110: /5
B112: Replaceability Score: | E112: ="/5" -> /5
B113: Confidence Flag: | D113: =IF(NOT(ISNUMBER(D112)),"No value set",IF(AND(D101<>"",D104<>""),IF(OR(ISNUMBER(I109),ISNUMBER(K109)),2,1),0)) -> No value set
B114: Comments (explain rationale):
A117: Policy Alignment
B119: What is required:
B120: - | C120: Understanding of your council's asset management policy and goals
B122: What is desired:
B123: - | C123: Detailed understanding of NSW state government coastal management policy
B124: Where to look:
B125: - | C125: Your LGA's Asset Management Strategy/Policy
B126: - | C126: State coastal management framework & legislation
B128: Additional resources:
B129: - | C129: NSW Coastal Management Framework
B130: - | C130: NCCOE Guideline 2: Working with the Coast in an Environmentally Sustainable Way (Chapter 3)
B131: Guidelines:
B132: Policy compliance is important as it dictates maintenance schedules, accessibility measures and general servicability of recreational assets.
B133: This tool adopts a checklist-based approach, providing some standard policy objectives for this asset type
B134: Additionally, you may add more fields according to the objectives of your LGA
B137: Policy | F137: Complies? (Y/N) | G137: Weight | H137: Comments
A138: 1 | B138: Adopts strategic plans for adapting to future risks | F138: Yes | G138: 1 | O138: =IF(F138="Yes",1,0) -> 1
A139: =A138+1 -> 2 | F139: No | G139: 1 | O139: =IF(F139="Yes",1,0) -> 0
A140: =A139+1 -> 3 | F140: No | G140: 1 | O140: 0
A141: 4 | F141: No | G141: 1 | O141: 0
A142: 5 | F142: No | G142: 1 | O142: 0
A143: 6 | F143: No | G143: 1 | O143: 0
A144: 7 | F144: No | G144: 1 | O144: 0
A145: 8 | F145: No | G145: 1 | O145: 0
A146: 9 | F146: No | G146: 1 | O146: 0
A147: 10 | F147: No | G147: 1 | O147: 0
B148: =COUNTA(B138:B147) -> 1
B150: Recommended Score: | D150: =SUMPRODUCT(--($B$138:$B$147 <> ""),$G$138:$G$147, $O$138:$O$147)/SUMIF($B$138:$B$147,"<>",$G$138:$G$147)*5 -> 5 | E150: /5
B152: Policy Score: | E152: ="/5" -> /5
B153: Confidence Flag: | D153: =IF(D152="","No value set",IF(B148<3,0,IF(B148<6,1,2))) -> No value set
B154: Comments (explain rationale):
A157: Community Value
B159: What is required:
B160: - | C160: A rough idea of this asset's utilisation by the community
B161: - | C161: Some understanding of this asset's touristic appeal
B163: What is desired:
B164: - | C164: Detailed understanding asset utilisation
B165: - | C165: Study of the asset's consumer surplus
B167: Where to look:
B168: - | C168: Any external studies or community engagements
B169: - | C169: Council members/workers who are particularly familiar with the asset
B171: Additional resources:
B172: - | C172: Total Economic Valuation Framework
B173: - | C173: NCCARF 2016: Exploring valuation methods for climate adaptation options, with particular reference to Australian coastal councils
B174: - | C174: Measuring the Economic Value of a City Park System
B176: Guidelines:
B177: Community value is an intangible criterion which attempts to quantify the degree to which members of the community value the asset.
B178: This criterion aims to encapsulate asset non-use values of bequest, option use, and existence.
B179: Community value is intrinsically a subjective metric and can only adequately be determined through community studies and surveys.
B180: The score for this criterion can be categorised from Very Low to Very High on a 5-point scale which can be directly measured in community surveys on this asset.
B181: Aggregate results from such surveys can be directly input into the Community Value cell along with links to the relevant survey along with comments
B183: There is no true alternative for community perception other than direct engagements, however this tool makes use of a number of proxies in order to provide guidance for this criterion in the absence of survey data or for assets which may be less important to the community.
B184: These involve looking at estimated utilisation and tourist visitation to get a sense of how 'valuable' the asset is to the community
B185: Estimating utilisation and tourist visitation will help you do on-the-fly sensitivity analysis to determine:
C186: 1. How much this asset is valued compared to a theoretical potential based on your LGA
C187: 2. How much consumer surplus would be required to pay for this asset's ongoing maintenance if users were charged for access
B190: Utilisation p/w | C190: Required WTP | D190: ($/trip)
B191: 50 | C191: =IFERROR(((assetMaint+assetValue/assetLife)/52)/B191,0) -> 0
B192: 100 | C192: 0
B193: 200 | C193: 0
B194: 500 | C194: 0
B195: 1000 | C195: 0
B196: 2000 | C196: 0
B197: 5000 | C197: 0
E200: Comments:
C201: Estimated utilisation per week:
C202: Utilisation known? | D202: No
C203: Required WTP: | D203: =IFERROR(((assetMaint+assetValue/assetLife)/52)/D201,"") -> 
B204: Percentage tourist visitation (of total LGA tourists): | D204: 0
C206: Average tourists per week: | D206: =(D204*cdTourCur)/52 -> 0
C208: WTP from study:
C209: ($/person)
B211: Recommended Value: | D211: =IF(D208<>"",IF(D208>=(2*D203),5,IF(D208>=(1.25*D203),4,IF(D208<(0.25*D203),0,IF(D208<(0.5*D203),1,IF(D208<(0.8*D203),2,3))))),IF((D201*52)<(0.005*cdPopCur),0,IF((D201*52)>(0.5*cdPopCur),5,5*(D201*52)/(0.495*cdPopCur)))) -> 0 | E211: /5
B213: Community Value: | E213: ="/5" -> /5
B214: Confidence Flag: | D214: =IF(assetCommunity="","No value set",IF(D208<>"",2,IF(D202="Yes",1,0))) -> No value set
B215: Comments (explain rationale):
A217: Resilience
B219: What is required:
B220: - | C220: Asset design life
B221: - | C221: Understanding of the acceptable level of risk for this asset
B222: - | C222: Basic knowledge of either the local wave climate or flood planning levels
B224: What is desired:
B225: - | C225: Detailed study of local wave climate
B226: - | C226: Understandng of threat recurrence under which the asset sustains damage
B228: Where to look:
B229: - | C229: Climate Change Adaptation Guidelines Part 4 (p 22)
B230: - | C230: Coastal Engineering Expertise
B232: Additional resources:
B233: - | C233: Resilience: A risk management approach | E233: Building resilient infrastructure
B234: Guidelines:
B235: Resilience is a measure of the serviceability of an asset under extreme conditions.
B236: This tool uses a number of different methods to determine the resilience of a coastal recreational asset:
B237: - Probabalistic wave overtopping calculation to estimate likelihood of coastal inundation for assets in or adjacent to the open ocean
B238: - Probabalistic storm surge inundation calculation for all non-estuarine assets
B239: - Hazard categorisation based on the asset's placement within the floodplain
C241: Design life: | D241: =assetLife -> 0 | E241: years
C242: Acceptable risk of encounter: | D242: 0.5 | E242: =-D241/(LN(1-D242)) -> 0 | F242: Comments:
C243: Design threat: | D243: ="1 : " & ROUND(-D241/(LN(1-D242)),0) -> 1 : 0 | E243: years
C244: What design criteria (ARI) was this asset built to? | E244: 1 in __ years
A245: Is this property in a designated coastal hazard zone? | D245: No | E245: =IF(D245="Yes","*Please refer to the CZMP for this asset's risk assessment and do not rely on this tool to provide estimates.","") -> 
A246: Is this property in a floodplain? | D246: No
C247: Sheltered/Exposed: | D247: =IF(assetShelter="","",assetShelter) -> 
C248: Is this asset in an estuary? | D248: No
C250: =IF(OR(D247="",D248=""),"Please enter data above.",IF(D247="Exposed","Please use overtopping calculation.",IF(D248="No","Please use still water level calculation.","Please use floodplain calculation."))) -> Please enter data above. | E250: =IF(ISNUMBER(SEARCH("overtop",C250)),0,IF(ISNUMBER(SEARCH("still",C250)),1,IF(ISNUMBER(SEARCH("floodplain",C250)),2,-1))) -> -1
B252: Overtopping Calculation
B253: (leave as default unless studies have been performed)
D254: baseline | E254: max
C255: Deepwater wave height, ho (m) | D255: 0.5
C256: Period, T (s) | D256: 8
C257: Tan B, Beach slope | D257: 0.005
C258: Deepwater wave length, Lo (m) | D258: =9.81*D256^2/(2*PI()) -> 99.92383947
C259: hb, stillwater depth at theoretical breakpoint (m) = | D259: =0.811*D255*D257^-0.012*(D255/D258)^-0.12 -> 0.8159942746
C260: Hb, theoretical breaker height, (m) = | D260: =0.76*D255*D257^(1/7)*(D255/D258)^-0.25 -> 0.6702545996
C261: Yb, breaker index = | D261: =D260/D259 -> 0.8213962039
C262: Tm-1,o | D262: =D256/1.1 -> 7.272727273
C263: Lm-1,o | D263: =9.81*D262^2/(2*PI()) -> 82.58168551
C264: setup % | D264: 0.001 | E264: 0.15
C265: setup | D265: =assetHs*D264 -> 0.0005 | E265: =D255*E264 -> 0.075
C266: bed depth | D266: =IF(assetDepth<>"",assetDepth+cdOffset,-0.5) -> -0.5 | E266: =IF(assetDepth<>"",assetDepth+cdOffset,-0.5) -> -0.5
... 82 more rows

Sheet templatePromenade (hidden)
A4: ID HERE
A5: NAME HERE | C5: Lat,Lng | D5: MapURL
A7: Asset Data
B9: Info | C9: Characteristic | D9: Value | E9: Unit | F9: Comment
C10: Year of construction
B11: ⓘ | C11: Cost of initial construction | E11: $
B12: ⓘ | C12: Design life | E12: yrs
B13: ⓘ | C13: Today's construction cost | D13: =IFERROR(INDEX(metaAdjust[Dollar Adjustment],MATCH(currYear-assetConstYr,metaAdjust[Age],0))*assetConstCost,"Enter cost and construction year") -> Enter cost and construction year
B14: ⓘ | C14: Annual maintenance cost | E14: $
B15: ⓘ | C15: Date of last capital works (partial/full reconstruction)
B16: ⓘ | C16: Cost of last capital works | E16: $
C17: Current condition
A19: Physical Characteristics
B21: Info | C21: Characteristic | D21: Value | E21: Unit | F21: Comment
B22: ⓘ | C22: Frontage length | E22: m
B23: ⓘ | C23: Representative height | E23: m AHD
B24: ⓘ | C24: Distance to shoreline | E24: m
B25: ⓘ | C25: Oceanward slope | E25: m/m
B26: ⓘ | C26: Sheltered/Exposed
B28: If this asset has additional shore protection (e.g. walls, bunds, revetments, etc.) please enter its characteristics in the following section:
B30: Structure Type:
B32: Info | C32: Characteristic | D32: Value | E32: Unit | F32: Comment
B33: ⓘ | C33: Representative height | E33: m AHD
B34: ⓘ | C34: Distance to shoreline | E34: m
B35: ⓘ | C35: Oceanward slope | E35: m/m
A38: Multi-Criteria Analysis
A40: Cultural & Heritage Significance
B42: What is required:
B43: - | C43: Access to local cultural/historic knowledge
B44: - | C44: Participants
B46: What is desired:
B47: - | C47: Collaboration with your local aboriginal land council
B48: - | C48: Professional guidance on asset history of LGA
B50: Additional resources:
B51: - | C51: Local Aboriginal Land Councils
B52: - | C52: Aboriginal heritage (places of significance)
B53: - | C53: The cultures and the heritage of NSW
B54: - | C54: NCCOE Guideline 2: Working with the Coast in an Environmentally Sustainable Way (Chapter 6.3)
B55: Guidelines:
B56: Cultural and historic value aims to capture the significance peoples or groups find in places or objects due to cultural teachings and/or heritage claims.
B57: It is distinct from value placed on an asset by peoples due its usability or availability and instead relates to a group's relationship with the asset.
B58: To assess this criterion, please use the following table as a guide to assign this asset a value from 0 to 5.
B67: To increase the confidence of this criterion's score, it is advised that you consult with your local aboriginal land council and seek their input into the cultural significance of your assets
B68: Additionally you may wish to ask around your office or with respected members of the community to get a more complete picture of your assets' significance
B69: Weightings may be assigned for each entry based on the trust and/or significance of the opinion. E.g. Someone with more knowledge of the history of the area might have their opinion granted more 'weight' than someone who has only just arrived.
C71: You | D71: Aboriginal Land Council | E71: Person 2 | F71: Person 3 | G71: Person 4 | H71: Person 5 | I71: Person 6 | J71: Person 7 | K71: Person 8 | L71: Person 9 | M71: Person 10
B72: Scores: (/5)
B73: Weighting | C73: 1 | D73: 5 | E73: 1 | F73: 1 | G73: 1 | H73: 1 | I73: 1 | J73: 1 | K73: 1 | L73: 1 | M73: 1
B75: Recommended Value: | D75: =IFERROR(SUMPRODUCT(C72:M72,C73:M73)/SUMPRODUCT(--(C72:M72<>""),C73:M73),0) -> 0 | E75: /5
B78: Culture & Heritage Score: | E78: ="/5" -> /5
B79: Confidence Flag: | D79: =IF( NOT(ISNUMBER(D78)),"No value set",IF(ISNUMBER(D72),2,IF(COUNT(C72:M72)>=3,1,0))) -> No value set
B80: Comments (explain rationale):
A82: Replaceability
B84: What is required:
B85: - | C85: The replacement cost of this asset
B86: - | C86: The design life of this asset
B88: What is desired:
B89: - | C89: Detailed understanding of current asset availability in the region
B90: - | C90: Assessment of alternative locations
B92: Where to look:
B93: - | C93: Local asset register
B95: Additional resources:
B96: - | C96: IPWEA, Australian Infrastructure Financial Management Manual (AIFMM)
B97: - | C97: Guide to valuation and depreciation under the international accounting standards for the public sector
B98: - | C98: IPWEA, International Infrastructure Management Manual (IIMM)
B99: Guidelines:
B100: This tool uses an LGA's ability to pay, or an asset's replaceability as a baseline proxy for economic value.
B101: This method compares the depreciated replacement cost (also known as the Written Down Value; WDV) with LGA statistics to determine the relative ability for the asset to be replaced.
C103: Non-depreciated replacement cost
C104: Depreciated replacement cost
C105: Comments
B107: Are there other pre-existing assets nearby which could take up demand if this asset was decommissioned/damaged?
D108: No | F108: Comments:
B110: Are there any other nearby sites which could be repurposed to fulfil a similar role?
C111: Y/N | D111: No | F111: Comments:
A112: If yes, are they greenfield or brownfield site(s)?
B113: Approximate cost of site acquisition
C114: (in today's $)
D115: Median income | E115: GRP | G115: Land value | I115: Revenue | K115: Recreational budget
C116: Scores | D116: =IFERROR(IF(D111="Yes",IF(D112="Greenfield",(D113+assetWDV)/(cdIncCurr*assetLife*52),(D113*1.2+assetWDV)/(cdIncCurr*assetLife*52)),assetWDV/(cdIncCurr*assetLife*52)),"") ->  | E116: =IFERROR(IF(D111="Yes",IF(D112="Greenfield",(D113+assetWDV)/cdGRPCur,D113*1.2/cdGRPCur),assetWDV/cdGRPCur),"") -> 0 | G116: =IFERROR(IF(D111="Yes",IF(D112="Greenfield",(D113+assetWDV)/cdLandMeanVal,D113*1.2/cdLandMeanVal),assetWDV/cdLandMeanVal),"") -> 0 | I116: =IFERROR(IF(D111="Yes",IF(D112="Greenfield",(D113+assetWDV)/cdRevCurr,D113*1.2/cdRevCurr),assetWDV/cdRevCurr),"") ->  | K116: =IFERROR(IF(D111="Yes",IF(D112="Greenfield",(D113+assetWDV)/cdRecBudgCurr,D113*1.2/cdRecBudgCurr),assetWDV/cdRecBudgCurr),"") -> 
C117: Recommended values | D117: =IF(D108="Yes",IF(D116>5,3,IF(D116>1,4,5)),IF(D116>10,0,IF(D116>5,1,IF(D116>1,2,IF(D116>0.5,3,IF(D116>=0.1,4,5)))))) -> 0 | E117: =IF($D$101="Yes",IF(E116>0.001,3,IF(E116>0.0001,4,5)),IF(E116>0.001,0,IF(E116>0.0005,1,IF(E116>0.0001,2,IF(E116>0.00005,3,IF(E116>0.00001,4,5)))))) -> 5 | F117: =IF($D$101="Yes",IF(F116>100,3,IF(F116>10,4,5)),IF(F116>100,0,IF(F116>50,1,IF(F116>20,2,IF(F116>10,3,IF(F116>1,4,5)))))) -> 5 | G117: =IF(D108="Yes",IF(G116>2,3,IF(G116>1,4,5)),IF(G116>3,0,IF(G116>2,1,IF(G116>1,2,IF(G116>0.5,3,IF(G116>0.1,4,5)))))) -> 5 | H117: 5 | I117: =IF($D$101="Yes",IF(I116>1,3,IF(I116>0.5,4,5)),IF(I116>1,0,IF(I116>0.5,1,IF(I116>0.25,2,IF(I116>0.1,3,IF(I116>0.01,4,5)))))) -> 0 | J117: 5 | K117: =IF($D$101="Yes",IF(K116>2,3,IF(K116>1,4,5)),IF(K116>2,0,IF(K116>1,1,IF(K116>0.5,2,IF(K116>0.25,3,IF(K116>0.1,4,5)))))) -> 0 | L117: =IF($D$101="Yes",IF(L116>100,3,IF(L116>10,4,5)),IF(L116>100,0,IF(L116>50,1,IF(L116>20,2,IF(L116>10,3,IF(L116>1,4,5)))))) -> 5 | M117: /5
B119: Replaceability Score: | E119: ="/5" -> /5
B120: Confidence Flag: | D120: =IF(NOT(ISNUMBER(D119)),"No value set",IF(AND(D108<>"",D111<>""),IF(OR(ISNUMBER(I116),ISNUMBER(K116)),2,1),0)) -> No value set
B121: Comments (explain rationale):
A124: Policy Alignment
B126: What is required:
B127: - | C127: Understanding of your council's asset management policy and goals
B129: What is desired:
B130: - | C130: Detailed understanding of NSW state government coastal management policy
B131: Where to look:
B132: - | C132: Your LGA's Asset Management Strategy/Policy
B133: - | C133: State coastal management framework & legislation
B135: Additional resources:
B136: - | C136: NSW Coastal Management Framework
B137: - | C137: NCCOE Guideline 2: Working with the Coast in an Environmentally Sustainable Way (Chapter 3)
B138: Guidelines:
B139: Policy compliance is important as it dictates maintenance schedules, accessibility measures and general servicability of recreational assets.
B140: This tool adopts a checklist-based approach, providing some standard policy objectives for this asset type
B141: Additionally, you may add more fields according to the objectives of your LGA
B144: Policy | F144: Complies? (Y/N) | G144: Weight | H144: Comments
A145: 1 | B145: Adopts strategic plans for adapting to future risks | F145: Yes | G145: 1 | O145: =IF(F145="Yes",1,0) -> 1
A146: =A145+1 -> 2 | F146: No | G146: 1 | O146: =IF(F146="Yes",1,0) -> 0
A147: =A146+1 -> 3 | F147: No | G147: 1 | O147: 0
A148: 4 | F148: No | G148: 1 | O148: 0
A149: 5 | F149: No | G149: 1 | O149: 0
A150: 6 | F150: No | G150: 1 | O150: 0
A151: 7 | F151: No | G151: 1 | O151: 0
A152: 8 | F152: No | G152: 1 | O152: 0
A153: 9 | F153: No | G153: 1 | O153: 0
A154: 10 | F154: No | G154: 1 | O154: 0
B155: =COUNTA(B145:B154) -> 1
B157: Recommended Score: | D157: =SUMPRODUCT(--($B$145:$B$154 <> ""),$G$145:$G$154, $O$145:$O$154)/SUMIF($B$145:$B$154,"<>",$G$145:$G$154)*5 -> 5 | E157: /5
B159: Policy Score: | E159: ="/5" -> /5
B160: Confidence Flag: | D160: =IF(D159="","No value set",IF(B155<3,0,IF(B155<6,1,2))) -> No value set
B161: Comments (explain rationale):
A164: Community Value
B166: What is required:
B167: - | C167: A rough idea of this asset's utilisation by the community
B168: - | C168: Some understanding of this asset's touristic appeal
B170: What is desired:
B171: - | C171: Detailed understanding asset utilisation
B172: - | C172: Study of the asset's consumer surplus
B174: Where to look:
B175: - | C175: Any external studies or community engagements
B176: - | C176: Council members/workers who are particularly familiar with the asset
B178: Additional resources:
B179: - | C179: Total Economic Valuation Framework
B180: - | C180: NCCARF 2016: Exploring valuation methods for climate adaptation options, with particular reference to Australian coastal councils
B181: - | C181: Measuring the Economic Value of a City Park System
B183: Guidelines:
B184: Community value is an intangible criterion which attempts to quantify the degree to which members of the community value the asset.
B185: This criterion aims to encapsulate asset non-use values of bequest, option use, and existence.
B186: Community value is intrinsically a subjective metric and can only adequately be determined through community studies and surveys.
B187: The score for this criterion can be categorised from Very Low to Very High on a 5-point scale which can be directly measured in community surveys on this asset.
B188: Aggregate results from such surveys can be directly input into the Community Value cell along with links to the relevant survey along with comments
B190: There is no true alternative for community perception other than direct engagements, however this tool makes use of a number of proxies in order to provide guidance for this criterion in the absence of survey data or for assets which may be less important to the community.
B191: These involve looking at estimated utilisation and tourist visitation to get a sense of how 'valuable' the asset is to the community
B192: Estimating utilisation and tourist visitation will help you do on-the-fly sensitivity analysis to determine:
C193: 1. How much this asset is valued compared to a theoretical potential based on your LGA
C194: 2. How much consumer surplus would be required to pay for this asset's ongoing maintenance if users were charged for access
B197: Utilisation p/w | C197: Required WTP | D197: ($/trip)
B198: 50 | C198: =IFERROR(((assetMaint+assetValue/assetLife)/52)/B198,0) -> 0
B199: 100 | C199: 0
B200: 200 | C200: 0
B201: 500 | C201: 0
B202: 1000 | C202: 0
B203: 2000 | C203: 0
B204: 5000 | C204: 0
E207: Comments:
C208: Estimated utilisation per week:
C209: Utilisation known? | D209: No
C210: Required WTP: | D210: =IFERROR(((assetMaint+assetValue/assetLife)/52)/D208,"") -> 
B211: Percentage tourist visitation (of total LGA tourists): | D211: 0
C213: Average tourists per week: | D213: =(D211*cdTourCur)/52 -> 0
C215: WTP from study:
C216: ($/person)
B218: Recommended Value: | D218: =IF(D215<>"",IF(D215>=(2*D210),5,IF(D215>=(1.25*D210),4,IF(D215<(0.25*D210),0,IF(D215<(0.5*D210),1,IF(D215<(0.8*D210),2,3))))),IF((D208*52)<(0.005*cdPopCur),0,IF((D208*52)>(0.5*cdPopCur),5,5*(D208*52)/(0.495*cdPopCur)))) -> 0 | E218: /5
B220: Community Value: | E220: ="/5" -> /5
B221: Confidence Flag: | D221: =IF(assetCommunity="","No value set",IF(D215<>"",2,IF(D209="Yes",1,0))) -> No value set
B222: Comments (explain rationale):
A224: Resilience
B226: What is required:
B227: - | C227: Asset design life
B228: - | C228: Understanding of the acceptable level of risk for this asset
B229: - | C229: Basic knowledge of either the local wave climate or flood planning levels
B231: What is desired:
B232: - | C232: Detailed study of local wave climate
B233: - | C233: Understandng of threat recurrence under which the asset sustains damage
B235: Where to look:
B236: - | C236: Climate Change Adaptation Guidelines Part 4 (p 22)
B237: - | C237: Coastal Engineering Expertise
B239: Additional resources:
B240: - | C240: Resilience: A risk management approach | E240: Building resilient infrastructure
B241: Guidelines:
B242: Resilience is a measure of the serviceability of an asset under extreme conditions.
B243: This tool uses a number of different methods to determine the resilience of a coastal recreational asset:
B244: - Probabalistic wave overtopping calculation to estimate likelihood of coastal inundation for assets in or adjacent to the open ocean
B245: - Probabalistic storm surge inundation calculation for all non-estuarine assets
B246: - Hazard categorisation based on the asset's placement within the floodplain
C248: Design life: | D248: =assetLife -> 0 | E248: years
C249: Acceptable risk of encounter: | D249: 0.5 | E249: =-D248/(LN(1-D249)) -> 0 | F249: Comments:
C250: Design threat: | D250: ="1 : " & ROUND(-D248/(LN(1-D249)),0) -> 1 : 0 | E250: years
C251: What coastal inundation design (ARI) was this asset built to? | E251: 1 in __ years
A252: Is this property in a designated coastal hazard zone? | D252: No | E252: =IF(D252="Yes","*Please refer to the CZMP for this asset's risk assessment and do not rely on this tool to provide estimates.","") -> 
A253: Is this property in a floodplain? | D253: No
C254: Sheltered/Exposed: | D254: =IF(assetShelter="","",assetShelter) -> 
C255: Is this asset in an estuary? | D255: No
C257: =IF(OR(D254="",D255=""),"Please enter data above.",IF(D254="Exposed","Please use overtopping calculation.",IF(D255="No","Please use still water level calculation.","Please use floodplain calculation."))) -> Please enter data above. | E257: =IF(ISNUMBER(SEARCH("overtop",C257)),0,IF(ISNUMBER(SEARCH("still",C257)),1,IF(ISNUMBER(SEARCH("floodplain",C257)),2,-1))) -> -1
B259: Overtopping Calculation
B260: (leave as default unless studies have been performed)
D261: baseline | E261: max
C262: Deepwater wave height, hs (m) | D262: 8
C263: Period, T (s) | D263: 12
C264: Tan B, Beach slope | D264: =IF(assetSlope<>"",assetSlope,0.005) -> 0.005
C265: Deepwater wave length, Lo (m) | D265: =9.81*D263^2/(2*PI()) -> 224.8286388
C266: hb, stillwater depth at theoretical breakpoint (m) = | D266: =0.811*D262*D264^-0.012*(D262/D265)^-0.12 -> 10.31750287
C267: Hb, theoretical breaker height, (m) = | D267: =0.76*D262*D264^(1/7)*(D262/D265)^-0.25 -> 6.567127067
C268: Yb, breaker index = | D268: =D267/D266 -> 0.6365035366
C269: Tm-1,o | D269: =D263/1.1 -> 10.90909091
C270: Lm-1,o | D270: =9.81*D269^2/(2*PI()) -> 185.8087924
... 87 more rows

Sheet templatePark (hidden)
A4: ID HERE
A5: NAME HERE | C5: Lat,Lng | D5: MapURL
A7: Asset Data
B9: Info | C9: Characteristic | D9: Value | E9: Unit | F9: Comment
C10: Year of construction
B11: ⓘ | C11: Cost of initial construction | E11: $
B12: ⓘ | C12: Design life | E12: yrs
B13: ⓘ | C13: Today's construction cost | D13: =IFERROR(INDEX(metaAdjust[Dollar Adjustment],MATCH(currYear-assetConstYr,metaAdjust[Age],0))*assetConstCost,"Enter cost and construction year") -> Enter cost and construction year
B14: ⓘ | C14: Annual maintenance cost | E14: $
B15: ⓘ | C15: Date of last capital works (partial/full reconstruction)
B16: ⓘ | C16: Cost of last capital works | E16: $
C17: Current condition
A19: Physical Characteristics
B21: Info | C21: Characteristic | D21: Value | E21: Unit | F21: Comment
B22: ⓘ | C22: Area | E22: m2
B23: ⓘ | C23: Frontage length | E23: m
B24: ⓘ | C24: Representative height | E24: m AHD
B25: ⓘ | C25: Distance to shoreline | E25: m
B26: ⓘ | C26: Oceanward slope | E26: m/m
B27: ⓘ | C27: Sheltered/Exposed
B29: If this asset has additional shore protection (e.g. walls, bunds, revetments, etc.) please enter its characteristics in the following section:
B31: Structure Type:
B33: Info | C33: Characteristic | D33: Value | E33: Unit | F33: Comment
B34: ⓘ | C34: Representative height | E34: m AHD
B35: ⓘ | C35: Distance to shoreline | E35: m
B36: ⓘ | C36: Oceanward slope | E36: m/m
A38: Multi-Criteria Analysis
A40: Cultural & Heritage Significance
B42: What is required:
B43: - | C43: Access to local cultural/historic knowledge
B44: - | C44: Participants
B46: What is desired:
B47: - | C47: Collaboration with your local aboriginal land council
B48: - | C48: Professional guidance on asset history of LGA
B50: Additional resources:
B51: - | C51: Local Aboriginal Land Councils
B52: - | C52: Aboriginal heritage (places of significance)
B53: - | C53: The cultures and the heritage of NSW
B54: - | C54: NCCOE Guideline 2: Working with the Coast in an Environmentally Sustainable Way (Chapter 6.3)
B55: Guidelines:
B56: Cultural and historic value aims to capture the significance peoples or groups find in places or objects due to cultural teachings and/or heritage claims.
B57: It is distinct from value placed on an asset by peoples due its usability or availability and instead relates to a group's relationship with the asset.
B58: To assess this criterion, please use the following table as a guide to assign this asset a value from 0 to 5.
B67: To increase the confidence of this criterion's score, it is advised that you consult with your local aboriginal land council and seek their input into the cultural significance of your assets
B68: Additionally you may wish to ask around your office or with respected members of the community to get a more complete picture of your assets' significance
B69: Weightings may be assigned for each entry based on the trust and/or significance of the opinion. E.g. Someone with more knowledge of the history of the area might have their opinion granted more 'weight' than someone who has only just arrived.
C71: You | D71: Aboriginal Land Council | E71: Person 2 | F71: Person 3 | G71: Person 4 | H71: Person 5 | I71: Person 6 | J71: Person 7 | K71: Person 8 | L71: Person 9 | M71: Person 10
B72: Scores: (/5)
B73: Weighting | C73: 1 | D73: 5 | E73: 1 | F73: 1 | G73: 1 | H73: 1 | I73: 1 | J73: 1 | K73: 1 | L73: 1 | M73: 1
B75: Recommended Value: | D75: =IFERROR(SUMPRODUCT(C72:M72,C73:M73)/SUMPRODUCT(--(C72:M72<>""),C73:M73),0) -> 0 | E75: /5
B78: Culture & Heritage Score: | E78: ="/5" -> /5
B79: Confidence Flag: | D79: =IF( NOT(ISNUMBER(D78)),"No value set",IF(ISNUMBER(D72),2,IF(COUNT(C72:M72)>=3,1,0))) -> No value set
B80: Comments (explain rationale):
A82: Replaceability
B84: What is required:
B85: - | C85: The replacement cost of this asset
B86: - | C86: The design life of this asset
B88: What is desired:
B89: - | C89: Detailed understanding of current asset availability in the region
B90: - | C90: Assessment of alternative locations
B92: Where to look:
B93: - | C93: Local asset register
B95: Additional resources:
B96: - | C96: IPWEA, Australian Infrastructure Financial Management Manual (AIFMM)
B97: - | C97: Guide to valuation and depreciation under the international accounting standards for the public sector
B98: - | C98: IPWEA, International Infrastructure Management Manual (IIMM)
B99: Guidelines:
B100: This tool uses an LGA's ability to pay, or an asset's replaceability as a baseline proxy for economic value.
B101: This method compares the depreciated replacement cost (also known as the Written Down Value; WDV) with LGA statistics to determine the relative ability for the asset to be replaced.
C103: Non-depreciated replacement cost
C104: Depreciated replacement cost
C105: Comments
B107: Are there other pre-existing assets nearby which could take up demand if this asset was decommissioned/damaged?
D108: No | F108: Comments:
B110: Are there any other nearby sites which could be repurposed to fulfil a similar role?
C111: Y/N | D111: No | F111: Comments:
A112: If yes, are they greenfield or brownfield site(s)?
B113: Approximate cost of site acquisition
C114: (in today's $)
D115: Median income | E115: GRP | G115: Land value | I115: Revenue | K115: Recreational budget
C116: Scores | D116: =IFERROR(IF(D111="Yes",IF(D112="Greenfield",(D113+assetWDV)/(cdIncCurr*assetLife*52),(D113*1.2+assetWDV)/(cdIncCurr*assetLife*52)),assetWDV/(cdIncCurr*assetLife*52)),"") ->  | E116: =IFERROR(IF(D111="Yes",IF(D112="Greenfield",(D113+assetWDV)/cdGRPCur,D113*1.2/cdGRPCur),assetWDV/cdGRPCur),"") -> 0 | G116: =IFERROR(IF(D111="Yes",IF(D112="Greenfield",(D113+assetWDV)/cdLandMeanVal,D113*1.2/cdLandMeanVal),assetWDV/cdLandMeanVal),"") -> 0 | I116: =IFERROR(IF(D111="Yes",IF(D112="Greenfield",(D113+assetWDV)/cdRevCurr,D113*1.2/cdRevCurr),assetWDV/cdRevCurr),"") ->  | K116: =IFERROR(IF(D111="Yes",IF(D112="Greenfield",(D113+assetWDV)/cdRecBudgCurr,D113*1.2/cdRecBudgCurr),assetWDV/cdRecBudgCurr),"") -> 
C117: Recommended values | D117: =IF(D108="Yes",IF(D116>5,3,IF(D116>1,4,5)),IF(D116>10,0,IF(D116>5,1,IF(D116>1,2,IF(D116>0.5,3,IF(D116>=0.1,4,5)))))) -> 0 | E117: =IF($D$101="Yes",IF(E116>0.001,3,IF(E116>0.0001,4,5)),IF(E116>0.001,0,IF(E116>0.0005,1,IF(E116>0.0001,2,IF(E116>0.00005,3,IF(E116>0.00001,4,5)))))) -> 5 | F117: =IF($D$101="Yes",IF(F116>100,3,IF(F116>10,4,5)),IF(F116>100,0,IF(F116>50,1,IF(F116>20,2,IF(F116>10,3,IF(F116>1,4,5)))))) -> 5 | G117: =IF(D108="Yes",IF(G116>2,3,IF(G116>1,4,5)),IF(G116>3,0,IF(G116>2,1,IF(G116>1,2,IF(G116>0.5,3,IF(G116>0.1,4,5)))))) -> 5 | H117: 5 | I117: =IF($D$101="Yes",IF(I116>1,3,IF(I116>0.5,4,5)),IF(I116>1,0,IF(I116>0.5,1,IF(I116>0.25,2,IF(I116>0.1,3,IF(I116>0.01,4,5)))))) -> 0 | J117: 5 | K117: =IF($D$101="Yes",IF(K116>2,3,IF(K116>1,4,5)),IF(K116>2,0,IF(K116>1,1,IF(K116>0.5,2,IF(K116>0.25,3,IF(K116>0.1,4,5)))))) -> 0 | L117: =IF($D$101="Yes",IF(L116>100,3,IF(L116>10,4,5)),IF(L116>100,0,IF(L116>50,1,IF(L116>20,2,IF(L116>10,3,IF(L116>1,4,5)))))) -> 5 | M117: /5
B119: Replaceability Score: | E119: ="/5" -> /5
B120: Confidence Flag: | D120: =IF(NOT(ISNUMBER(D119)),"No value set",IF(AND(D108<>"",D111<>""),IF(OR(ISNUMBER(I116),ISNUMBER(K116)),2,1),0)) -> No value set
B121: Comments (explain rationale):
A124: Policy Alignment
B126: What is required:
B127: - | C127: Understanding of your council's asset management policy and goals
B129: What is desired:
B130: - | C130: Detailed understanding of NSW state government coastal management policy
B131: Where to look:
B132: - | C132: Your LGA's Asset Management Strategy/Policy
B133: - | C133: State coastal management framework & legislation
B135: Additional resources:
B136: - | C136: NSW Coastal Management Framework
B137: - | C137: NCCOE Guideline 2: Working with the Coast in an Environmentally Sustainable Way (Chapter 3)
B138: Guidelines:
B139: Policy compliance is important as it dictates maintenance schedules, accessibility measures and general servicability of recreational assets.
B140: This tool adopts a checklist-based approach, providing some standard policy objectives for this asset type
B141: Additionally, you may add more fields according to the objectives of your LGA
B144: Policy | F144: Complies? (Y/N) | G144: Weight | H144: Comments
A145: 1 | B145: Adopts strategic plans for adapting to future risks | F145: Yes | G145: 1 | O145: =IF(F145="Yes",1,0) -> 1
A146: =A145+1 -> 2 | F146: No | G146: 1 | O146: =IF(F146="Yes",1,0) -> 0
A147: =A146+1 -> 3 | F147: No | G147: 1 | O147: 0
A148: 4 | F148: No | G148: 1 | O148: 0
A149: 5 | F149: No | G149: 1 | O149: 0
A150: 6 | F150: No | G150: 1 | O150: 0
A151: 7 | F151: No | G151: 1 | O151: 0
A152: 8 | F152: No | G152: 1 | O152: 0
A153: 9 | F153: No | G153: 1 | O153: 0
A154: 10 | F154: No | G154: 1 | O154: 0
B157: Recommended Score: | D157: =SUMPRODUCT(--($B$145:$B$154 <> ""),$G$145:$G$154, $O$145:$O$154)/SUMIF($B$145:$B$154,"<>",$G$145:$G$154)*5 -> 5 | E157: /5
B159: Policy Score: | E159: ="/5" -> /5
B160: Confidence Flag: | D160: =IF(D159="","No value set",IF(F155<3,0,IF(F155<6,1,2))) -> No value set
B161: Comments (explain rationale):
A164: Community Value
B166: What is required:
B167: - | C167: A rough idea of this asset's utilisation by the community
B168: - | C168: Some understanding of this asset's touristic appeal
B170: What is desired:
B171: - | C171: Detailed understanding asset utilisation
B172: - | C172: Study of the asset's consumer surplus
B174: Where to look:
B175: - | C175: Any external studies or community engagements
B176: - | C176: Council members/workers who are particularly familiar with the asset
B178: Additional resources:
B179: - | C179: Total Economic Valuation Framework
B180: - | C180: NCCARF 2016: Exploring valuation methods for climate adaptation options, with particular reference to Australian coastal councils
B181: - | C181: Measuring the Economic Value of a City Park System
B183: Guidelines:
B184: Community value is an intangible criterion which attempts to quantify the degree to which members of the community value the asset.
B185: This criterion aims to encapsulate asset non-use values of bequest, option use, and existence.
B186: Community value is intrinsically a subjective metric and can only adequately be determined through community studies and surveys.
B187: The score for this criterion can be categorised from Very Low to Very High on a 5-point scale which can be directly measured in community surveys on this asset.
B188: Aggregate results from such surveys can be directly input into the Community Value cell along with links to the relevant survey along with comments
B190: There is no true alternative for community perception other than direct engagements, however this tool makes use of a number of proxies in order to provide guidance for this criterion in the absence of survey data or for assets which may be less important to the community.
B191: These involve looking at estimated utilisation and tourist visitation to get a sense of how 'valuable' the asset is to the community
B192: Estimating utilisation and tourist visitation will help you do on-the-fly sensitivity analysis to determine:
C193: 1. How much this asset is valued compared to a theoretical potential based on your LGA
C194: 2. How much consumer surplus would be required to pay for this asset's ongoing maintenance if users were charged for access
B197: Utilisation p/w | C197: Required WTP | D197: ($/trip)
B198: 50 | C198: =IFERROR(((assetMaint+assetValue/assetLife)/52)/B198,0) -> 0
B199: 100 | C199: 0
B200: 200 | C200: 0
B201: 500 | C201: 0
B202: 1000 | C202: 0
B203: 2000 | C203: 0
B204: 5000 | C204: 0
E207: Comments:
C208: Estimated utilisation per week:
C209: Utilisation known? | D209: No
C210: Required WTP: | D210: =IFERROR(((assetMaint+assetValue/assetLife)/52)/D208,"") -> 
B211: Percentage tourist visitation (of total LGA tourists): | D211: 0
C213: Average tourists per week: | D213: =(D211*cdTourCur)/52 -> 0
C215: WTP from study:
C216: ($/person)
B218: Recommended Value: | D218: =IF(D215<>"",IF(D215>=(2*D210),5,IF(D215>=(1.25*D210),4,IF(D215<(0.25*D210),0,IF(D215<(0.5*D210),1,IF(D215<(0.8*D210),2,3))))),IF((D208*52)<(0.005*cdPopCur),0,IF((D208*52)>(0.5*cdPopCur),5,5*(D208*52)/(0.495*cdPopCur)))) -> 0 | E218: /5
B220: Community Value: | E220: ="/5" -> /5
B221: Confidence Flag: | D221: =IF(assetCommunity="","No value set",IF(D215<>"",2,IF(D209="Yes",1,0))) -> No value set
B222: Comments (explain rationale):
A224: Resilience
B226: What is required:
B227: - | C227: Asset design life
B228: - | C228: Understanding of the acceptable level of risk for this asset
B229: - | C229: Basic knowledge of either the local wave climate or flood planning levels
B231: What is desired:
B232: - | C232: Detailed study of local wave climate
B233: - | C233: Understandng of threat recurrence under which the asset sustains damage
B235: Where to look:
B236: - | C236: Climate Change Adaptation Guidelines Part 4 (p 22)
B237: - | C237: Coastal Engineering Expertise
B239: Additional resources:
B240: - | C240: Resilience: A risk management approach | E240: Building resilient infrastructure
B241: Guidelines:
B242: Resilience is a measure of the serviceability of an asset under extreme conditions.
B243: This tool uses a number of different methods to determine the resilience of a coastal recreational asset:
B244: - Probabalistic wave overtopping calculation to estimate likelihood of coastal inundation for assets in or adjacent to the open ocean
B245: - Probabalistic storm surge inundation calculation for all non-estuarine assets
B246: - Hazard categorisation based on the asset's placement within the floodplain
C248: Design life: | D248: =assetLife -> 0 | E248: years
C249: Acceptable risk of encounter: | D249: 0.5 | E249: =-D248/(LN(1-D249)) -> 0 | F249: Comments:
C250: Design threat: | D250: ="1 : " & ROUND(-D248/(LN(1-D249)),0) -> 1 : 0 | E250: years
A251: Is this property in a designated coastal hazard zone? | D251: No | E251: =IF(D251="Yes","*Please refer to the CZMP for this asset's risk assessment and do not rely on this tool to provide estimates.","") -> 
A252: Is this property in a floodplain? | D252: No
C253: Sheltered/Exposed: | D253: =IF(assetShelter="","",assetShelter) -> 
C254: Is this asset in an estuary? | D254: No
C256: =IF(OR(D253="",D254=""),"Please enter data above.",IF(D253="Exposed","Please use overtopping calculation.",IF(D254="No","Please use still water level calculation.","Please use floodplain calculation."))) -> Please enter data above. | E256: =IF(ISNUMBER(SEARCH("overtop",C256)),0,IF(ISNUMBER(SEARCH("still",C256)),1,IF(ISNUMBER(SEARCH("floodplain",C256)),2,-1))) -> -1
B258: Overtopping Calculation
B259: (leave as default unless studies have been performed)
D260: baseline | E260: max
C261: Deepwater wave height, hs (m) | D261: 8
C262: Period, T (s) | D262: 12
C263: Tan B, Beach slope | D263: =IF(assetSlope<>"",assetSlope,0.005) -> 0.005
C264: Deepwater wave length, Lo (m) | D264: =9.81*D262^2/(2*PI()) -> 224.8286388
C265: hb, stillwater depth at theoretical breakpoint (m) = | D265: =0.811*D261*D263^-0.012*(D261/D264)^-0.12 -> 10.31750287
C266: Hb, theoretical breaker height, (m) = | D266: =0.76*D261*D263^(1/7)*(D261/D264)^-0.25 -> 6.567127067
C267: Yb, breaker index = | D267: =D266/D265 -> 0.6365035366
C268: Tm-1,o | D268: =D262/1.1 -> 10.90909091
C269: Lm-1,o | D269: =9.81*D268^2/(2*PI()) -> 185.8087924
C270: setup % | D270: 0.0001 | E270: =0.15 -> 0.15
... 86 more rows

Sheet templateWharf (hidden)
A4: ID HERE
A5: NAME HERE | C5: Lat,Lng | D5: MapURL
A7: Asset Data
B9: Info | C9: Characteristic | D9: Value | E9: Unit | F9: Comment
C10: Year of construction
B11: ⓘ | C11: Cost of initial construction | E11: $
B12: ⓘ | C12: Design life | E12: yrs
B13: ⓘ | C13: Today's construction cost | D13: =IFERROR(INDEX(metaAdjust[Dollar Adjustment],MATCH(currYear-assetConstYr,metaAdjust[Age],0))*assetConstCost,"Enter cost and construction year") -> Enter cost and construction year
B14: ⓘ | C14: Annual maintenance cost | E14: $
B15: ⓘ | C15: Date of last capital works (partial/full reconstruction)
B16: ⓘ | C16: Cost of last capital works | E16: $
C17: Current condition
B18: ⓘ | C18: Number of commercial properties using asset
B19: ⓘ | C19: Approximate annual revenue from these businesses | E19: $ p/a
A21: Physical Characteristics
B23: Info | C23: Characteristic | D23: Value | E23: Unit | F23: Comment
B24: ⓘ | C24: Length | E24: m
C25: Number of moorings
B26: ⓘ | C26: Representative height | E26: m
B27: ⓘ | C27: Oceanbed level | E27: m
B28: ⓘ | C28: Sheltered/Exposed
B29: ⓘ | C29: Coastline angle | E29: ° TN
A31: Multi-Criteria Analysis
A33: Cultural & Heritage Significance
B35: What is required:
B36: - | C36: Access to local cultural/historic knowledge
B37: - | C37: Participants
B39: What is desired:
B40: - | C40: Collaboration with your local aboriginal land council
B41: - | C41: Professional guidance on asset history of LGA
B43: Additional resources:
B44: - | C44: Local Aboriginal Land Councils
B45: - | C45: Aboriginal heritage (places of significance)
B46: - | C46: The cultures and the heritage of NSW
B47: - | C47: NCCOE Guideline 2: Working with the Coast in an Environmentally Sustainable Way (Chapter 6.3)
B48: Guidelines:
B49: Cultural and historic value aims to capture the significance peoples or groups find in places or objects due to cultural teachings and/or heritage claims.
B50: It is distinct from value placed on an asset by peoples due its usability or availability and instead relates to a group's relationship with the asset.
B51: To assess this criterion, please use the following table as a guide to assign this asset a value from 0 to 5.
B60: To increase the confidence of this criterion's score, it is advised that you consult with your local aboriginal land council and seek their input into the cultural significance of your assets
B61: Additionally you may wish to ask around your office or with respected members of the community to get a more complete picture of your assets' significance
B62: Weightings may be assigned for each entry based on the trust and/or significance of the opinion. E.g. Someone with more knowledge of the history of the area might have their opinion granted more 'weight' than someone who has only just arrived.
C64: You | D64: Aboriginal Land Council | E64: Person 2 | F64: Person 3 | G64: Person 4 | H64: Person 5 | I64: Person 6 | J64: Person 7 | K64: Person 8 | L64: Person 9 | M64: Person 10
B65: Scores: (/5)
B66: Weighting | C66: 1 | D66: 5 | E66: 1 | F66: 1 | G66: 1 | H66: 1 | I66: 1 | J66: 1 | K66: 1 | L66: 1 | M66: 1
B68: Recommended Value: | D68: =IFERROR(SUMPRODUCT(C65:M65,C66:M66)/SUMPRODUCT(--(C65:M65<>""),C66:M66),0) -> 0 | E68: /5
B71: Culture & Heritage Score: | E71: ="/5" -> /5
B72: Confidence Flag: | D72: =IF( NOT(ISNUMBER(D71)),"No value set",IF(ISNUMBER(D65),2,IF(COUNT(C65:M65)>=3,1,0))) -> No value set
B73: Comments (explain rationale):
A75: Replaceability
B77: What is required:
B78: - | C78: The replacement cost of this asset
B79: - | C79: The design life of this asset
B81: What is desired:
B82: - | C82: Detailed understanding of current asset availability in the region
B83: - | C83: Assessment of alternative locations
B85: Where to look:
B86: - | C86: Local asset register
B88: Additional resources:
B89: - | C89: IPWEA, Australian Infrastructure Financial Management Manual (AIFMM)
B90: - | C90: Guide to valuation and depreciation under the international accounting standards for the public sector
B91: - | C91: IPWEA, International Infrastructure Management Manual (IIMM)
B92: Guidelines:
B93: This tool uses an LGA's ability to pay, or an asset's replaceability as a baseline proxy for economic value.
B94: This method compares the depreciated replacement cost (also known as the Written Down Value; WDV) with LGA statistics to determine the relative ability for the asset to be replaced.
C96: Non-depreciated replacement cost
C97: Depreciated replacement cost
C98: Comments
B100: Are there other pre-existing assets nearby which could take up demand if this asset was decommissioned/damaged?
D101: No | F101: Comments:
B103: Are there any other nearby sites which could be repurposed to fulfil a similar role?
C104: Y/N | D104: No | F104: Comments:
A105: If yes, are they greenfield or brownfield site(s)?
B106: Approximate cost of site acquisition
C107: (in today's $)
D108: Median income | E108: GRP | G108: Land value | I108: Revenue | K108: Recreational budget
C109: Scores | D109: =IFERROR(IF(D104="Yes",IF(D105="Greenfield",(D106+assetWDV)/(cdIncCurr*assetLife*52),(D106*1.2+assetWDV)/(cdIncCurr*assetLife*52)),assetWDV/(cdIncCurr*assetLife*52)),"") ->  | E109: =IFERROR(IF(D104="Yes",IF(D105="Greenfield",(D106+assetWDV)/cdGRPCur,D106*1.2/cdGRPCur),assetWDV/cdGRPCur),"") -> 0 | G109: =IFERROR(IF(D104="Yes",IF(D105="Greenfield",(D106+assetWDV)/cdLandMeanVal,D106*1.2/cdLandMeanVal),assetWDV/cdLandMeanVal),"") -> 0 | I109: =IFERROR(IF(D104="Yes",IF(D105="Greenfield",(D106+assetWDV)/cdRevCurr,D106*1.2/cdRevCurr),assetWDV/cdRevCurr),"") ->  | K109: =IFERROR(IF(D104="Yes",IF(D105="Greenfield",(D106+assetWDV)/cdRecBudgCurr,D106*1.2/cdRecBudgCurr),assetWDV/cdRecBudgCurr),"") -> 
C110: Recommended values | D110: =IF(D101="Yes",IF(D109>5,3,IF(D109>1,4,5)),IF(D109>10,0,IF(D109>5,1,IF(D109>1,2,IF(D109>0.5,3,IF(D109>=0.1,4,5)))))) -> 0 | E110: =IF($D$101="Yes",IF(E109>0.001,3,IF(E109>0.0001,4,5)),IF(E109>0.001,0,IF(E109>0.0005,1,IF(E109>0.0001,2,IF(E109>0.00005,3,IF(E109>0.00001,4,5)))))) -> 5 | F110: =IF($D$101="Yes",IF(F109>100,3,IF(F109>10,4,5)),IF(F109>100,0,IF(F109>50,1,IF(F109>20,2,IF(F109>10,3,IF(F109>1,4,5)))))) -> 5 | G110: =IF(D101="Yes",IF(G109>2,3,IF(G109>1,4,5)),IF(G109>3,0,IF(G109>2,1,IF(G109>1,2,IF(G109>0.5,3,IF(G109>0.1,4,5)))))) -> 5 | H110: 5 | I110: =IF($D$101="Yes",IF(I109>1,3,IF(I109>0.5,4,5)),IF(I109>1,0,IF(I109>0.5,1,IF(I109>0.25,2,IF(I109>0.1,3,IF(I109>0.01,4,5)))))) -> 0 | J110: 5 | K110: =IF($D$101="Yes",IF(K109>2,3,IF(K109>1,4,5)),IF(K109>2,0,IF(K109>1,1,IF(K109>0.5,2,IF(K109>0.25,3,IF(K109>0.1,4,5)))))) -> 0 | L110: =IF($D$101="Yes",IF(L109>100,3,IF(L109>10,4,5)),IF(L109>100,0,IF(L109>50,1,IF(L109>20,2,IF(L109>10,3,IF(L109>1,4,5)))))) -> 5 | M110: /5
B112: Replaceability Score: | E112: ="/5" -> /5
B113: Confidence Flag: | D113: =IF(NOT(ISNUMBER(D112)),"No value set",IF(AND(D101<>"",D104<>""),IF(OR(ISNUMBER(I109),ISNUMBER(K109)),2,1),0)) -> No value set
B114: Comments (explain rationale):
A117: Policy Alignment
B119: What is required:
B120: - | C120: Understanding of your council's asset management policy and goals
B122: What is desired:
B123: - | C123: Detailed understanding of NSW state government coastal management policy
B124: Where to look:
B125: - | C125: Your LGA's Asset Management Strategy/Policy
B126: - | C126: State coastal management framework & legislation
B128: Additional resources:
B129: - | C129: NSW Coastal Management Framework
B130: - | C130: NCCOE Guideline 2: Working with the Coast in an Environmentally Sustainable Way (Chapter 3)
B131: Guidelines:
B132: Policy compliance is important as it dictates maintenance schedules, accessibility measures and general servicability of recreational assets.
B133: This tool adopts a checklist-based approach, providing some standard policy objectives for this asset type
B134: Additionally, you may add more fields according to the objectives of your LGA
B137: Policy | F137: Complies? (Y/N) | G137: Weight | H137: Comments
A138: 1 | B138: Adopts strategic plans for adapting to future risks | F138: Yes | G138: 1 | O138: =IF(F138="Yes",1,0) -> 1
A139: =A138+1 -> 2 | F139: No | G139: 1 | O139: =IF(F139="Yes",1,0) -> 0
A140: =A139+1 -> 3 | F140: No | G140: 1 | O140: 0
A141: 4 | F141: No | G141: 1 | O141: 0
A142: 5 | F142: No | G142: 1 | O142: 0
A143: 6 | F143: No | G143: 1 | O143: 0
A144: 7 | F144: No | G144: 1 | O144: 0
A145: 8 | F145: No | G145: 1 | O145: 0
A146: 9 | F146: No | G146: 1 | O146: 0
A147: 10 | F147: No | G147: 1 | O147: 0
B148: =COUNTA(B138:B147) -> 1
B150: Recommended Score: | D150: =SUMPRODUCT(--($B$138:$B$147 <> ""),$G$138:$G$147, $O$138:$O$147)/SUMIF($B$138:$B$147,"<>",$G$138:$G$147)*5 -> 5 | E150: /5
B152: Policy Score: | E152: ="/5" -> /5
B153: Confidence Flag: | D153: =IF(D152="","No value set",IF(B148<3,0,IF(B148<6,1,2))) -> No value set
B154: Comments (explain rationale):
A157: Community Value
B159: What is required:
B160: - | C160: A rough idea of this asset's utilisation by the community
B161: - | C161: Some understanding of this asset's touristic appeal
B163: What is desired:
B164: - | C164: Detailed understanding asset utilisation
B165: - | C165: Study of the asset's consumer surplus
B167: Where to look:
B168: - | C168: Any external studies or community engagements
B169: - | C169: Council members/workers who are particularly familiar with the asset
B171: Additional resources:
B172: - | C172: Total Economic Valuation Framework
B173: - | C173: NCCARF 2016: Exploring valuation methods for climate adaptation options, with particular reference to Australian coastal councils
B174: - | C174: Measuring the Economic Value of a City Park System
B176: Guidelines:
B177: Community value is an intangible criterion which attempts to quantify the degree to which members of the community value the asset.
B178: This criterion aims to encapsulate asset non-use values of bequest, option use, and existence.
B179: Community value is intrinsically a subjective metric and can only adequately be determined through community studies and surveys.
B180: The score for this criterion can be categorised from Very Low to Very High on a 5-point scale which can be directly measured in community surveys on this asset.
B181: Aggregate results from such surveys can be directly input into the Community Value cell along with links to the relevant survey along with comments
B183: There is no true alternative for community perception other than direct engagements, however this tool makes use of a number of proxies in order to provide guidance for this criterion in the absence of survey data or for assets which may be less important to the community.
B184: These involve looking at estimated utilisation and tourist visitation to get a sense of how 'valuable' the asset is to the community
B185: Estimating utilisation and tourist visitation will help you do on-the-fly sensitivity analysis to determine:
C186: 1. How much this asset is valued compared to a theoretical potential based on your LGA
C187: 2. How much consumer surplus would be required to pay for this asset's ongoing maintenance if users were charged for access
B190: Utilisation p/w | C190: Required WTP | D190: ($/trip)
B191: 50 | C191: =IFERROR(((assetMaint+assetValue/assetLife)/52)/B191,0) -> 0
B192: 100 | C192: 0
B193: 200 | C193: 0
B194: 500 | C194: 0
B195: 1000 | C195: 0
B196: 2000 | C196: 0
B197: 5000 | C197: 0
E200: Comments:
C201: Estimated utilisation per week:
C202: Utilisation known? | D202: No
C203: Required WTP: | D203: =IFERROR(((assetMaint+assetValue/assetLife)/52)/D201,"") -> 
B204: Percentage tourist visitation (of total LGA tourists): | D204: 0
C206: Average tourists per week: | D206: =(D204*cdTourCur)/52 -> 0
C208: WTP from study:
C209: ($/person)
B211: Recommended Value: | D211: =IF(D208<>"",IF(D208>=(2*D203),5,IF(D208>=(1.25*D203),4,IF(D208<(0.25*D203),0,IF(D208<(0.5*D203),1,IF(D208<(0.8*D203),2,3))))),IF((D201*52)<(0.005*cdPopCur),0,IF((D201*52)>(0.5*cdPopCur),5,5*(D201*52)/(0.495*cdPopCur)))) -> 0 | E211: /5
B213: Community Value: | E213: ="/5" -> /5
B214: Confidence Flag: | D214: =IF(assetCommunity="","No value set",IF(D208<>"",2,IF(D202="Yes",1,0))) -> No value set
B215: Comments (explain rationale):
A217: Resilience
B219: What is required:
B220: - | C220: Asset design life
B221: - | C221: Understanding of the acceptable level of risk for this asset
B222: - | C222: Basic knowledge of either the local wave climate or flood planning levels
B224: What is desired:
B225: - | C225: Detailed study of local wave climate
B226: - | C226: Understandng of threat recurrence under which the asset sustains damage
B228: Where to look:
B229: - | C229: Climate Change Adaptation Guidelines Part 4 (p 22)
B230: - | C230: Coastal Engineering Expertise
B232: Additional resources:
B233: - | C233: Resilience: A risk management approach | E233: Building resilient infrastructure
B234: Guidelines:
B235: Resilience is a measure of the serviceability of an asset under extreme conditions.
B236: This tool uses a number of different methods to determine the resilience of a coastal recreational asset:
B237: - Probabalistic wave overtopping calculation to estimate likelihood of coastal inundation for assets in or adjacent to the open ocean
B238: - Probabalistic storm surge inundation calculation for all non-estuarine assets
B239: - Hazard categorisation based on the asset's placement within the floodplain
C241: Design life: | D241: =assetLife -> 0 | E241: years
C242: Acceptable risk of encounter: | D242: 0.5 | E242: =-D241/(LN(1-D242)) -> 0 | F242: Comments:
C243: Design threat: | D243: ="1 : " & ROUND(-D241/(LN(1-D242)),0) -> 1 : 0 | E243: years
C244: What coastal inundation design (ARI) was this asset built to? | E244: 1 in __ years
A245: Is this property in a designated coastal hazard zone? | D245: No | E245: =IF(D245="Yes","*Please refer to the CZMP for this asset's risk assessment and do not rely on this tool to provide estimates.","") -> 
A246: Is this property in a floodplain? | D246: No
C247: Sheltered/Exposed: | D247: =IF(assetShelter="","",assetShelter) -> 
C248: Is this asset in an estuary? | D248: No
C250: =IF(OR(D247="",D248=""),"Please enter data above.",IF(D247="Exposed","Please use overtopping calculation.",IF(D248="No","Please use still water level calculation.","Please use floodplain calculation."))) -> Please enter data above. | E250: =IF(ISNUMBER(SEARCH("overtop",C250)),0,IF(ISNUMBER(SEARCH("still",C250)),1,IF(ISNUMBER(SEARCH("floodplain",C250)),2,-1))) -> -1
B252: Overtopping Calculation
B253: (leave as default unless studies have been performed)
D254: baseline | E254: max
C255: Deepwater wave height, ho (m) | D255: 0.5
C256: Period, T (s) | D256: 8
C257: Tan B, Beach slope | D257: 0.005
C258: Deepwater wave length, Lo (m) | D258: =9.81*D256^2/(2*PI()) -> 99.92383947
C259: hb, stillwater depth at theoretical breakpoint (m) = | D259: =0.811*D255*D257^-0.012*(D255/D258)^-0.12 -> 0.8159942746
C260: Hb, theoretical breaker height, (m) = | D260: =0.76*D255*D257^(1/7)*(D255/D258)^-0.25 -> 0.6702545996
C261: Yb, breaker index = | D261: =D260/D259 -> 0.8213962039
C262: Tm-1,o | D262: =D256/1.1 -> 7.272727273
C263: Lm-1,o | D263: =9.81*D262^2/(2*PI()) -> 82.58168551
C264: setup % | D264: 0.001 | E264: 0.15
C265: setup | D265: =assetHs*D264 -> 0.0005 | E265: =D255*E264 -> 0.075
C266: bed depth | D266: =IF(assetDepth<>"",assetDepth+cdOffset,-0.5) -> -0.5 | E266: =IF(assetDepth<>"",assetDepth+cdOffset,-0.5) -> -0.5
... 82 more rows

Sheet templatePathway (hidden)
A4: ID HERE
A5: NAME HERE | C5: Lat,Lng | D5: MapURL
A7: Asset Data
B9: Info | C9: Characteristic | D9: Value | E9: Unit | F9: Comment
C10: Year of construction
B11: ⓘ | C11: Cost of initial construction | E11: $
B12: ⓘ | C12: Design life | E12: yrs
B13: ⓘ | C13: Today's construction cost | D13: =IFERROR(INDEX(metaAdjust[Dollar Adjustment],MATCH(currYear-assetConstYr,metaAdjust[Age],0))*assetConstCost,"Enter cost and construction year") -> Enter cost and construction year
B14: ⓘ | C14: Annual maintenance cost | E14: $
B15: ⓘ | C15: Date of last capital works (partial/full reconstruction)
B16: ⓘ | C16: Cost of last capital works | E16: $
C17: Current condition
A19: Physical Characteristics
B21: Info | C21: Characteristic | D21: Value | E21: Unit | F21: Comment
B22: ⓘ | C22: Frontage length | E22: m
B23: ⓘ | C23: Representative height | E23: m AHD
B24: ⓘ | C24: Distance to shoreline | E24: m
B25: ⓘ | C25: Oceanward slope | E25: m/m
B26: ⓘ | C26: Sheltered/Exposed
A29: Multi-Criteria Analysis
A31: Cultural & Heritage Significance
B33: What is required:
B34: - | C34: Access to local cultural/historic knowledge
B35: - | C35: Participants
B37: What is desired:
B38: - | C38: Collaboration with your local aboriginal land council
B39: - | C39: Professional guidance on asset history of LGA
B41: Additional resources:
B42: - | C42: Local Aboriginal Land Councils
B43: - | C43: Aboriginal heritage (places of significance)
B44: - | C44: The cultures and the heritage of NSW
B45: - | C45: NCCOE Guideline 2: Working with the Coast in an Environmentally Sustainable Way (Chapter 6.3)
B46: Guidelines:
B47: Cultural and historic value aims to capture the significance peoples or groups find in places or objects due to cultural teachings and/or heritage claims.
B48: It is distinct from value placed on an asset by peoples due its usability or availability and instead relates to a group's relationship with the asset.
B49: To assess this criterion, please use the following table as a guide to assign this asset a value from 0 to 5.
B58: To increase the confidence of this criterion's score, it is advised that you consult with your local aboriginal land council and seek their input into the cultural significance of your assets
B59: Additionally you may wish to ask around your office or with respected members of the community to get a more complete picture of your assets' significance
B60: Weightings may be assigned for each entry based on the trust and/or significance of the opinion. E.g. Someone with more knowledge of the history of the area might have their opinion granted more 'weight' than someone who has only just arrived.
C62: You | D62: Aboriginal Land Council | E62: Person 2 | F62: Person 3 | G62: Person 4 | H62: Person 5 | I62: Person 6 | J62: Person 7 | K62: Person 8 | L62: Person 9 | M62: Person 10
B63: Scores: (/5)
B64: Weighting | C64: 1 | D64: 5 | E64: 1 | F64: 1 | G64: 1 | H64: 1 | I64: 1 | J64: 1 | K64: 1 | L64: 1 | M64: 1
B66: Recommended Value: | D66: =IFERROR(SUMPRODUCT(C63:M63,C64:M64)/SUMPRODUCT(--(C63:M63<>""),C64:M64),0) -> 0 | E66: /5
B69: Culture & Heritage Score: | E69: ="/5" -> /5
B70: Confidence Flag: | D70: =IF( NOT(ISNUMBER(D69)),"No value set",IF(ISNUMBER(D63),2,IF(COUNT(C63:M63)>=3,1,0))) -> No value set
B71: Comments (explain rationale):
A73: Replaceability
B75: What is required:
B76: - | C76: The replacement cost of this asset
B77: - | C77: The design life of this asset
B79: What is desired:
B80: - | C80: Detailed understanding of current asset availability in the region
B81: - | C81: Assessment of alternative locations
B83: Where to look:
B84: - | C84: Local asset register
B86: Additional resources:
B87: - | C87: IPWEA, Australian Infrastructure Financial Management Manual (AIFMM)
B88: - | C88: Guide to valuation and depreciation under the international accounting standards for the public sector
B89: - | C89: IPWEA, International Infrastructure Management Manual (IIMM)
B90: Guidelines:
B91: This tool uses an LGA's ability to pay, or an asset's replaceability as a baseline proxy for economic value.
B92: This method compares the depreciated replacement cost (also known as the Written Down Value; WDV) with LGA statistics to determine the relative ability for the asset to be replaced.
C94: Non-depreciated replacement cost
C95: Depreciated replacement cost
C96: Comments
B98: Are there other pre-existing assets nearby which could take up demand if this asset was decommissioned/damaged?
D99: No | F99: Comments:
B101: Are there any other nearby sites which could be repurposed to fulfil a similar role?
C102: Y/N | D102: No | F102: Comments:
A103: If yes, are they greenfield or brownfield site(s)?
B104: Approximate cost of site acquisition
C105: (in today's $)
D106: Median income | E106: GRP | G106: Land value | I106: Revenue | K106: Recreational budget
C107: Scores | D107: =IFERROR(IF(D102="Yes",IF(D103="Greenfield",(D104+assetWDV)/(cdIncCurr*assetLife*52),(D104*1.2+assetWDV)/(cdIncCurr*assetLife*52)),assetWDV/(cdIncCurr*assetLife*52)),"") ->  | E107: =IFERROR(IF(D102="Yes",IF(D103="Greenfield",(D104+assetWDV)/cdGRPCur,D104*1.2/cdGRPCur),assetWDV/cdGRPCur),"") -> 0 | G107: =IFERROR(IF(D102="Yes",IF(D103="Greenfield",(D104+assetWDV)/cdLandMeanVal,D104*1.2/cdLandMeanVal),assetWDV/cdLandMeanVal),"") -> 0 | I107: =IFERROR(IF(D102="Yes",IF(D103="Greenfield",(D104+assetWDV)/cdRevCurr,D104*1.2/cdRevCurr),assetWDV/cdRevCurr),"") ->  | K107: =IFERROR(IF(D102="Yes",IF(D103="Greenfield",(D104+assetWDV)/cdRecBudgCurr,D104*1.2/cdRecBudgCurr),assetWDV/cdRecBudgCurr),"") -> 
C108: Recommended values | D108: =IF(D99="Yes",IF(D107>5,3,IF(D107>1,4,5)),IF(D107>10,0,IF(D107>5,1,IF(D107>1,2,IF(D107>0.5,3,IF(D107>=0.1,4,5)))))) -> 0 | E108: =IF($D$101="Yes",IF(E107>0.001,3,IF(E107>0.0001,4,5)),IF(E107>0.001,0,IF(E107>0.0005,1,IF(E107>0.0001,2,IF(E107>0.00005,3,IF(E107>0.00001,4,5)))))) -> 5 | F108: =IF($D$101="Yes",IF(F107>100,3,IF(F107>10,4,5)),IF(F107>100,0,IF(F107>50,1,IF(F107>20,2,IF(F107>10,3,IF(F107>1,4,5)))))) -> 5 | G108: =IF(D99="Yes",IF(G107>2,3,IF(G107>1,4,5)),IF(G107>3,0,IF(G107>2,1,IF(G107>1,2,IF(G107>0.5,3,IF(G107>0.1,4,5)))))) -> 5 | H108: 5 | I108: =IF($D$101="Yes",IF(I107>1,3,IF(I107>0.5,4,5)),IF(I107>1,0,IF(I107>0.5,1,IF(I107>0.25,2,IF(I107>0.1,3,IF(I107>0.01,4,5)))))) -> 0 | J108: 5 | K108: =IF($D$101="Yes",IF(K107>2,3,IF(K107>1,4,5)),IF(K107>2,0,IF(K107>1,1,IF(K107>0.5,2,IF(K107>0.25,3,IF(K107>0.1,4,5)))))) -> 0 | L108: =IF($D$101="Yes",IF(L107>100,3,IF(L107>10,4,5)),IF(L107>100,0,IF(L107>50,1,IF(L107>20,2,IF(L107>10,3,IF(L107>1,4,5)))))) -> 5 | M108: /5
B110: Replaceability Score: | E110: ="/5" -> /5
B111: Confidence Flag: | D111: =IF(NOT(ISNUMBER(D110)),"No value set",IF(AND(D99<>"",D102<>""),IF(OR(ISNUMBER(I107),ISNUMBER(K107)),2,1),0)) -> No value set
B112: Comments (explain rationale):
A115: Policy Alignment
B117: What is required:
B118: - | C118: Understanding of your council's asset management policy and goals
B120: What is desired:
B121: - | C121: Detailed understanding of NSW state government coastal management policy
B122: Where to look:
B123: - | C123: Your LGA's Asset Management Strategy/Policy
B124: - | C124: State coastal management framework & legislation
B126: Additional resources:
B127: - | C127: NSW Coastal Management Framework
B128: - | C128: NCCOE Guideline 2: Working with the Coast in an Environmentally Sustainable Way (Chapter 3)
B129: Guidelines:
B130: Policy compliance is important as it dictates maintenance schedules, accessibility measures and general servicability of recreational assets.
B131: This tool adopts a checklist-based approach, providing some standard policy objectives for this asset type
B132: Additionally, you may add more fields according to the objectives of your LGA
B135: Policy | F135: Complies? (Y/N) | G135: Weight | H135: Comments
A136: 1 | B136: Adopts strategic plans for adapting to future risks | F136: Yes | G136: 1 | O136: =IF(F136="Yes",1,0) -> 1
A137: =A136+1 -> 2 | F137: No | G137: 1 | O137: =IF(F137="Yes",1,0) -> 0
A138: =A137+1 -> 3 | F138: No | G138: 1 | O138: 0
A139: 4 | F139: No | G139: 1 | O139: 0
A140: 5 | F140: No | G140: 1 | O140: 0
A141: 6 | F141: No | G141: 1 | O141: 0
A142: 7 | F142: No | G142: 1 | O142: 0
A143: 8 | F143: No | G143: 1 | O143: 0
A144: 9 | F144: No | G144: 1 | O144: 0
A145: 10 | F145: No | G145: 1 | O145: 0
B146: =COUNTA(B136:B145) -> 1
B148: Recommended Score: | D148: =SUMPRODUCT(--($B$136:$B$145 <> ""),$G$136:$G$145, $O$136:$O$145)/SUMIF($B$136:$B$145,"<>",$G$136:$G$145)*5 -> 5 | E148: /5
B150: Policy Score: | E150: ="/5" -> /5
B151: Confidence Flag: | D151: =IF(D150="","No value set",IF(B146<3,0,IF(B146<6,1,2))) -> No value set
B152: Comments (explain rationale):
A155: Community Value
B157: What is required:
B158: - | C158: A rough idea of this asset's utilisation by the community
B159: - | C159: Some understanding of this asset's touristic appeal
B161: What is desired:
B162: - | C162: Detailed understanding asset utilisation
B163: - | C163: Study of the asset's consumer surplus
B165: Where to look:
B166: - | C166: Any external studies or community engagements
B167: - | C167: Council members/workers who are particularly familiar with the asset
B169: Additional resources:
B170: - | C170: Total Economic Valuation Framework
B171: - | C171: NCCARF 2016: Exploring valuation methods for climate adaptation options, with particular reference to Australian coastal councils
B172: - | C172: Measuring the Economic Value of a City Park System
B174: Guidelines:
B175: Community value is an intangible criterion which attempts to quantify the degree to which members of the community value the asset.
B176: This criterion aims to encapsulate asset non-use values of bequest, option use, and existence.
B177: Community value is intrinsically a subjective metric and can only adequately be determined through community studies and surveys.
B178: The score for this criterion can be categorised from Very Low to Very High on a 5-point scale which can be directly measured in community surveys on this asset.
B179: Aggregate results from such surveys can be directly input into the Community Value cell along with links to the relevant survey along with comments
B181: There is no true alternative for community perception other than direct engagements, however this tool makes use of a number of proxies in order to provide guidance for this criterion in the absence of survey data or for assets which may be less important to the community.
B182: These involve looking at estimated utilisation and tourist visitation to get a sense of how 'valuable' the asset is to the community
B183: Estimating utilisation and tourist visitation will help you do on-the-fly sensitivity analysis to determine:
C184: 1. How much this asset is valued compared to a theoretical potential based on your LGA
C185: 2. How much consumer surplus would be required to pay for this asset's ongoing maintenance if users were charged for access
B188: Utilisation p/w | C188: Required WTP | D188: ($/trip)
B189: 50 | C189: =IFERROR(((assetMaint+assetValue/assetLife)/52)/B189,0) -> 0
B190: 100 | C190: 0
B191: 200 | C191: 0
B192: 500 | C192: 0
B193: 1000 | C193: 0
B194: 2000 | C194: 0
B195: 5000 | C195: 0
E198: Comments:
C199: Estimated utilisation per week:
C200: Utilisation known? | D200: No
C201: Required WTP: | D201: =IFERROR(((assetMaint+assetValue/assetLife)/52)/D199,"") -> 
B202: Percentage tourist visitation (of total LGA tourists): | D202: 0
C204: Average tourists per week: | D204: =(D202*cdTourCur)/52 -> 0
C206: WTP from study:
C207: ($/person)
B209: Recommended Value: | D209: =IF(D206<>"",IF(D206>=(2*D201),5,IF(D206>=(1.25*D201),4,IF(D206<(0.25*D201),0,IF(D206<(0.5*D201),1,IF(D206<(0.8*D201),2,3))))),IF((D199*52)<(0.005*cdPopCur),0,IF((D199*52)>(0.5*cdPopCur),5,5*(D199*52)/(0.495*cdPopCur)))) -> 0 | E209: /5
B211: Community Value: | E211: ="/5" -> /5
B212: Confidence Flag: | D212: =IF(assetCommunity="","No value set",IF(D206<>"",2,IF(D200="Yes",1,0))) -> No value set
B213: Comments (explain rationale):
A215: Resilience
B217: What is required:
B218: - | C218: Asset design life
B219: - | C219: Understanding of the acceptable level of risk for this asset
B220: - | C220: Basic knowledge of either the local wave climate or flood planning levels
B222: What is desired:
B223: - | C223: Detailed study of local wave climate
B224: - | C224: Understandng of threat recurrence under which the asset sustains damage
B226: Where to look:
B227: - | C227: Climate Change Adaptation Guidelines Part 4 (p 22)
B228: - | C228: Coastal Engineering Expertise
B230: Additional resources:
B231: - | C231: Resilience: A risk management approach | E231: Building resilient infrastructure
B232: Guidelines:
B233: Resilience is a measure of the serviceability of an asset under extreme conditions.
B234: This tool uses a number of different methods to determine the resilience of a coastal recreational asset:
B235: - Probabalistic wave overtopping calculation to estimate likelihood of coastal inundation for assets in or adjacent to the open ocean
B236: - Probabalistic storm surge inundation calculation for all non-estuarine assets
B237: - Hazard categorisation based on the asset's placement within the floodplain
C239: Design life: | D239: =assetLife -> 0 | E239: years
C240: Acceptable risk of encounter: | D240: 0.5 | E240: =-D239/(LN(1-D240)) -> 0 | F240: Comments:
C241: Design threat: | D241: ="1 : " & ROUND(-D239/(LN(1-D240)),0) -> 1 : 0 | E241: years
A242: Is this property in a designated coastal hazard zone? | D242: No | E242: =IF(D242="Yes","*Please refer to the CZMP for this asset's risk assessment and do not rely on this tool to provide estimates.","") -> 
A243: Is this property in a floodplain? | D243: No
C244: Sheltered/Exposed: | D244: =IF(assetShelter="","",assetShelter) -> 
C245: Is this asset in an estuary? | D245: No
C247: =IF(OR(D244="",D245=""),"Please enter data above.",IF(D244="Exposed","Please use overtopping calculation.",IF(D245="No","Please use still water level calculation.","Please use floodplain calculation."))) -> Please enter data above. | E247: =IF(ISNUMBER(SEARCH("overtop",C247)),0,IF(ISNUMBER(SEARCH("still",C247)),1,IF(ISNUMBER(SEARCH("floodplain",C247)),2,-1))) -> -1
B249: Overtopping Calculation
B250: (leave as default unless studies have been performed)
D251: baseline | E251: max
C252: Deepwater wave height, hs (m) | D252: 8
C253: Period, T (s) | D253: 12
C254: Tan B, Beach slope | D254: =IF(assetSlope<>"",assetSlope,0.005) -> 0.005
C255: Deepwater wave length, Lo (m) | D255: =9.81*D253^2/(2*PI()) -> 224.8286388
C256: hb, stillwater depth at theoretical breakpoint (m) = | D256: =0.811*D252*D254^-0.012*(D252/D255)^-0.12 -> 10.31750287
C257: Hb, theoretical breaker height, (m) = | D257: =0.76*D252*D254^(1/7)*(D252/D255)^-0.25 -> 6.567127067
C258: Yb, breaker index = | D258: =D257/D256 -> 0.6365035366
C259: Tm-1,o | D259: =D253/1.1 -> 10.90909091
C260: Lm-1,o | D260: =9.81*D259^2/(2*PI()) -> 185.8087924
C261: setup % | D261: 0.0001 | E261: =0.15 -> 0.15
C262: setup | D262: =assetHs*D261 -> 0.0008 | E262: =assetHs*E261 -> 1.2
C263: bed depth | D263: 0 | E263: 0
C264: WL | D264: =INDEX(Councils[MHW],metaRow) + D262 -> 0.5454807692 | E264: =INDEX(Councils[MHW],metaRow) + E262 -> 1.744680769
C265: depth | D265: =D264-D263 -> 0.5454807692 | E265: =E264-E263 -> 1.744680769
C266: design wave | D266: =D265*D258 -> 0.3472004388 | E266: =E265*D258 -> 1.11049548
C267: steepness | D267: =D266/D260 -> 0.001868589932 | E267: =E266/D260 -> 0.005976549686 | G267: buoy: | H267: =INDEX(Councils[OffshoreBuoy],metaRow) -> Sydney
... 80 more rows

Sheet templatePool (hidden)
A4: ID HERE
A5: NAME HERE | C5: Lat,Lng | D5: MapURL
A7: Asset Data
B9: Info | C9: Characteristic | D9: Value | E9: Unit | F9: Comment
C10: Year of construction
B11: ⓘ | C11: Cost of initial construction | E11: $
B12: ⓘ | C12: Design life | E12: yrs
B13: ⓘ | C13: Today's construction cost | D13: =IFERROR(INDEX(metaAdjust[Dollar Adjustment],MATCH(currYear-assetConstYr,metaAdjust[Age],0))*assetConstCost,"Enter cost and construction year") -> Enter cost and construction year
B14: ⓘ | C14: Annual maintenance cost | E14: $
B15: ⓘ | C15: Date of last capital works (partial/full reconstruction)
B16: ⓘ | C16: Cost of last capital works | E16: $
C17: Current condition
A19: Physical Characteristics
B21: Info | C21: Characteristic | D21: Value | E21: Unit | F21: Comment
B22: ⓘ | C22: Frontage length | E22: m
B23: ⓘ | C23: Representative height | E23: m
B24: ⓘ | C24: Oceanbed level | E24: m
B25: ⓘ | C25: Sheltered/Exposed
B26: ⓘ | C26: Coastline angle | E26: ° TN
A28: Multi-Criteria Analysis
A30: Cultural & Heritage Significance
B32: What is required:
B33: - | C33: Access to local cultural/historic knowledge
B34: - | C34: Participants
B36: What is desired:
B37: - | C37: Collaboration with your local aboriginal land council
B38: - | C38: Professional guidance on asset history of LGA
B40: Additional resources:
B41: - | C41: Local Aboriginal Land Councils
B42: - | C42: Aboriginal heritage (places of significance)
B43: - | C43: The cultures and the heritage of NSW
B44: - | C44: NCCOE Guideline 2: Working with the Coast in an Environmentally Sustainable Way (Chapter 6.3)
B45: Guidelines:
B46: Cultural and historic value aims to capture the significance peoples or groups find in places or objects due to cultural teachings and/or heritage claims.
B47: It is distinct from value placed on an asset by peoples due its usability or availability and instead relates to a group's relationship with the asset.
B48: To assess this criterion, please use the following table as a guide to assign this asset a value from 0 to 5.
B57: To increase the confidence of this criterion's score, it is advised that you consult with your local aboriginal land council and seek their input into the cultural significance of your assets
B58: Additionally you may wish to ask around your office or with respected members of the community to get a more complete picture of your assets' significance
B59: Weightings may be assigned for each entry based on the trust and/or significance of the opinion. E.g. Someone with more knowledge of the history of the area might have their opinion granted more 'weight' than someone who has only just arrived.
C61: You | D61: Aboriginal Land Council | E61: Person 2 | F61: Person 3 | G61: Person 4 | H61: Person 5 | I61: Person 6 | J61: Person 7 | K61: Person 8 | L61: Person 9 | M61: Person 10
B62: Scores: (/5)
B63: Weighting | C63: 1 | D63: 5 | E63: 1 | F63: 1 | G63: 1 | H63: 1 | I63: 1 | J63: 1 | K63: 1 | L63: 1 | M63: 1
B65: Recommended Value: | D65: =IFERROR(SUMPRODUCT(C62:M62,C63:M63)/SUMPRODUCT(--(C62:M62<>""),C63:M63),0) -> 0 | E65: /5
B68: Culture & Heritage Score: | E68: ="/5" -> /5
B69: Confidence Flag: | D69: =IF( NOT(ISNUMBER(D68)),"No value set",IF(ISNUMBER(D62),2,IF(COUNT(C62:M62)>=3,1,0))) -> No value set
B70: Comments (explain rationale):
A72: Replaceability
B74: What is required:
B75: - | C75: The replacement cost of this asset
B76: - | C76: The design life of this asset
B78: What is desired:
B79: - | C79: Detailed understanding of current asset availability in the region
B80: - | C80: Assessment of alternative locations
B82: Where to look:
B83: - | C83: Local asset register
B85: Additional resources:
B86: - | C86: IPWEA, Australian Infrastructure Financial Management Manual (AIFMM)
B87: - | C87: Guide to valuation and depreciation under the international accounting standards for the public sector
B88: - | C88: IPWEA, International Infrastructure Management Manual (IIMM)
B89: Guidelines:
B90: This tool uses an LGA's ability to pay, or an asset's replaceability as a baseline proxy for economic value.
B91: This method compares the depreciated replacement cost (also known as the Written Down Value; WDV) with LGA statistics to determine the relative ability for the asset to be replaced.
C93: Non-depreciated replacement cost
C94: Depreciated replacement cost
C95: Comments
B97: Are there other pre-existing assets nearby which could take up demand if this asset was decommissioned/damaged?
D98: No | F98: Comments:
B100: Are there any other nearby sites which could be repurposed to fulfil a similar role?
C101: Y/N | D101: No | F101: Comments:
A102: If yes, are they greenfield or brownfield site(s)?
B103: Approximate cost of site acquisition
C104: (in today's $)
D105: Median income | E105: GRP | G105: Land value | I105: Revenue | K105: Recreational budget
C106: Scores | D106: =IFERROR(IF(D101="Yes",IF(D102="Greenfield",(D103+assetWDV)/(cdIncCurr*assetLife*52),(D103*1.2+assetWDV)/(cdIncCurr*assetLife*52)),assetWDV/(cdIncCurr*assetLife*52)),"") ->  | E106: =IFERROR(IF(D101="Yes",IF(D102="Greenfield",(D103+assetWDV)/cdGRPCur,D103*1.2/cdGRPCur),assetWDV/cdGRPCur),"") -> 0 | G106: =IFERROR(IF(D101="Yes",IF(D102="Greenfield",(D103+assetWDV)/cdLandMeanVal,D103*1.2/cdLandMeanVal),assetWDV/cdLandMeanVal),"") -> 0 | I106: =IFERROR(IF(D101="Yes",IF(D102="Greenfield",(D103+assetWDV)/cdRevCurr,D103*1.2/cdRevCurr),assetWDV/cdRevCurr),"") ->  | K106: =IFERROR(IF(D101="Yes",IF(D102="Greenfield",(D103+assetWDV)/cdRecBudgCurr,D103*1.2/cdRecBudgCurr),assetWDV/cdRecBudgCurr),"") -> 
C107: Recommended values | D107: =IF(D98="Yes",IF(D106>5,3,IF(D106>1,4,5)),IF(D106>10,0,IF(D106>5,1,IF(D106>1,2,IF(D106>0.5,3,IF(D106>=0.1,4,5)))))) -> 0 | E107: =IF($D$101="Yes",IF(E106>0.001,3,IF(E106>0.0001,4,5)),IF(E106>0.001,0,IF(E106>0.0005,1,IF(E106>0.0001,2,IF(E106>0.00005,3,IF(E106>0.00001,4,5)))))) -> 5 | F107: =IF($D$101="Yes",IF(F106>100,3,IF(F106>10,4,5)),IF(F106>100,0,IF(F106>50,1,IF(F106>20,2,IF(F106>10,3,IF(F106>1,4,5)))))) -> 5 | G107: =IF(D98="Yes",IF(G106>2,3,IF(G106>1,4,5)),IF(G106>3,0,IF(G106>2,1,IF(G106>1,2,IF(G106>0.5,3,IF(G106>0.1,4,5)))))) -> 5 | H107: 5 | I107: =IF($D$101="Yes",IF(I106>1,3,IF(I106>0.5,4,5)),IF(I106>1,0,IF(I106>0.5,1,IF(I106>0.25,2,IF(I106>0.1,3,IF(I106>0.01,4,5)))))) -> 0 | J107: 5 | K107: =IF($D$101="Yes",IF(K106>2,3,IF(K106>1,4,5)),IF(K106>2,0,IF(K106>1,1,IF(K106>0.5,2,IF(K106>0.25,3,IF(K106>0.1,4,5)))))) -> 0 | L107: =IF($D$101="Yes",IF(L106>100,3,IF(L106>10,4,5)),IF(L106>100,0,IF(L106>50,1,IF(L106>20,2,IF(L106>10,3,IF(L106>1,4,5)))))) -> 5 | M107: /5
B109: Replaceability Score: | E109: ="/5" -> /5
B110: Confidence Flag: | D110: =IF(NOT(ISNUMBER(D109)),"No value set",IF(AND(D98<>"",D101<>""),IF(OR(ISNUMBER(I106),ISNUMBER(K106)),2,1),0)) -> No value set
B111: Comments (explain rationale):
A114: Policy Alignment
B116: What is required:
B117: - | C117: Understanding of your council's asset management policy and goals
B119: What is desired:
B120: - | C120: Detailed understanding of NSW state government coastal management policy
B121: Where to look:
B122: - | C122: Your LGA's Asset Management Strategy/Policy
B123: - | C123: State coastal management framework & legislation
B125: Additional resources:
B126: - | C126: NSW Coastal Management Framework
B127: - | C127: NCCOE Guideline 2: Working with the Coast in an Environmentally Sustainable Way (Chapter 3)
B128: Guidelines:
B129: Policy compliance is important as it dictates maintenance schedules, accessibility measures and general servicability of recreational assets.
B130: This tool adopts a checklist-based approach, providing some standard policy objectives for this asset type
B131: Additionally, you may add more fields according to the objectives of your LGA
B134: Policy | F134: Complies? (Y/N) | G134: Weight | H134: Comments
A135: 1 | B135: Adopts strategic plans for adapting to future risks | F135: Yes | G135: 1 | O135: =IF(F135="Yes",1,0) -> 1
A136: =A135+1 -> 2 | F136: No | G136: 1 | O136: =IF(F136="Yes",1,0) -> 0
A137: =A136+1 -> 3 | F137: No | G137: 1 | O137: 0
A138: 4 | F138: No | G138: 1 | O138: 0
A139: 5 | F139: No | G139: 1 | O139: 0
A140: 6 | F140: No | G140: 1 | O140: 0
A141: 7 | F141: No | G141: 1 | O141: 0
A142: 8 | F142: No | G142: 1 | O142: 0
A143: 9 | F143: No | G143: 1 | O143: 0
A144: 10 | F144: No | G144: 1 | O144: 0
B145: =COUNTA(B135:B144) -> 1
B147: Recommended Score: | D147: =SUMPRODUCT(--($B$135:$B$144 <> ""),$G$135:$G$144, $O$135:$O$144)/SUMIF($B$135:$B$144,"<>",$G$135:$G$144)*5 -> 5 | E147: /5
B149: Policy Score: | E149: ="/5" -> /5
B150: Confidence Flag: | D150: =IF(D149="","No value set",IF(B145<3,0,IF(B145<6,1,2))) -> No value set
B151: Comments (explain rationale):
A154: Community Value
B156: What is required:
B157: - | C157: A rough idea of this asset's utilisation by the community
B158: - | C158: Some understanding of this asset's touristic appeal
B160: What is desired:
B161: - | C161: Detailed understanding asset utilisation
B162: - | C162: Study of the asset's consumer surplus
B164: Where to look:
B165: - | C165: Any external studies or community engagements
B166: - | C166: Council members/workers who are particularly familiar with the asset
B168: Additional resources:
B169: - | C169: Total Economic Valuation Framework
B170: - | C170: NCCARF 2016: Exploring valuation methods for climate adaptation options, with particular reference to Australian coastal councils
B171: - | C171: Measuring the Economic Value of a City Park System
B173: Guidelines:
B174: Community value is an intangible criterion which attempts to quantify the degree to which members of the community value the asset.
B175: This criterion aims to encapsulate asset non-use values of bequest, option use, and existence.
B176: Community value is intrinsically a subjective metric and can only adequately be determined through community studies and surveys.
B177: The score for this criterion can be categorised from Very Low to Very High on a 5-point scale which can be directly measured in community surveys on this asset.
B178: Aggregate results from such surveys can be directly input into the Community Value cell along with links to the relevant survey along with comments
B180: There is no true alternative for community perception other than direct engagements, however this tool makes use of a number of proxies in order to provide guidance for this criterion in the absence of survey data or for assets which may be less important to the community.
B181: These involve looking at estimated utilisation and tourist visitation to get a sense of how 'valuable' the asset is to the community
B182: Estimating utilisation and tourist visitation will help you do on-the-fly sensitivity analysis to determine:
C183: 1. How much this asset is valued compared to a theoretical potential based on your LGA
C184: 2. How much consumer surplus would be required to pay for this asset's ongoing maintenance if users were charged for access
B187: Utilisation p/w | C187: Required WTP | D187: ($/trip)
B188: 50 | C188: =IFERROR(((assetMaint+assetValue/assetLife)/52)/B188,0) -> 0
B189: 100 | C189: 0
B190: 200 | C190: 0
B191: 500 | C191: 0
B192: 1000 | C192: 0
B193: 2000 | C193: 0
B194: 5000 | C194: 0
E197: Comments:
C198: Estimated utilisation per week:
C199: Utilisation known? | D199: No
C200: Required WTP: | D200: =IFERROR(((assetMaint+assetValue/assetLife)/52)/D198,"") -> 
B201: Percentage tourist visitation (of total LGA tourists): | D201: 0
C203: Average tourists per week: | D203: =(D201*cdTourCur)/52 -> 0
C205: WTP from study:
C206: ($/person)
B208: Recommended Value: | D208: =IF(D205<>"",IF(D205>=(2*D200),5,IF(D205>=(1.25*D200),4,IF(D205<(0.25*D200),0,IF(D205<(0.5*D200),1,IF(D205<(0.8*D200),2,3))))),IF((D198*52)<(0.005*cdPopCur),0,IF((D198*52)>(0.5*cdPopCur),5,5*(D198*52)/(0.495*cdPopCur)))) -> 0 | E208: /5
B210: Community Value: | E210: ="/5" -> /5
B211: Confidence Flag: | D211: =IF(assetCommunity="","No value set",IF(D205<>"",2,IF(D199="Yes",1,0))) -> No value set
B212: Comments (explain rationale):
A214: Resilience
B216: What is required:
B217: - | C217: Asset design life
B218: - | C218: Understanding of the acceptable level of risk for this asset
B219: - | C219: Basic knowledge of either the local wave climate or flood planning levels
B221: What is desired:
B222: - | C222: Detailed study of local wave climate
B223: - | C223: Understandng of threat recurrence under which the asset sustains damage
B225: Where to look:
B226: - | C226: Climate Change Adaptation Guidelines Part 4 (p 22)
B227: - | C227: Coastal Engineering Expertise
B229: Additional resources:
B230: - | C230: Resilience: A risk management approach | E230: Building resilient infrastructure
B231: Guidelines:
B232: Resilience is a measure of the serviceability of an asset under extreme conditions.
B233: This tool uses a number of different methods to determine the resilience of a coastal recreational asset:
B234: - Probabalistic wave overtopping calculation to estimate likelihood of coastal inundation for assets in or adjacent to the open ocean
B235: - Probabalistic storm surge inundation calculation for all non-estuarine assets
B236: - Hazard categorisation based on the asset's placement within the floodplain
C238: Design life: | D238: =assetLife -> 0 | E238: years
C239: Acceptable risk of encounter: | D239: 0.5 | E239: =-D238/(LN(1-D239)) -> 0 | F239: Comments:
C240: Design threat: | D240: ="1 : " & ROUND(-D238/(LN(1-D239)),0) -> 1 : 0 | E240: years
C241: Design serviceability | E241: days out of service per year
A242: Is this property in a designated coastal hazard zone? | D242: No | E242: =IF(D242="Yes","*Please refer to the CZMP for this asset's risk assessment and do not rely on this tool to provide estimates.","") -> 
A243: Is this property in a floodplain? | D243: No
C244: Sheltered/Exposed: | D244: =IF(assetShelter="","",assetShelter) -> 
C245: Is this asset in an estuary? | D245: No
C247: =IF(OR(D244="",D245=""),"Please enter data above.",IF(D244="Exposed","Please use overtopping calculation.",IF(D245="No","Please use still water level calculation.","Please use floodplain calculation."))) -> Please enter data above. | E247: =IF(ISNUMBER(SEARCH("overtop",C247)),0,IF(ISNUMBER(SEARCH("still",C247)),1,IF(ISNUMBER(SEARCH("floodplain",C247)),2,-1))) -> -1
B249: Overtopping Calculation
B250: (leave as default unless studies have been performed)
D251: baseline | E251: max
C252: Deepwater wave height, ho (m) | D252: 0.5
C253: Period, T (s) | D253: 8
C254: Tan B, Beach slope | D254: 0.005
C255: Deepwater wave length, Lo (m) | D255: =9.81*D253^2/(2*PI()) -> 99.92383947
C256: hb, stillwater depth at theoretical breakpoint (m) = | D256: =0.811*D252*D254^-0.012*(D252/D255)^-0.12 -> 0.8159942746
C257: Hb, theoretical breaker height, (m) = | D257: =0.76*D252*D254^(1/7)*(D252/D255)^-0.25 -> 0.6702545996
C258: Yb, breaker index = | D258: =D257/D256 -> 0.8213962039
C259: Tm-1,o | D259: =D253/1.1 -> 7.272727273
C260: Lm-1,o | D260: =9.81*D259^2/(2*PI()) -> 82.58168551
C261: setup % | D261: 0.001 | E261: 0.15
C262: setup | D262: =assetHs*D261 -> 0.0005 | E262: =D252*E261 -> 0.075
C263: bed depth | D263: =IF(assetDepth<>"",assetDepth+cdOffset,-0.5) -> -0.5 | E263: =IF(assetDepth<>"",assetDepth+cdOffset,-0.5) -> -0.5
C264: WL | D264: =INDEX(Councils[MHW],metaRow)+D262 -> 0.5451807692 | E264: =INDEX(Councils[MHW],metaRow)+E262 -> 0.6196807692
C265: depth | D265: =D264-D263 -> 1.045180769 | E265: =E264-E263 -> 1.119680769
C266: design wave | D266: =D265*$D$258 -> 0.8585075163 | E266: =E265*$D$258 -> 0.9197015335 | G266: buoy: | H266: =INDEX(Councils[OffshoreBuoy],metaRow) -> Sydney
... 80 more rows

Sheet templateBeach (hidden)
A4: ID HERE
A5: NAME HERE | C5: Lat,Lng | D5: MapURL
A7: Asset Data
B9: Info | C9: Characteristic | D9: Value | E9: Unit | F9: Comment
B10: ⓘ | C10: Annual maintenance cost | E10: $
B11: ⓘ | C11: Required nourishment per annum | E11: m3/yr
B12: ⓘ | C12: Cost of last capital works | E12: $
A14: Physical Characteristics
B17: Info | C17: Characteristic | D17: Value | E17: Unit | F17: Comment
B18: ⓘ | C18: Width | E18: m
B19: ⓘ | C19: Frontage length | E19: m
B20: ⓘ | C20: Slope | E20: m/m
B21: ⓘ | C21: Sheltered/Exposed
B22: ⓘ | C22: Established foredune?
B23: ⓘ | C23: Vegetation line/height | E23: m
A25: Multi-Criteria Analysis
A27: Cultural & Heritage Significance
B29: What is required:
B30: - | C30: Access to local cultural/historic knowledge
B31: - | C31: Participants
B33: What is desired:
B34: - | C34: Collaboration with your local aboriginal land council
B35: - | C35: Professional guidance on asset history of LGA
B37: Additional resources:
B38: - | C38: Local Aboriginal Land Councils
B39: - | C39: Aboriginal heritage (places of significance)
B40: - | C40: The cultures and the heritage of NSW
B41: - | C41: NCCOE Guideline 2: Working with the Coast in an Environmentally Sustainable Way (Chapter 6.3)
B42: Guidelines:
B43: Cultural and historic value aims to capture the significance peoples or groups find in places or objects due to cultural teachings and/or heritage claims.
B44: It is distinct from value placed on an asset by peoples due its usability or availability and instead relates to a group's relationship with the asset.
B45: To assess this criterion, please use the following table as a guide to assign this asset a value from 0 to 5.
B54: To increase the confidence of this criterion's score, it is advised that you consult with your local aboriginal land council and seek their input into the cultural significance of your assets
B55: Additionally you may wish to ask around your office or with respected members of the community to get a more complete picture of your assets' significance
B56: Weightings may be assigned for each entry based on the trust and/or significance of the opinion. E.g. Someone with more knowledge of the history of the area might have their opinion granted more 'weight' than someone who has only just arrived.
C58: You | D58: Aboriginal Land Council | E58: Person 2 | F58: Person 3 | G58: Person 4 | H58: Person 5 | I58: Person 6 | J58: Person 7 | K58: Person 8 | L58: Person 9 | M58: Person 10
B59: Scores: (/5)
B60: Weighting | C60: 1 | D60: 5 | E60: 1 | F60: 1 | G60: 1 | H60: 1 | I60: 1 | J60: 1 | K60: 1 | L60: 1 | M60: 1
B62: Recommended Value: | D62: =IFERROR(SUMPRODUCT(C59:M59,C60:M60)/SUMPRODUCT(--(C59:M59<>""),C60:M60),0) -> 0 | E62: /5
B65: Culture & Heritage Score: | E65: ="/5" -> /5
B66: Confidence Flag: | D66: =IF( NOT(ISNUMBER(D65)),"No value set",IF(ISNUMBER(D59),2,IF(COUNT(C59:M59)>=3,1,0))) -> No value set
B67: Comments (explain rationale):
A69: Replaceability
B71: What is required:
B72: - | C72: The replacement cost of this asset
B74: What is desired:
B75: - | C75: Detailed understanding of current asset availability in the region
B76: - | C76: Assessment of alternative locations
B78: Where to look:
B79: - | C79: Local asset register
B81: Additional resources:
B82: - | C82: IPWEA, Australian Infrastructure Financial Management Manual (AIFMM)
B83: - | C83: Guide to valuation and depreciation under the international accounting standards for the public sector
B84: - | C84: IPWEA, International Infrastructure Management Manual (IIMM)
B85: Guidelines:
B86: This tool uses an LGA's ability to pay, or an asset's replaceability as a baseline proxy for economic value.
B87: This method compares the depreciated replacement cost (also known as the Written Down Value; WDV) with LGA statistics to determine the relative ability for the asset to be replaced.
C89: Estimated replacement cost
C90: Depreciated replacement cost (if known)
C91: Comments
B93: Are there other beaches nearby which could take up demand if this asset was damaged or closed?
D94: No | F94: Comments:
D96: Median income | E96: GRP | G96: Land value | I96: Revenue | K96: Recreational budget
C97: Scores | D97: =IFERROR(assetWDV/(cdIncCurr*assetLife*52),"") ->  | E97: =IFERROR(assetWDV/cdGRPCur,"") -> 0 | G97: =IFERROR(assetWDV/cdLandMeanVal,"") -> 0 | I97: =IFERROR(assetWDV/cdRevCurr,"") ->  | K97: =IFERROR(assetWDV/cdRecBudgCurr,"") -> 
C98: Recommended values | D98: =IF(D94="Yes",IF(D97>5,3,IF(D97>1,4,5)),IF(D97>10,0,IF(D97>5,1,IF(D97>1,2,IF(D97>0.5,3,IF(D97>=0.1,4,5)))))) -> 0 | E98: =IF(D94="Yes",IF(E97>0.001,3,IF(E97>0.0001,4,5)),IF(E97>0.001,0,IF(E97>0.0005,1,IF(E97>0.0001,2,IF(E97>0.00005,3,IF(E97>0.00001,4,5)))))) -> 5 | F98: =IF($D$96="Yes",IF(F97>100,3,IF(F97>10,4,5)),IF(F97>100,0,IF(F97>50,1,IF(F97>20,2,IF(F97>10,3,IF(F97>1,4,5)))))) -> 5 | G98: =IF(D94="Yes",IF(G97>2,3,IF(G97>1,4,5)),IF(G97>3,0,IF(G97>2,1,IF(G97>1,2,IF(G97>0.5,3,IF(G97>0.1,4,5)))))) -> 5 | H98: 5 | I98: =IF(D94="Yes",IF(I97>1,3,IF(I97>0.5,4,5)),IF(I97>1,0,IF(I97>0.5,1,IF(I97>0.25,2,IF(I97>0.1,3,IF(I97>0.01,4,5)))))) -> 0 | J98: 5 | K98: =IF(D94="Yes",IF(K97>2,3,IF(K97>1,4,5)),IF(K97>2,0,IF(K97>1,1,IF(K97>0.5,2,IF(K97>0.25,3,IF(K97>0.1,4,5)))))) -> 0 | L98: =IF($D$96="Yes",IF(L97>100,3,IF(L97>10,4,5)),IF(L97>100,0,IF(L97>50,1,IF(L97>20,2,IF(L97>10,3,IF(L97>1,4,5)))))) -> 5 | M98: /5
B100: Replaceability Score: | E100: ="/5" -> /5
B101: Confidence Flag: | D101: =IF(NOT(ISNUMBER(D100)),"No value set",IF(AND(D94<>"",#REF!<>""),IF(OR(ISNUMBER(I97),ISNUMBER(K97)),2,1),0)) -> No value set
B102: Comments (explain rationale):
A105: Policy Alignment
B107: What is required:
B108: - | C108: Understanding of your council's asset management policy and goals
B110: What is desired:
B111: - | C111: Detailed understanding of NSW state government coastal management policy
B112: Where to look:
B113: - | C113: Your LGA's Asset Management Strategy/Policy
B114: - | C114: State coastal management framework & legislation
B116: Additional resources:
B117: - | C117: NSW Coastal Management Framework
B118: - | C118: NCCOE Guideline 2: Working with the Coast in an Environmentally Sustainable Way (Chapter 3)
B119: Guidelines:
B120: Policy compliance is important as it dictates maintenance schedules, accessibility measures and general servicability of recreational assets.
B121: This tool adopts a checklist-based approach, providing some standard policy objectives for this asset type
B122: Additionally, you may add more fields according to the objectives of your LGA
B125: Policy | F125: Complies? (Y/N) | G125: Weight | H125: Comments
A126: 1 | B126: Adopts strategic plans for adapting to future risks | F126: Yes | G126: 1 | O126: =IF(F126="Yes",1,0) -> 1
A127: =A126+1 -> 2 | F127: No | G127: 1 | O127: =IF(F127="Yes",1,0) -> 0
A128: =A127+1 -> 3 | F128: No | G128: 1 | O128: 0
A129: 4 | F129: No | G129: 1 | O129: 0
A130: 5 | F130: No | G130: 1 | O130: 0
A131: 6 | F131: No | G131: 1 | O131: 0
A132: 7 | F132: No | G132: 1 | O132: 0
A133: 8 | F133: No | G133: 1 | O133: 0
A134: 9 | F134: No | G134: 1 | O134: 0
A135: 10 | F135: No | G135: 1 | O135: 0
B136: =COUNTA(B126:B135) -> 1
B138: Recommended Score: | D138: =SUMPRODUCT(--($B$126:$B$135 <> ""),$G$126:$G$135, $O$126:$O$135)/SUMIF($B$126:$B$135,"<>",$G$126:$G$135)*5 -> 5 | E138: /5
B140: Policy Score: | E140: ="/5" -> /5
B141: Confidence Flag: | D141: =IF(D140="","No value set",IF(B136<5,0,IF(B136<9,1,2))) -> No value set
B142: Comments (explain rationale):
A145: Community Value
B147: What is required:
B148: - | C148: A rough idea of this asset's utilisation by the community
B149: - | C149: Some understanding of this asset's touristic appeal
B151: What is desired:
B152: - | C152: Detailed understanding asset utilisation
B153: - | C153: Study of the asset's consumer surplus
B155: Where to look:
B156: - | C156: Any external studies or community engagements
B157: - | C157: Council members/workers who are particularly familiar with the asset
B159: Additional resources:
B160: - | C160: Total Economic Valuation Framework
B161: - | C161: NCCARF 2016: Exploring valuation methods for climate adaptation options, with particular reference to Australian coastal councils
B162: - | C162: Measuring the Economic Value of a City Park System
B164: Guidelines:
B165: Community value is an intangible criterion which attempts to quantify the degree to which members of the community value the asset.
B166: This criterion aims to encapsulate asset non-use values of bequest, option use, and existence.
B167: Community value is intrinsically a subjective metric and can only adequately be determined through community studies and surveys.
B168: The score for this criterion can be categorised from Very Low to Very High on a 5-point scale which can be directly measured in community surveys on this asset.
B169: Aggregate results from such surveys can be directly input into the Community Value cell along with links to the relevant survey along with comments
B171: There is no true alternative for community perception other than direct engagements, however this tool makes use of a number of proxies in order to provide guidance for this criterion in the absence of survey data or for assets which may be less important.
B172: These involve looking at estimated utilisation and tourist visitation to get a sense of how 'valuable' the asset is to the community
B173: Estimating utilisation and tourist visitation will help you do on-the-fly sensitivity analysis to determine:
C174: 1. How much this asset is valued compared to a theoretical potential based on your LGA
C175: 2. How much consumer surplus would be required to pay for this asset's ongoing maintenance if users were charged for access
B178: Utilisation p/w | C178: Required WTP | D178: ($/trip)
B179: 50 | C179: =IFERROR(((assetMaint+assetValue/assetLife)/52)/B179,0) -> 0
B180: 100 | C180: 0
B181: 200 | C181: 0
B182: 500 | C182: 0
B183: 1000 | C183: 0
B184: 2000 | C184: 0
B185: 5000 | C185: 0
E188: Comments:
C189: Estimated utilisation per week:
C190: Utilisation known? | D190: No
C191: Required WTP: | D191: =IFERROR(((assetMaint+assetValue/assetLife)/52)/D189,"") -> 
B192: Percentage tourist visitation (of total LGA tourists): | D192: 0.05
C194: Average tourists per week: | D194: =(D192*cdTourCur)/52 -> 0
C196: WTP from study:
C197: ($/person)
B199: Recommended Value: | D199: =IF(D196<>"",IF(D196>=(2*D191),5,IF(D196>=(1.25*D191),4,IF(D196<(0.25*D191),0,IF(D196<(0.5*D191),1,IF(D196<(0.8*D191),2,3))))),IF(((D189+D194+E194)*52)<(0.005*cdPopCur),0,IF(((D189+D194+E194)*52)>(0.5*cdPopCur),5,5*((D189+D194+E194)*52)/(0.495*cdPopCur)))) -> 0 | E199: /5
B201: Community Value: | E201: ="/5" -> /5
B202: Confidence Flag: | D202: =IF(assetCommunity="","No value set",IF(D196<>"",2,IF(D190="Yes",1,0))) -> No value set
B203: Comments (explain rationale):
A205: Resilience
B207: What is required:
B208: - | C208: Physical characteristics of the asset
A211: Is this property in a designated coastal hazard zone? | D211: No | E211: =IF(D211="Yes","*Please refer to the CZMP for this asset's risk assessment and do not rely on this tool to provide estimates.","") -> 
C212: Recommended Value: | D212: =IF(D22="Yes",IF(D23<6,5,IF(D23<10,4,3)),IF(assetWidth>50,4,IF(assetWidth>40,3,IF(assetWidth>30,2,IF(assetWidth>20,1,0))))) -> 0
B214: Resilience Value: | E214: ="/5" -> /5
B215: Confidence Flag: | D215: 0
B216: Comments (explain rationale):
A218: MCA Results
C220: Score | D220: Flag | F220: Weighting | G220: Comment
A221: Cultural/Heritage Value | C221: =IF(assetHeritage="","",assetHeritage) ->  | D221: =D66 -> No value set | F221: 1
A222: Replaceability | C222: =IF(assetReplace="","",assetReplace) ->  | D222: =D101 -> No value set | F222: 1
A223: Policy Alignment | C223: =IF(assetPolicy="","",assetPolicy) ->  | D223: =D141 -> No value set | F223: 1
A224: Community Value | C224: =IF(assetCommunity="","",assetCommunity) ->  | D224: =D202 -> No value set | F224: 1
A225: Resilience | C225: =IF(assetResilience="","",assetResilience) ->  | D225: =D215 -> 0 | F225: 1
A226: Total | C226: =IF(COUNTIF(C221:C225,"")>0,"Not all values set",SUMPRODUCT(C221:C225,F221:F225)/SUM(F221:F225)) -> Not all values set | D226: =IF(SUMPRODUCT(ISNUMBER(D221:D225)*1)<5,"Not all values set",ROUND(AVERAGE(D221:D225),0)) -> Not all values set
A248: Adaptation Options
B250: The NCCOE Climate Change Adaptation Guidelines provide a comprehensive overview for coastal managers to review their options when adapting their infrastructure to a changing climate.
B251: This tool uses generalised engineering options and results from the MCA to assess which type of adaptation is best suited for this asset.
B252: The categories of options available are:
C253: Protect | D253: This option involves adding hard protection to the asset to protect against sea level rise
C254: Accommodate | D254: This option involves accepting a certain reduction in servicability to keep the asset funtional and using management solutions to prevent hazard
C255: Retreat | D255: This option involves abandoning the asset and selling the land
C256: Do nothing | D256: This is the baseline case in which routine maintenance is performed but additional capital works to repair damages are not
B257: Please refer to Table 4 (p. 32) in the Climate Change Adaptation Guidelines for a checklist of considerations which must be addressed before implementing any of these options.
B262: Item 1:
B263: Item 2:
B264: Item 3:
B265: Item 4:
B266: Item 5:
B269: Recommendation:
B272: Adaptation Choice:
A275: Future Projections
B277: Projections are base on the selected adaptation option as well as projected trends in council parameters including population, GRP, land value, and tourism.
B278: To perform sensitivity analysis around these results please alter any of these values, or those of sea-level rise below, and recalculate.
B280: Additional Inputs:
C281: Short-term (2021) | D281: Medium-term (2036) | E281: Long-term (2070)
B282: Sea Level Rise: | C282: 0 | D282: 0.2 | E282: 0.5
A285: MCA - | B285: =IF(assetAdaptOpt="","No Adaptation Set",assetAdaptOpt) -> No Adaptation Set
C289: Short-Term | D289: Medium-Term | E289: Long-Term | G289: Comment
B290: Culture & Heritage
B291: Replaceability
B292: Policy Alignment
B293: Community Value
B294: Resilience
A315: CBA - | B315: =IF(assetAdaptOpt="","No Adaptation Set",assetAdaptOpt) -> No Adaptation Set
C317: Short-Term | D317: Medium-Term | E317: Long-Term
B318: Estimated Average Cost per Annum:
C321: Required WTP
B322: Annual Visitation | C322: Short-Term | D322: Medium-Term | E322: Long-Term
B323: 100 | C323: =IFERROR(assetProjCostShort/($B323*assetLife),"") ->  | D323: =IFERROR(assetProjCostMed/($B323*assetLife),"") ->  | E323: =IFERROR(assetProjCostLong/($B323*assetLife),"") -> 
B324: 500
B325: 1000 | D325: =IFERROR(assetProjCostMed/($B325*assetLife),"") ->  | E325: =IFERROR(assetProjCostLong/($B325*assetLife),"") -> 
B326: 2000
B327: 5000
B328: 10000
... 5 more rows

Sheet templateBoatramp (hidden)
A4: ID HERE
A5: NAME HERE | C5: Lat,Lng | D5: MapURL
A7: Asset Data
B9: Info | C9: Characteristic | D9: Value | E9: Unit | F9: Comment
C10: Year of construction
B11: ⓘ | C11: Cost of initial construction | E11: $
B12: ⓘ | C12: Design life | E12: yrs
B13: ⓘ | C13: Today's construction cost | D13: =IFERROR(INDEX(metaAdjust[Dollar Adjustment],MATCH(currYear-assetConstYr,metaAdjust[Age],0))*assetConstCost,"Enter cost and construction year") -> Enter cost and construction year
B14: ⓘ | C14: Annual maintenance cost | E14: $
B15: ⓘ | C15: Date of last capital works (partial/full reconstruction)
B16: ⓘ | C16: Cost of last capital works | E16: $
C17: Current condition
A19: Physical Characteristics
B21: Info | C21: Characteristic | D21: Value | E21: Unit | F21: Comment
B22: ⓘ | C22: Length | E22: m
B23: ⓘ | C23: Access height | E23: m
B24: ⓘ | C24: Toe height | E24: m
B25: ⓘ | C25: Slope | E25: m/m
B26: ⓘ | C26: Sheltered/Exposed
A28: Multi-Criteria Analysis
A30: Cultural & Heritage Significance
B32: What is required:
B33: - | C33: Access to local cultural/historic knowledge
B34: - | C34: Participants
B36: What is desired:
B37: - | C37: Collaboration with your local aboriginal land council
B38: - | C38: Professional guidance on asset history of LGA
B40: Additional resources:
B41: - | C41: Local Aboriginal Land Councils
B42: - | C42: Aboriginal heritage (places of significance)
B43: - | C43: The cultures and the heritage of NSW
B44: - | C44: NCCOE Guideline 2: Working with the Coast in an Environmentally Sustainable Way (Chapter 6.3)
B45: Guidelines:
B46: Cultural and historic value aims to capture the significance peoples or groups find in places or objects due to cultural teachings and/or heritage claims.
B47: It is distinct from value placed on an asset by peoples due its usability or availability and instead relates to a group's relationship with the asset.
B48: To assess this criterion, please use the following table as a guide to assign this asset a value from 0 to 5.
B57: To increase the confidence of this criterion's score, it is advised that you consult with your local aboriginal land council and seek their input into the cultural significance of your assets
B58: Additionally you may wish to ask around your office or with respected members of the community to get a more complete picture of your assets' significance
B59: Weightings may be assigned for each entry based on the trust and/or significance of the opinion. E.g. Someone with more knowledge of the history of the area might have their opinion granted more 'weight' than someone who has only just arrived.
C61: You | D61: Aboriginal Land Council | E61: Person 2 | F61: Person 3 | G61: Person 4 | H61: Person 5 | I61: Person 6 | J61: Person 7 | K61: Person 8 | L61: Person 9 | M61: Person 10
B62: Scores: (/5)
B63: Weighting | C63: 1 | D63: 5 | E63: 1 | F63: 1 | G63: 1 | H63: 1 | I63: 1 | J63: 1 | K63: 1 | L63: 1 | M63: 1
B65: Recommended Value: | D65: =IFERROR(SUMPRODUCT(C62:M62,C63:M63)/SUMPRODUCT(--(C62:M62<>""),C63:M63),0) -> 0 | E65: /5
B68: Culture & Heritage Score: | E68: ="/5" -> /5
B69: Confidence Flag: | D69: =IF( NOT(ISNUMBER(D68)),"No value set",IF(ISNUMBER(D62),2,IF(COUNT(C62:M62)>=3,1,0))) -> No value set
B70: Comments (explain rationale):
A72: Replaceability
B74: What is required:
B75: - | C75: The replacement cost of this asset
B76: - | C76: The design life of this asset
B78: What is desired:
B79: - | C79: Detailed understanding of current asset availability in the region
B80: - | C80: Assessment of alternative locations
B82: Where to look:
B83: - | C83: Local asset register
B85: Additional resources:
B86: - | C86: IPWEA, Australian Infrastructure Financial Management Manual (AIFMM)
B87: - | C87: Guide to valuation and depreciation under the international accounting standards for the public sector
B88: - | C88: IPWEA, International Infrastructure Management Manual (IIMM)
B89: Guidelines:
B90: This tool uses an LGA's ability to pay, or an asset's replaceability as a baseline proxy for economic value.
B91: This method compares the depreciated replacement cost (also known as the Written Down Value; WDV) with LGA statistics to determine the relative ability for the asset to be replaced.
C93: Non-depreciated replacement cost
C94: Depreciated replacement cost
C95: Comments
B97: Are there other pre-existing assets nearby which could take up demand if this asset was decommissioned/damaged?
D98: No | F98: Comments:
B100: Are there any other nearby sites which could be repurposed to fulfil a similar role?
C101: Y/N | D101: No | F101: Comments:
A102: If yes, are they greenfield or brownfield site(s)?
B103: Approximate cost of site acquisition
C104: (in today's $)
D105: Median income | E105: GRP | G105: Land value | I105: Revenue | K105: Recreational budget
C106: Scores | D106: =IFERROR(IF(D101="Yes",IF(D102="Greenfield",(D103+assetWDV)/(cdIncCurr*assetLife*52),(D103*1.2+assetWDV)/(cdIncCurr*assetLife*52)),assetWDV/(cdIncCurr*assetLife*52)),"") ->  | E106: =IFERROR(IF(D101="Yes",IF(D102="Greenfield",(D103+assetWDV)/cdGRPCur,D103*1.2/cdGRPCur),assetWDV/cdGRPCur),"") -> 0 | G106: =IFERROR(IF(D101="Yes",IF(D102="Greenfield",(D103+assetWDV)/cdLandMeanVal,D103*1.2/cdLandMeanVal),assetWDV/cdLandMeanVal),"") -> 0 | I106: =IFERROR(IF(D101="Yes",IF(D102="Greenfield",(D103+assetWDV)/cdRevCurr,D103*1.2/cdRevCurr),assetWDV/cdRevCurr),"") ->  | K106: =IFERROR(IF(D101="Yes",IF(D102="Greenfield",(D103+assetWDV)/cdRecBudgCurr,D103*1.2/cdRecBudgCurr),assetWDV/cdRecBudgCurr),"") -> 
C107: Recommended values | D107: =IF(D98="Yes",IF(D106>5,3,IF(D106>1,4,5)),IF(D106>10,0,IF(D106>5,1,IF(D106>1,2,IF(D106>0.5,3,IF(D106>=0.1,4,5)))))) -> 0 | E107: =IF($D$101="Yes",IF(E106>0.001,3,IF(E106>0.0001,4,5)),IF(E106>0.001,0,IF(E106>0.0005,1,IF(E106>0.0001,2,IF(E106>0.00005,3,IF(E106>0.00001,4,5)))))) -> 5 | F107: =IF($D$101="Yes",IF(F106>100,3,IF(F106>10,4,5)),IF(F106>100,0,IF(F106>50,1,IF(F106>20,2,IF(F106>10,3,IF(F106>1,4,5)))))) -> 5 | G107: =IF(D98="Yes",IF(G106>2,3,IF(G106>1,4,5)),IF(G106>3,0,IF(G106>2,1,IF(G106>1,2,IF(G106>0.5,3,IF(G106>0.1,4,5)))))) -> 5 | H107: 5 | I107: =IF($D$101="Yes",IF(I106>1,3,IF(I106>0.5,4,5)),IF(I106>1,0,IF(I106>0.5,1,IF(I106>0.25,2,IF(I106>0.1,3,IF(I106>0.01,4,5)))))) -> 0 | J107: 5 | K107: =IF($D$101="Yes",IF(K106>2,3,IF(K106>1,4,5)),IF(K106>2,0,IF(K106>1,1,IF(K106>0.5,2,IF(K106>0.25,3,IF(K106>0.1,4,5)))))) -> 0 | L107: =IF($D$101="Yes",IF(L106>100,3,IF(L106>10,4,5)),IF(L106>100,0,IF(L106>50,1,IF(L106>20,2,IF(L106>10,3,IF(L106>1,4,5)))))) -> 5 | M107: /5
B109: Replaceability Score: | E109: ="/5" -> /5
B110: Confidence Flag: | D110: =IF(NOT(ISNUMBER(D109)),"No value set",IF(AND(D98<>"",D101<>""),IF(OR(ISNUMBER(I106),ISNUMBER(K106)),2,1),0)) -> No value set
B111: Comments (explain rationale):
A114: Policy Alignment
B116: What is required:
B117: - | C117: Understanding of your council's asset management policy and goals
B119: What is desired:
B120: - | C120: Detailed understanding of NSW state government coastal management policy
B121: Where to look:
B122: - | C122: Your LGA's Asset Management Strategy/Policy
B123: - | C123: State coastal management framework & legislation
B125: Additional resources:
B126: - | C126: NSW Coastal Management Framework
B127: - | C127: NCCOE Guideline 2: Working with the Coast in an Environmentally Sustainable Way (Chapter 3)
B128: Guidelines:
B129: Policy compliance is important as it dictates maintenance schedules, accessibility measures and general servicability of recreational assets.
B130: This tool adopts a checklist-based approach, providing some standard policy objectives for this asset type
B131: Additionally, you may add more fields according to the objectives of your LGA
B134: Policy | F134: Complies? (Y/N) | G134: Weight | H134: Comments
A135: 1 | B135: Adopts strategic plans for adapting to future risks | F135: Yes | G135: 1 | O135: =IF(F135="Yes",1,0) -> 1
A136: =A135+1 -> 2 | F136: No | G136: 1 | O136: =IF(F136="Yes",1,0) -> 0
A137: =A136+1 -> 3 | F137: No | G137: 1 | O137: 0
A138: 4 | F138: No | G138: 1 | O138: 0
A139: 5 | F139: No | G139: 1 | O139: 0
A140: 6 | F140: No | G140: 1 | O140: 0
A141: 7 | F141: No | G141: 1 | O141: 0
A142: 8 | F142: No | G142: 1 | O142: 0
A143: 9 | F143: No | G143: 1 | O143: 0
A144: 10 | F144: No | G144: 1 | O144: 0
B145: =COUNTA(B135:B144) -> 1
B147: Recommended Score: | D147: =SUMPRODUCT(--($B$135:$B$144 <> ""),$G$135:$G$144, $O$135:$O$144)/SUMIF($B$135:$B$144,"<>",$G$135:$G$144)*5 -> 5 | E147: /5
B149: Policy Score: | E149: ="/5" -> /5
B150: Confidence Flag: | D150: =IF(D149="","No value set",IF(B145<3,0,IF(B145<6,1,2))) -> No value set
B151: Comments (explain rationale):
A154: Community Value
B156: What is required:
B157: - | C157: A rough idea of this asset's utilisation by the community
B158: - | C158: Some understanding of this asset's touristic appeal
B160: What is desired:
B161: - | C161: Detailed understanding asset utilisation
B162: - | C162: Study of the asset's consumer surplus
B164: Where to look:
B165: - | C165: Any external studies or community engagements
B166: - | C166: Council members/workers who are particularly familiar with the asset
B168: Additional resources:
B169: - | C169: Total Economic Valuation Framework
B170: - | C170: NCCARF 2016: Exploring valuation methods for climate adaptation options, with particular reference to Australian coastal councils
B171: - | C171: Measuring the Economic Value of a City Park System
B173: Guidelines:
B174: Community value is an intangible criterion which attempts to quantify the degree to which members of the community value the asset.
B175: This criterion aims to encapsulate asset non-use values of bequest, option use, and existence.
B176: Community value is intrinsically a subjective metric and can only adequately be determined through community studies and surveys.
B177: The score for this criterion can be categorised from Very Low to Very High on a 5-point scale which can be directly measured in community surveys on this asset.
B178: Aggregate results from such surveys can be directly input into the Community Value cell along with links to the relevant survey along with comments
B180: There is no true alternative for community perception other than direct engagements, however this tool makes use of a number of proxies in order to provide guidance for this criterion in the absence of survey data or for assets which may be less important to the community.
B181: These involve looking at estimated utilisation and tourist visitation to get a sense of how 'valuable' the asset is to the community
B182: Estimating utilisation and tourist visitation will help you do on-the-fly sensitivity analysis to determine:
C183: 1. How much this asset is valued compared to a theoretical potential based on your LGA
C184: 2. How much consumer surplus would be required to pay for this asset's ongoing maintenance if users were charged for access
B187: Utilisation p/w | C187: Required WTP | D187: ($/trip)
B188: 50 | C188: =IFERROR(((assetMaint+assetValue/assetLife)/52)/B188,0) -> 0
B189: 100 | C189: 0
B190: 200 | C190: 0
B191: 500 | C191: 0
B192: 1000 | C192: 0
B193: 2000 | C193: 0
B194: 5000 | C194: 0
E197: Comments:
C198: Estimated utilisation per week:
C199: Utilisation known? | D199: No
C200: Required WTP: | D200: =IFERROR(((assetMaint+assetValue/assetLife)/52)/D198,"") -> 
B201: Percentage tourist visitation (of total LGA tourists): | D201: 0
C203: Average tourists per week: | D203: =(D201*cdTourCur)/52 -> 0
C205: WTP from study:
C206: ($/person)
B208: Recommended Value: | D208: =IF(D205<>"",IF(D205>=(2*D200),5,IF(D205>=(1.25*D200),4,IF(D205<(0.25*D200),0,IF(D205<(0.5*D200),1,IF(D205<(0.8*D200),2,3))))),IF((D198*52)<(0.005*cdPopCur),0,IF((D198*52)>(0.5*cdPopCur),5,5*(D198*52)/(0.495*cdPopCur)))) -> 0 | E208: /5
B210: Community Value: | E210: ="/5" -> /5
B211: Confidence Flag: | D211: =IF(assetCommunity="","No value set",IF(D205<>"",2,IF(D199="Yes",1,0))) -> No value set
B212: Comments (explain rationale):
A214: Resilience
B216: What is required:
B217: - | C217: Asset design life
B218: - | C218: Understanding of the acceptable level of risk for this asset
B219: - | C219: Basic knowledge of either the local wave climate or flood planning levels
B221: What is desired:
B222: - | C222: Detailed study of local wave climate
B223: - | C223: Understandng of threat recurrence under which the asset sustains damage
B225: Where to look:
B226: - | C226: Climate Change Adaptation Guidelines Part 4 (p 22)
B227: - | C227: Coastal Engineering Expertise
B229: Additional resources:
B230: - | C230: Resilience: A risk management approach | E230: Building resilient infrastructure
B231: Guidelines:
B232: Resilience is a measure of the serviceability of an asset under extreme conditions.
B233: This tool uses a number of different methods to determine the resilience of a coastal recreational asset:
B234: - Probabalistic wave overtopping calculation to estimate likelihood of coastal inundation for assets in or adjacent to the open ocean
B235: - Probabalistic storm surge inundation calculation for all non-estuarine assets
B236: - Hazard categorisation based on the asset's placement within the floodplain
C238: Design life: | D238: =assetLife -> 0 | E238: years
C239: Acceptable risk of encounter: | D239: 0.5 | E239: =-D238/(LN(1-D239)) -> 0 | F239: Comments:
C240: Design threat: | D240: ="1 : " & ROUND(-D238/(LN(1-D239)),0) -> 1 : 0 | E240: years
C241: Design serviceability | E241: days out of service per year
A242: Is this property in a designated coastal hazard zone? | D242: No | E242: =IF(D242="Yes","*Please refer to the CZMP for this asset's risk assessment and do not rely on this tool to provide estimates.","") -> 
A243: Is this property in a floodplain? | D243: No
C244: Sheltered/Exposed: | D244: =IF(assetShelter="","",assetShelter) -> 
C245: Is this asset in an estuary? | D245: No
C247: =IF(OR(D244="",D245=""),"Please enter data above.",IF(D244="Exposed","Please use overtopping calculation.",IF(D245="No","Please use still water level calculation.","Please use floodplain calculation."))) -> Please enter data above. | E247: =IF(ISNUMBER(SEARCH("overtop",C247)),0,IF(ISNUMBER(SEARCH("still",C247)),1,IF(ISNUMBER(SEARCH("floodplain",C247)),2,-1))) -> -1
B249: Overtopping Calculation
B250: (leave as default unless studies have been performed)
D251: baseline | E251: max
C252: Deepwater wave height, hs (m) | D252: 8
C253: Period, T (s) | D253: 12
C254: Tan B, Beach slope | D254: =0.005 -> 0.005
C255: Deepwater wave length, Lo (m) | D255: =9.81*D253^2/(2*PI()) -> 224.8286388
C256: hb, stillwater depth at theoretical breakpoint (m) = | D256: =0.811*D252*D254^-0.012*(D252/D255)^-0.12 -> 10.31750287
C257: Hb, theoretical breaker height, (m) = | D257: =0.76*D252*D254^(1/7)*(D252/D255)^-0.25 -> 6.567127067
C258: Yb, breaker index = | D258: =D257/D256 -> 0.6365035366
C259: Tm-1,o | D259: =D253/1.1 -> 10.90909091
C260: Lm-1,o | D260: =9.81*D259^2/(2*PI()) -> 185.8087924
C261: setup % | D261: 0.0001 | E261: =0.15 -> 0.15
C262: setup | D262: =assetHs*D261 -> 0.0008 | E262: =assetHs*E261 -> 1.2
C263: bed depth | D263: =IF(assetDepth<>"",assetDepth,0) -> 0 | E263: =IF(assetDepth<>"",assetDepth,0) -> 0
C264: WL | D264: =INDEX(Councils[MHW],metaRow) + D262 -> 0.5454807692 | E264: =INDEX(Councils[MHW],metaRow) + E262 -> 1.744680769
C265: depth | D265: =D264-D263 -> 0.5454807692 | E265: =E264-E263 -> 1.744680769
C266: design wave | D266: =D265*D258 -> 0.3472004388 | E266: =E265*D258 -> 1.11049548 | G266: buoy: | H266: =INDEX(Councils[OffshoreBuoy],metaRow) -> Sydney
... 80 more rows

Sheet Metadata (hidden)
A1: =YEAR(TODAY()) -> 2019 | F1: Population | L1: Income | P1: GRP | T1: Land Value | X1: Tourism
A2: Council Name | B2: OffshoreBuoy | C2: TideGauge | D2: MHW | E2: Area | F2: popA | G2: popB | H2: popC | I2: popD | J2: currPop | K2: currDens | L2: incA | M2: incB | N2: incC | O2: incCurrent | P2: grpA | Q2: grpB | R2: grpC | S2: grpCurrent | T2: landRecVal | U2: landResVal | V2: landTotVal | W2: landTotProp | X2: tourA | Y2: tourB | Z2: tourC | AA2: tourCurrent | AB2: tourSpend
A3: Bayside Council | B3: Sydney | C3: Fort Denison | D3: =INDEX(metaTides[MHW],MATCH(Councils[[#This Row],[TideGauge]],metaTides[Site],0)) -> 0.5446807692 | E3: 4993 | F3: -87849331 | G3: 84391.354 | H3: -20.2056 | I3: 0 | J3: =FLOOR(Councils[[#This Row],[popA]]+Councils[[#This Row],[popB]]*currYear+Councils[[#This Row],[popC]]*currYear^2+Councils[[#This Row],[popD]]*currYear^3,1) -> 171492 | K3: =Councils[[#This Row],[currPop]]/Councils[[#This Row],[Area]] -> 34.34648508 | L3: -92046 | M3: 46.43185 | O3: =Councils[[#This Row],[incA]]+Councils[[#This Row],[incB]]*currYear+Councils[[#This Row],[incC]]*currYear^2 -> 1699.90515 | P3: 84299902282105 | Q3: -8.424552721e+10 | R3: 21050245.1 | S3: =Councils[[#This Row],[grpA]]+Councils[[#This Row],[grpB]]*currYear+Councils[[#This Row],[grpC]]*currYear^2 -> 1.658101152e+10 | T3: 1746606913 | U3: 38555908500 | V3: 46211292023 | W3: 32864 | AA3: =Councils[[#This Row],[tourA]]+Councils[[#This Row],[tourB]]*currYear+Councils[[#This Row],[tourC]]*currYear^2 -> 0
A4: Ballina Shire Council | B4: Byron | C4: Coffs | D4: =INDEX(metaTides[MHW],MATCH(Councils[[#This Row],[TideGauge]],metaTides[Site],0)) -> 0.53875 | E4: 48488 | F4: 17151213 | G4: -17322.87 | H4: 4.3831 | I4: 0 | J4: =FLOOR(Councils[[#This Row],[popA]]+Councils[[#This Row],[popB]]*currYear+Councils[[#This Row],[popC]]*currYear^2+Councils[[#This Row],[popD]]*currYear^3,1) -> 43436 | K4: =Councils[[#This Row],[currPop]]/Councils[[#This Row],[Area]] -> 0.8958092724 | L4: -60943 | M4: =30.7957 -> 30.7957 | O4: =Councils[[#This Row],[incA]]+Councils[[#This Row],[incB]]*currYear+Councils[[#This Row],[incC]]*currYear^2 -> 1233.5183 | Q4: -31753129.67 | R4: 16225.69 | S4: =Councils[[#This Row],[grpA]]+Councils[[#This Row],[grpB]]*currYear+Councils[[#This Row],[grpC]]*currYear^2 -> 2032201117 | T4: 477507271 | U4: 4480545630 | V4: 6813459701 | W4: 15327 | X4: -27916754 | Y4: 14185.44 | AA4: =Councils[[#This Row],[tourA]]+Councils[[#This Row],[tourB]]*currYear+Councils[[#This Row],[tourC]]*currYear^2 -> 723649.36 | AB4: 375
A5: Bega Valley Shire Council | B5: Eden | C5: Eden | D5: =INDEX(metaTides[MHW],MATCH(Councils[[#This Row],[TideGauge]],metaTides[Site],0)) -> 0.38025 | E5: 627683 | F5: -185502 | G5: 13.9 | H5: 0.0471 | I5: 0 | J5: =FLOOR(Councils[[#This Row],[popA]]+Councils[[#This Row],[popB]]*currYear+Councils[[#This Row],[popC]]*currYear^2+Councils[[#This Row],[popD]]*currYear^3,1) -> 34558 | K5: =Councils[[#This Row],[currPop]]/Councils[[#This Row],[Area]] -> 0.05505645366 | L5: -41135 | M5: 20.8962 | O5: =Councils[[#This Row],[incA]]+Councils[[#This Row],[incB]]*currYear+Councils[[#This Row],[incC]]*currYear^2 -> 1054.4278 | P5: 1255214655882 | Q5: -1263042825 | R5: 318034.906 | S5: =Councils[[#This Row],[grpA]]+Councils[[#This Row],[grpB]]*currYear+Councils[[#This Row],[grpC]]*currYear^2 -> 1556280027 | T5: 367393860 | U5: 2295212520 | V5: 3704182289 | W5: 18752 | X5: -49233002 | Y5: 24864.52 | AA5: =Councils[[#This Row],[tourA]]+Councils[[#This Row],[tourB]]*currYear+Councils[[#This Row],[tourC]]*currYear^2 -> 968463.88 | AB5: 446
A6: Bellingen Shire Council | B6: Coffs | C6: Coffs | D6: =INDEX(metaTides[MHW],MATCH(Councils[[#This Row],[TideGauge]],metaTides[Site],0)) -> 0.53875 | E6: 160205 | F6: -6124094 | G6: 6068 | H6: -1.5 | I6: 0 | J6: =FLOOR(Councils[[#This Row],[popA]]+Councils[[#This Row],[popB]]*currYear+Councils[[#This Row],[popC]]*currYear^2+Councils[[#This Row],[popD]]*currYear^3,1) -> 12656 | K6: =Councils[[#This Row],[currPop]]/Councils[[#This Row],[Area]] -> 0.07899878281 | L6: -55331 | M6: 27.93257 | O6: =Councils[[#This Row],[incA]]+Councils[[#This Row],[incB]]*currYear+Councils[[#This Row],[incC]]*currYear^2 -> 1064.85883 | P6: 710655676471 | Q6: -714723480.9 | R6: 179783.452 | S6: =Councils[[#This Row],[grpA]]+Councils[[#This Row],[grpB]]*currYear+Councils[[#This Row],[grpC]]*currYear^2 -> 491220651.5 | T6: 57405990 | U6: 1045821901 | V6: 1868508471 | W6: 6135 | X6: -9378284 | Y6: 4765.42 | AA6: =Councils[[#This Row],[tourA]]+Councils[[#This Row],[tourB]]*currYear+Councils[[#This Row],[tourC]]*currYear^2 -> 243098.98 | AB6: 261
A7: Byron Shire Council | B7: Byron | C7: Coffs | D7: =INDEX(metaTides[MHW],MATCH(Councils[[#This Row],[TideGauge]],metaTides[Site],0)) -> 0.53875 | E7: 56664 | F7: 9231882 | G7: -9408.217 | H7: 2.4033 | I7: 0 | J7: =FLOOR(Councils[[#This Row],[popA]]+Councils[[#This Row],[popB]]*currYear+Councils[[#This Row],[popC]]*currYear^2+Councils[[#This Row],[popD]]*currYear^3,1) -> 33410 | K7: =Councils[[#This Row],[currPop]]/Councils[[#This Row],[Area]] -> 0.5896159819 | L7: -74609 | M7: =37.56 -> 37.56 | O7: =Councils[[#This Row],[incA]]+Councils[[#This Row],[incB]]*currYear+Councils[[#This Row],[incC]]*currYear^2 -> 1224.64 | P7: 3998478999879 | Q7: -3998600000 | R7: 1000000 | S7: =Councils[[#This Row],[grpA]]+Councils[[#This Row],[grpB]]*currYear+Councils[[#This Row],[grpC]]*currYear^2 -> 1666600125 | T7: 1113419330 | U7: 6568036240 | V7: 10720904766 | W7: 13536 | X7: -36553500 | Y7: 18574.07 | AA7: =Councils[[#This Row],[tourA]]+Councils[[#This Row],[tourB]]*currYear+Councils[[#This Row],[tourC]]*currYear^2 -> 947547.33 | AB7: 337
A8: City of Canada Bay Council | C8: Fort Denison | D8: =INDEX(metaTides[MHW],MATCH(Councils[[#This Row],[TideGauge]],metaTides[Site],0)) -> 0.5446807692 | E8: 1990 | F8: -132311133 | G8: 129269.63 | H8: -31.5445 | I8: 0 | J8: =FLOOR(Councils[[#This Row],[popA]]+Councils[[#This Row],[popB]]*currYear+Councils[[#This Row],[popC]]*currYear^2+Councils[[#This Row],[popD]]*currYear^3,1) -> 97480 | K8: =Councils[[#This Row],[currPop]]/Councils[[#This Row],[Area]] -> 48.98492462 | L8: -70722.5 | M8: 36.116 | O8: =Councils[[#This Row],[incA]]+Councils[[#This Row],[incB]]*currYear+Councils[[#This Row],[incC]]*currYear^2 -> 2195.704 | Q8: -156742853.3 | R8: 79336.887 | S8: =Councils[[#This Row],[grpA]]+Councils[[#This Row],[grpB]]*currYear+Councils[[#This Row],[grpC]]*currYear^2 -> 6941971175 | T8: 311300471 | U8: 30642462750 | V8: 32269652431 | W8: 18170 | AA8: =Councils[[#This Row],[tourA]]+Councils[[#This Row],[tourB]]*currYear+Councils[[#This Row],[tourC]]*currYear^2 -> 0
A9: Canterbury Bankstown Council | C9: Fort Denison | D9: =INDEX(metaTides[MHW],MATCH(Councils[[#This Row],[TideGauge]],metaTides[Site],0)) -> 0.5446807692 | E9: 11029 | F9: 266611945 | G9: -269876.5 | H9: 68.3571 | I9: 0 | J9: =FLOOR(Councils[[#This Row],[popA]]+Councils[[#This Row],[popB]]*currYear+Councils[[#This Row],[popC]]*currYear^2+Councils[[#This Row],[popD]]*currYear^3,1) -> 379508 | K9: =Councils[[#This Row],[currPop]]/Councils[[#This Row],[Area]] -> 34.41000997 | L9: -62119 | M9: 31.454 | O9: =Councils[[#This Row],[incA]]+Councils[[#This Row],[incB]]*currYear+Councils[[#This Row],[incC]]*currYear^2 -> 1386.626 | P9: 56269056716177 | Q9: -5.609866471e+10 | R9: 13985294.12 | S9: =Councils[[#This Row],[grpA]]+Councils[[#This Row],[grpB]]*currYear+Councils[[#This Row],[grpC]]*currYear^2 -> 1.49601993e+10 | T9: 1368440150 | U9: 69081258630 | V9: 78161180761 | W9: 87863 | AA9: =Councils[[#This Row],[tourA]]+Councils[[#This Row],[tourB]]*currYear+Councils[[#This Row],[tourC]]*currYear^2 -> 0
A10: Central Coast Council | B10: Crowdy | C10: Patonga | D10: =INDEX(metaTides[MHW],MATCH(Councils[[#This Row],[TideGauge]],metaTides[Site],0)) -> 0.5578888889 | E10: 168042 | F10: 94981403 | G10: -97261.22 | H10: 24.9576 | I10: 0 | J10: =FLOOR(Councils[[#This Row],[popA]]+Councils[[#This Row],[popB]]*currYear+Councils[[#This Row],[popC]]*currYear^2+Councils[[#This Row],[popD]]*currYear^3,1) -> 347187 | K10: =Councils[[#This Row],[currPop]]/Councils[[#This Row],[Area]] -> 2.066072768 | L10: -70815 | M10: 35.74 | O10: =Councils[[#This Row],[incA]]+Councils[[#This Row],[incB]]*currYear+Councils[[#This Row],[incC]]*currYear^2 -> 1344.06 | P10: 725106756371 | Q10: -758700000 | R10: 200980.3922 | S10: =Councils[[#This Row],[grpA]]+Councils[[#This Row],[grpB]]*currYear+Councils[[#This Row],[grpC]]*currYear^2 -> 1.256008873e+10 | T10: 4109027241 | U10: 42895665301 | V10: 50742890692 | W10: 125367 | X10: -104804994 | Y10: 54350 | AA10: =Councils[[#This Row],[tourA]]+Councils[[#This Row],[tourB]]*currYear+Councils[[#This Row],[tourC]]*currYear^2 -> 4927656 | AB10: 174
A11: Clarence Valley Council | B11: Coffs | C11: Coffs | D11: =INDEX(metaTides[MHW],MATCH(Councils[[#This Row],[TideGauge]],metaTides[Site],0)) -> 0.53875 | E11: 1044121 | F11: -20488858 | G11: 20053.39 | H11: -4.8929 | I11: 0 | J11: =FLOOR(Councils[[#This Row],[popA]]+Councils[[#This Row],[popB]]*currYear+Councils[[#This Row],[popC]]*currYear^2+Councils[[#This Row],[popD]]*currYear^3,1) -> 53709 | K11: =Councils[[#This Row],[currPop]]/Councils[[#This Row],[Area]] -> 0.05143944045 | L11: -39850 | M11: 20.222 | O11: =Councils[[#This Row],[incA]]+Councils[[#This Row],[incB]]*currYear+Councils[[#This Row],[incC]]*currYear^2 -> 978.218 | Q11: -8880026.69 | R11: 4867.118124 | S11: =Councils[[#This Row],[grpA]]+Councils[[#This Row],[grpB]]*currYear+Councils[[#This Row],[grpC]]*currYear^2 -> 1911356616 | T11: 201968360 | U11: 2972982573 | V11: 5057733411 | W11: 25724 | X11: -41220832 | Y11: 20945.69 | AA11: =Councils[[#This Row],[tourA]]+Councils[[#This Row],[tourB]]*currYear+Councils[[#This Row],[tourC]]*currYear^2 -> 1068516.11 | AB11: 286
A12: Coffs Harbour City Council | B12: Coffs | C12: Coffs | D12: =INDEX(metaTides[MHW],MATCH(Councils[[#This Row],[TideGauge]],metaTides[Site],0)) -> 0.53875 | E12: 117478 | F12: 39772150 | G12: -40243.7582 | H12: 10.1947 | I12: 0 | J12: =FLOOR(Councils[[#This Row],[popA]]+Councils[[#This Row],[popB]]*currYear+Councils[[#This Row],[popC]]*currYear^2+Councils[[#This Row],[popD]]*currYear^3,1) -> 77279 | K12: =Councils[[#This Row],[currPop]]/Councils[[#This Row],[Area]] -> 0.6578167827 | L12: -56837 | M12: 28.7363 | O12: =Councils[[#This Row],[incA]]+Councils[[#This Row],[incB]]*currYear+Councils[[#This Row],[incC]]*currYear^2 -> 1181.5897 | Q12: -58951315.5 | R12: 30073.256 | S12: =Councils[[#This Row],[grpA]]+Councils[[#This Row],[grpB]]*currYear+Councils[[#This Row],[grpC]]*currYear^2 -> 3566741907 | T12: 197134561 | U12: 6274642840 | V12: 8227588481 | W12: 27820 | X12: -68701387 | Y12: 34909.49 | AA12: =Councils[[#This Row],[tourA]]+Councils[[#This Row],[tourB]]*currYear+Councils[[#This Row],[tourC]]*currYear^2 -> 1780873.31 | AB12: 333
A13: Cumberland Council | C13: Fort Denison | D13: =INDEX(metaTides[MHW],MATCH(Councils[[#This Row],[TideGauge]],metaTides[Site],0)) -> 0.5446807692 | E13: 7167 | F13: -131825191 | G13: 126523.62 | H13: -30.2685 | I13: 0 | J13: =FLOOR(Councils[[#This Row],[popA]]+Councils[[#This Row],[popB]]*currYear+Councils[[#This Row],[popC]]*currYear^2+Councils[[#This Row],[popD]]*currYear^3,1) -> 240664 | K13: =Councils[[#This Row],[currPop]]/Councils[[#This Row],[Area]] -> 33.57946142 | L13: -73140 | M13: 36.956 | O13: =Councils[[#This Row],[incA]]+Councils[[#This Row],[incB]]*currYear+Councils[[#This Row],[incC]]*currYear^2 -> 1474.164 | P13: 20453237458823 | Q13: -20580498303 | R13: 5178975.436 | S13: =Councils[[#This Row],[grpA]]+Councils[[#This Row],[grpB]]*currYear+Councils[[#This Row],[grpC]]*currYear^2 -> 1.258487233e+10 | T13: 551821591 | U13: 36188983240 | V13: 41331628541 | W13: 50454 | AA13: =Councils[[#This Row],[tourA]]+Councils[[#This Row],[tourB]]*currYear+Councils[[#This Row],[tourC]]*currYear^2 -> 0
A14: Eurobodalla Shire Council | B14: Batemans | C14: Jervis Bay | D14: =INDEX(metaTides[MHW],MATCH(Councils[[#This Row],[TideGauge]],metaTides[Site],0)) -> 0.52775 | E14: 342173 | F14: -26714103 | G14: 26302.1 | H14: -6.4643 | I14: 0 | J14: =FLOOR(Councils[[#This Row],[popA]]+Councils[[#This Row],[popB]]*currYear+Councils[[#This Row],[popC]]*currYear^2+Councils[[#This Row],[popD]]*currYear^3,1) -> 39016 | K14: =Councils[[#This Row],[currPop]]/Councils[[#This Row],[Area]] -> 0.1140241924 | L14: -42311 | M14: 21.457 | O14: =Councils[[#This Row],[incA]]+Councils[[#This Row],[incB]]*currYear+Councils[[#This Row],[incC]]*currYear^2 -> 1010.683 | P14: 1427275114243 | Q14: -1427271429 | R14: 357142.857 | S14: =Councils[[#This Row],[grpA]]+Councils[[#This Row],[grpB]]*currYear+Councils[[#This Row],[grpC]]*currYear^2 -> 1457313748 | T14: 165075320 | U14: 4531773230 | V14: 5463604370 | W14: 24289 | X14: -69775444 | Y14: 35239.23 | AA14: =Councils[[#This Row],[tourA]]+Councils[[#This Row],[tourB]]*currYear+Councils[[#This Row],[tourC]]*currYear^2 -> 1372561.37 | AB14: 288
A15: Georges River Council | C15: Fort Denison | D15: =INDEX(metaTides[MHW],MATCH(Councils[[#This Row],[TideGauge]],metaTides[Site],0)) -> 0.5446807692 | E15: 3836 | F15: -91968490 | G15: 89343.55 | H15: -21.651 | I15: 0 | J15: =FLOOR(Councils[[#This Row],[popA]]+Councils[[#This Row],[popB]]*currYear+Councils[[#This Row],[popC]]*currYear^2+Councils[[#This Row],[popD]]*currYear^3,1) -> 158845 | K15: =Councils[[#This Row],[currPop]]/Councils[[#This Row],[Area]] -> 41.40901981 | L15: -81364.84 | M15: 41.1738 | O15: =Councils[[#This Row],[incA]]+Councils[[#This Row],[incB]]*currYear+Councils[[#This Row],[incC]]*currYear^2 -> 1765.0622 | P15: 26268695438235 | Q15: -2.618579924e+10 | R15: 6527391.726 | S15: =Councils[[#This Row],[grpA]]+Councils[[#This Row],[grpB]]*currYear+Councils[[#This Row],[grpC]]*currYear^2 -> 7571834916 | T15: 699887090 | U15: 40809455270 | V15: 43369570950 | W15: 35777 | AA15: =Councils[[#This Row],[tourA]]+Councils[[#This Row],[tourB]]*currYear+Councils[[#This Row],[tourC]]*currYear^2 -> 0
A16: The Council of the Municipality of Hunters Hill | C16: Fort Denison | D16: =INDEX(metaTides[MHW],MATCH(Councils[[#This Row],[TideGauge]],metaTides[Site],0)) -> 0.5446807692 | E16: 571 | F16: -2390657364 | G16: 3545749.91 | H16: -1752.98571 | I16: 0.2888888889 | J16: =FLOOR(Councils[[#This Row],[popA]]+Councils[[#This Row],[popB]]*currYear+Councils[[#This Row],[popC]]*currYear^2+Councils[[#This Row],[popD]]*currYear^3,1) -> 14615 | K16: =Councils[[#This Row],[currPop]]/Councils[[#This Row],[Area]] -> 25.59544658 | L16: -75689 | M16: 38.787 | O16: =Councils[[#This Row],[incA]]+Councils[[#This Row],[incB]]*currYear+Councils[[#This Row],[incC]]*currYear^2 -> 2621.953 | S16: =Councils[[#This Row],[grpA]]+Councils[[#This Row],[grpB]]*currYear+Councils[[#This Row],[grpC]]*currYear^2 -> 0 | T16: 374472010 | U16: 8855934741 | V16: 9278237751 | W16: 3725 | AA16: =Councils[[#This Row],[tourA]]+Councils[[#This Row],[tourB]]*currYear+Councils[[#This Row],[tourC]]*currYear^2 -> 0
A17: Inner West Council | C17: Fort Denison | D17: =INDEX(metaTides[MHW],MATCH(Councils[[#This Row],[TideGauge]],metaTides[Site],0)) -> 0.5446807692 | E17: 3519 | F17: -34732924 | G17: 32346.92 | H17: -7.4519 | I17: 0 | J17: =FLOOR(Councils[[#This Row],[popA]]+Councils[[#This Row],[popB]]*currYear+Councils[[#This Row],[popC]]*currYear^2+Councils[[#This Row],[popD]]*currYear^3,1) -> 198872 | K17: =Councils[[#This Row],[currPop]]/Councils[[#This Row],[Area]] -> 56.51378232 | L17: -96932 | M17: 49.0914 | O17: =Councils[[#This Row],[incA]]+Councils[[#This Row],[incB]]*currYear+Councils[[#This Row],[incC]]*currYear^2 -> 2183.5366 | P17: 18522777352939 | Q17: -1.855059119e+10 | R17: 4646654.816 | S17: =Councils[[#This Row],[grpA]]+Councils[[#This Row],[grpB]]*currYear+Councils[[#This Row],[grpC]]*currYear^2 -> 1.057620649e+10 | T17: 1076676760 | U17: 61757392472 | V17: 70992513212 | W17: 51402 | AA17: =Councils[[#This Row],[tourA]]+Councils[[#This Row],[tourB]]*currYear+Councils[[#This Row],[tourC]]*currYear^2 -> 0
A18: Kempsey Shire Council | B18: Coffs | C18: Coffs | D18: =INDEX(metaTides[MHW],MATCH(Councils[[#This Row],[TideGauge]],metaTides[Site],0)) -> 0.53875 | E18: 338082 | F18: -13708578 | G18: 13510.679 | H18: -3.3214 | I18: 0 | J18: =FLOOR(Councils[[#This Row],[popA]]+Councils[[#This Row],[popB]]*currYear+Councils[[#This Row],[popC]]*currYear^2+Councils[[#This Row],[popD]]*currYear^3,1) -> 30257 | K18: =Councils[[#This Row],[currPop]]/Councils[[#This Row],[Area]] -> 0.08949603942 | L18: -40434.78 | M18: 20.502 | O18: =Councils[[#This Row],[incA]]+Councils[[#This Row],[incB]]*currYear+Councils[[#This Row],[incC]]*currYear^2 -> 958.758 | P18: 7235912050000 | Q18: -7230142033 | R18: 1806318.681 | S18: =Councils[[#This Row],[grpA]]+Councils[[#This Row],[grpB]]*currYear+Councils[[#This Row],[grpC]]*currYear^2 -> 1462311462 | T18: 80945856 | U18: 1398220150 | V18: 2370812556 | W18: 14362 | X18: -23423901 | Y18: 11902.47 | AA18: =Councils[[#This Row],[tourA]]+Councils[[#This Row],[tourB]]*currYear+Councils[[#This Row],[tourC]]*currYear^2 -> 607185.93 | AB18: 259
A19: The Council of the Municipality of Kiama | B19: Pt Kembla | C19: Jervis Bay | D19: =INDEX(metaTides[MHW],MATCH(Councils[[#This Row],[TideGauge]],metaTides[Site],0)) -> 0.52775 | E19: 25774 | F19: -3848071 | G19: 3575.75 | H19: -0.8214 | I19: 0 | J19: =FLOOR(Councils[[#This Row],[popA]]+Councils[[#This Row],[popB]]*currYear+Councils[[#This Row],[popC]]*currYear^2+Councils[[#This Row],[popD]]*currYear^3,1) -> 23045 | K19: =Councils[[#This Row],[currPop]]/Councils[[#This Row],[Area]] -> 0.8941181035 | L19: -74334 | M19: 37.6169 | O19: =Councils[[#This Row],[incA]]+Councils[[#This Row],[incB]]*currYear+Councils[[#This Row],[incC]]*currYear^2 -> 1614.5211 | S19: =846.979 * 10^6 -> 846979000 | T19: 328096700 | U19: 4049316730 | V19: 5331958740 | W19: 9494 | X19: -61283038 | Y19: 30950.24 | AA19: =Councils[[#This Row],[tourA]]+Councils[[#This Row],[tourB]]*currYear+Councils[[#This Row],[tourC]]*currYear^2 -> 1205496.56 | AB19: 150
A20: Lake Macquarie City Council | B20: Sydney | C20: Patonga | D20: =INDEX(metaTides[MHW],MATCH(Councils[[#This Row],[TideGauge]],metaTides[Site],0)) -> 0.5578888889 | E20: 64864 | F20: 0 | G20: -1074.365 | H20: 0.5827 | I20: 0 | J20: =FLOOR(Councils[[#This Row],[popA]]+Councils[[#This Row],[popB]]*currYear+Councils[[#This Row],[popC]]*currYear^2+Councils[[#This Row],[popD]]*currYear^3,1) -> 206152 | K20: =Councils[[#This Row],[currPop]]/Councils[[#This Row],[Area]] -> 3.178219043 | L20: -52622 | M20: 26.758 | O20: =Councils[[#This Row],[incA]]+Councils[[#This Row],[incB]]*currYear+Councils[[#This Row],[incC]]*currYear^2 -> 1402.402 | Q20: -310773119 | R20: 156470.7803 | S20: =Councils[[#This Row],[grpA]]+Councils[[#This Row],[grpB]]*currYear+Councils[[#This Row],[grpC]]*currYear^2 -> 1.038045915e+10 | T20: 916247176 | U20: 25197774603 | V20: 28241555430 | W20: 80681 | X20: -53578305 | Y20: 27170.6 | AA20: =Councils[[#This Row],[tourA]]+Councils[[#This Row],[tourB]]*currYear+Councils[[#This Row],[tourC]]*currYear^2 -> 1279136.4 | AB20: 151
A21: Lane Cove Municipal Council | C21: Fort Denison | D21: =INDEX(metaTides[MHW],MATCH(Councils[[#This Row],[TideGauge]],metaTides[Site],0)) -> 0.5446807692 | E21: 1048 | F21: 0 | G21: -705.39 | H21: 0.3591 | I21: 0 | J21: =FLOOR(Councils[[#This Row],[popA]]+Councils[[#This Row],[popB]]*currYear+Councils[[#This Row],[popC]]*currYear^2+Councils[[#This Row],[popD]]*currYear^3,1) -> 39638 | K21: =Councils[[#This Row],[currPop]]/Councils[[#This Row],[Area]] -> 37.82251908 | L21: -60506 | M21: 31.2179 | O21: =Councils[[#This Row],[incA]]+Councils[[#This Row],[incB]]*currYear+Councils[[#This Row],[incC]]*currYear^2 -> 2522.9401 | S21: =Councils[[#This Row],[grpA]]+Councils[[#This Row],[grpB]]*currYear+Councils[[#This Row],[grpC]]*currYear^2 -> 0 | T21: 271473850 | U21: 13275625250 | V21: 14266043400 | W21: 7852 | AA21: =Councils[[#This Row],[tourA]]+Councils[[#This Row],[tourB]]*currYear+Councils[[#This Row],[tourC]]*currYear^2 -> 0
A22: Mid-Coast Council | B22: Crowdy | C22: Crowdy Head | D22: =INDEX(metaTides[MHW],MATCH(Councils[[#This Row],[TideGauge]],metaTides[Site],0)) -> 0.4914285714 | E22: 1005969 | F22: -42775699 | G22: 42071.39 | H22: -10.3214 | I22: 0 | J22: =FLOOR(Councils[[#This Row],[popA]]+Councils[[#This Row],[popB]]*currYear+Councils[[#This Row],[popC]]*currYear^2+Councils[[#This Row],[popD]]*currYear^3,1) -> 92684 | K22: =Councils[[#This Row],[currPop]]/Councils[[#This Row],[Area]] -> 0.09213405184 | L22: -37381 | M22: 18.9856 | O22: =Councils[[#This Row],[incA]]+Councils[[#This Row],[incB]]*currYear+Councils[[#This Row],[incC]]*currYear^2 -> 950.9264 | P22: 14422214769824 | Q22: -1.433303868e+10 | R22: 3561895.55 | S22: =Councils[[#This Row],[grpA]]+Councils[[#This Row],[grpB]]*currYear+Councils[[#This Row],[grpC]]*currYear^2 -> 3381771472 | T22: 332330215 | U22: 6954178893 | V22: 11093579938 | W22: 51079 | X22: -85756778 | Y22: 43575.91 | AA22: =Councils[[#This Row],[tourA]]+Councils[[#This Row],[tourB]]*currYear+Councils[[#This Row],[tourC]]*currYear^2 -> 2222984.29 | AB22: 256
A23: Mosman Municipal Council | B23: Sydney | C23: Fort Denison | D23: =INDEX(metaTides[MHW],MATCH(Councils[[#This Row],[TideGauge]],metaTides[Site],0)) -> 0.5446807692 | E23: 865 | F23: -265906 | G23: 146.707 | H23: 0 | I23: 0 | J23: =FLOOR(Councils[[#This Row],[popA]]+Councils[[#This Row],[popB]]*currYear+Councils[[#This Row],[popC]]*currYear^2+Councils[[#This Row],[popD]]*currYear^3,1) -> 30295 | K23: =Councils[[#This Row],[currPop]]/Councils[[#This Row],[Area]] -> 35.02312139 | L23: -19352 | M23: 10.9023 | O23: =Councils[[#This Row],[incA]]+Councils[[#This Row],[incB]]*currYear+Councils[[#This Row],[incC]]*currYear^2 -> 2659.7437 | P23: 8253878564795 | Q23: -8203511799 | R23: 2038878.143 | S23: =Councils[[#This Row],[grpA]]+Councils[[#This Row],[grpB]]*currYear+Councils[[#This Row],[grpC]]*currYear^2 -> 2191588819 | T23: 300227880 | U23: 16180529947 | V23: 17366621077 | W23: 6908 | AA23: =Councils[[#This Row],[tourA]]+Councils[[#This Row],[tourB]]*currYear+Councils[[#This Row],[tourC]]*currYear^2 -> 0
A24: Nambucca Shire Council | B24: Coffs | C24: Coffs | D24: =INDEX(metaTides[MHW],MATCH(Councils[[#This Row],[TideGauge]],metaTides[Site],0)) -> 0.53875 | E24: 149134 | F24: -9761683 | G24: 9603.93 | H24: -2.3571 | I24: 0 | J24: =FLOOR(Councils[[#This Row],[popA]]+Councils[[#This Row],[popB]]*currYear+Councils[[#This Row],[popC]]*currYear^2+Councils[[#This Row],[popD]]*currYear^3,1) -> 20261 | K24: =Councils[[#This Row],[currPop]]/Councils[[#This Row],[Area]] -> 0.135857685 | L24: -36349 | M24: 18.44576 | O24: =Councils[[#This Row],[incA]]+Councils[[#This Row],[incB]]*currYear+Councils[[#This Row],[incC]]*currYear^2 -> 892.98944 | S24: =974.581*10^6 -> 974581000 | T24: 44145524 | U24: 1082668100 | V24: 1672726074 | W24: 9356 | X24: -9945343 | Y24: 5053.56 | AA24: =Councils[[#This Row],[tourA]]+Councils[[#This Row],[tourB]]*currYear+Councils[[#This Row],[tourC]]*currYear^2 -> 257794.64 | AB24: 295
A25: Newcastle City Council | B25: Sydney | C25: Port Stephens | D25: =INDEX(metaTides[MHW],MATCH(Councils[[#This Row],[TideGauge]],metaTides[Site],0)) -> 0.47435 | E25: 18687 | F25: -59497309 | G25: 57242.57 | H25: -13.7143 | I25: 0 | J25: =FLOOR(Councils[[#This Row],[popA]]+Councils[[#This Row],[popB]]*currYear+Councils[[#This Row],[popC]]*currYear^2+Councils[[#This Row],[popD]]*currYear^3,1) -> 171002 | K25: =Councils[[#This Row],[currPop]]/Councils[[#This Row],[Area]] -> 9.150853535 | L25: -53100 | M25: 27.0226 | O25: =Councils[[#This Row],[incA]]+Councils[[#This Row],[incB]]*currYear+Councils[[#This Row],[incC]]*currYear^2 -> 1458.6294 | P25: 135943262354576 | Q25: -135716365909 | R25: 33875000 | S25: =Councils[[#This Row],[grpA]]+Councils[[#This Row],[grpB]]*currYear+Councils[[#This Row],[grpC]]*currYear^2 -> 18648459305 | T25: 800770978 | U25: 25846122900 | V25: 28698865954 | W25: 58023 | X25: -172396919 | Y25: 87425.84 | AA25: =Councils[[#This Row],[tourA]]+Councils[[#This Row],[tourB]]*currYear+Councils[[#This Row],[tourC]]*currYear^2 -> 4115851.96 | AB25: 219
A26: North Sydney Council | C26: Fort Denison | D26: =INDEX(metaTides[MHW],MATCH(Councils[[#This Row],[TideGauge]],metaTides[Site],0)) -> 0.5446807692 | E26: 1049 | F26: -7186511 | G26: 6192.43 | H26: -1.2857 | I26: 0 | J26: =FLOOR(Councils[[#This Row],[popA]]+Councils[[#This Row],[popB]]*currYear+Councils[[#This Row],[popC]]*currYear^2+Councils[[#This Row],[popD]]*currYear^3,1) -> 75027 | K26: =Councils[[#This Row],[currPop]]/Councils[[#This Row],[Area]] -> 71.52240229 | L26: -41024 | M26: 21.56 | O26: =Councils[[#This Row],[incA]]+Councils[[#This Row],[incB]]*currYear+Councils[[#This Row],[incC]]*currYear^2 -> 2505.64 | Q26: -347413290 | R26: 176480.78 | S26: =Councils[[#This Row],[grpA]]+Councils[[#This Row],[grpB]]*currYear+Councils[[#This Row],[grpC]]*currYear^2 -> 1.797193624e+10 | T26: 768960965 | U26: 22755302160 | V26: 25065514095 | W26: 10402 | AA26: =Councils[[#This Row],[tourA]]+Councils[[#This Row],[tourB]]*currYear+Councils[[#This Row],[tourC]]*currYear^2 -> 0
A27: Northern Beaches Council | B27: Sydney | C27: Fort Denison | D27: =INDEX(metaTides[MHW],MATCH(Councils[[#This Row],[TideGauge]],metaTides[Site],0)) -> 0.5446807692 | E27: 25669 | F27: -148998295 | G27: 145216.423 | H27: -35.3058 | I27: 0 | J27: =FLOOR(Councils[[#This Row],[popA]]+Councils[[#This Row],[popB]]*currYear+Councils[[#This Row],[popC]]*currYear^2+Councils[[#This Row],[popD]]*currYear^3,1) -> 274476 | K27: =Councils[[#This Row],[currPop]]/Councils[[#This Row],[Area]] -> 10.69289805 | L27: -102027 | M27: 51.6845 | O27: =Councils[[#This Row],[incA]]+Councils[[#This Row],[incB]]*currYear+Councils[[#This Row],[incC]]*currYear^2 -> 2324.0055 | P27: 27154379188236 | Q27: -2.712822919e+10 | R27: 6778765.352 | S27: =Councils[[#This Row],[grpA]]+Councils[[#This Row],[grpB]]*currYear+Councils[[#This Row],[grpC]]*currYear^2 -> 1.517917294e+10 | T27: 4108577845 | U27: 91197768012 | V27: 102235545968 | W27: 68326 | AA27: =Councils[[#This Row],[tourA]]+Councils[[#This Row],[tourB]]*currYear+Councils[[#This Row],[tourC]]*currYear^2 -> 0
A28: Port Macquarie-Hastings Council | B28: Crowdy | C28: Crowdy Head | D28: =INDEX(metaTides[MHW],MATCH(Councils[[#This Row],[TideGauge]],metaTides[Site],0)) -> 0.4914285714 | E28: 368610 | F28: 26299691 | G28: -27061.81 | H28: 6.9723 | I28: 0 | J28: =FLOOR(Councils[[#This Row],[popA]]+Councils[[#This Row],[popB]]*currYear+Councils[[#This Row],[popC]]*currYear^2+Councils[[#This Row],[popD]]*currYear^3,1) -> 83508 | K28: =Councils[[#This Row],[currPop]]/Councils[[#This Row],[Area]] -> 0.2265483845 | L28: -57766 | M28: 29.164 | O28: =Councils[[#This Row],[incA]]+Councils[[#This Row],[incB]]*currYear+Councils[[#This Row],[incC]]*currYear^2 -> 1116.116 | Q28: -13263189.64 | R28: 7424 | S28: =Councils[[#This Row],[grpA]]+Councils[[#This Row],[grpB]]*currYear+Councils[[#This Row],[grpC]]*currYear^2 -> 3484524173 | T28: 137151978 | U28: 7965853590 | V28: 9916330658 | W28: 31888 | X28: -63903194 | Y28: 32471.37 | AA28: =Councils[[#This Row],[tourA]]+Councils[[#This Row],[tourB]]*currYear+Councils[[#This Row],[tourC]]*currYear^2 -> 1656502.03 | AB28: 302
A29: Port Stephens Council | B29: Crowdy | C29: Port Stephens | D29: =INDEX(metaTides[MHW],MATCH(Councils[[#This Row],[TideGauge]],metaTides[Site],0)) -> 0.47435 | E29: 85844 | F29: -69556511 | G29: 67802.93 | H29: -16.5 | I29: 0 | J29: =FLOOR(Councils[[#This Row],[popA]]+Councils[[#This Row],[popB]]*currYear+Councils[[#This Row],[popC]]*currYear^2+Councils[[#This Row],[popD]]*currYear^3,1) -> 77648 | K29: =Councils[[#This Row],[currPop]]/Councils[[#This Row],[Area]] -> 0.9045244863 | L29: -48644 | M29: 24.7177 | O29: =Councils[[#This Row],[incA]]+Councils[[#This Row],[incB]]*currYear+Councils[[#This Row],[incC]]*currYear^2 -> 1261.0363 | Q29: -145993585.4 | R29: 73480.3711 | S29: =Councils[[#This Row],[grpA]]+Councils[[#This Row],[grpB]]*currYear+Councils[[#This Row],[grpC]]*currYear^2 -> 4771470055 | T29: 277338791 | U29: 7185003780 | V29: 8968996922 | W29: 30188 | X29: -65288104 | Y29: 33108.87 | AA29: =Councils[[#This Row],[tourA]]+Councils[[#This Row],[tourB]]*currYear+Councils[[#This Row],[tourC]]*currYear^2 -> 1558704.53 | AB29: 385
A30: Randwick City Council | B30: Sydney | C30: Fort Denison | D30: =INDEX(metaTides[MHW],MATCH(Councils[[#This Row],[TideGauge]],metaTides[Site],0)) -> 0.5446807692 | E30: 3633 | F30: -121486994 | G30: 118604.4 | H30: -28.9033 | I30: 0 | J30: =FLOOR(Councils[[#This Row],[popA]]+Councils[[#This Row],[popB]]*currYear+Councils[[#This Row],[popC]]*currYear^2+Councils[[#This Row],[popD]]*currYear^3,1) -> 155004 | K30: =Councils[[#This Row],[currPop]]/Councils[[#This Row],[Area]] -> 42.66556565 | L30: -94623 | M30: 47.87847 | O30: =Councils[[#This Row],[incA]]+Councils[[#This Row],[incB]]*currYear+Councils[[#This Row],[incC]]*currYear^2 -> 2043.63093 | P30: 1273318777940 | Q30: -1385556303 | R30: 376050.42 | S30: =Councils[[#This Row],[grpA]]+Councils[[#This Row],[grpB]]*currYear+Councils[[#This Row],[grpC]]*currYear^2 -> 8797869274 | T30: 1856024760 | U30: 43036505830 | V30: 48588083950 | W30: 26480 | AA30: =Councils[[#This Row],[tourA]]+Councils[[#This Row],[tourB]]*currYear+Councils[[#This Row],[tourC]]*currYear^2 -> 0
A31: Richmond Valley Council | B31: Byron | C31: Coffs | D31: =INDEX(metaTides[MHW],MATCH(Councils[[#This Row],[TideGauge]],metaTides[Site],0)) -> 0.53875 | E31: 304737 | F31: 0 | G31: -112.599 | H31: 0.0616 | I31: 0 | J31: =FLOOR(Councils[[#This Row],[popA]]+Councils[[#This Row],[popB]]*currYear+Councils[[#This Row],[popC]]*currYear^2+Councils[[#This Row],[popD]]*currYear^3,1) -> 23766 | K31: =Councils[[#This Row],[currPop]]/Councils[[#This Row],[Area]] -> 0.07798856063 | L31: -44250 | M31: 22.4217 | O31: =Councils[[#This Row],[incA]]+Councils[[#This Row],[incB]]*currYear+Councils[[#This Row],[incC]]*currYear^2 -> 1019.4123 | Q31: -35761067.6 | R31: 17990.343 | S31: =Councils[[#This Row],[grpA]]+Councils[[#This Row],[grpB]]*currYear+Councils[[#This Row],[grpC]]*currYear^2 -> 1133537103 | T31: 21493840 | U31: 962110610 | V31: 1823154590 | W31: 10261 | X31: -12737019 | Y31: 6472.11 | AA31: =Councils[[#This Row],[tourA]]+Councils[[#This Row],[tourB]]*currYear+Councils[[#This Row],[tourC]]*currYear^2 -> 330171.09 | AB31: 230
A32: Council of the City of Ryde | C32: Fort Denison | D32: =INDEX(metaTides[MHW],MATCH(Councils[[#This Row],[TideGauge]],metaTides[Site],0)) -> 0.5446807692 | E32: 4046 | F32: 13925998 | G32: -15910.46 | H32: 4.4955 | I32: 0 | J32: =FLOOR(Councils[[#This Row],[popA]]+Councils[[#This Row],[popB]]*currYear+Councils[[#This Row],[popC]]*currYear^2+Councils[[#This Row],[popD]]*currYear^3,1) -> 128060 | K32: =Councils[[#This Row],[currPop]]/Councils[[#This Row],[Area]] -> 31.65101335 | L32: -97419 | M32: 49.1627 | O32: =Councils[[#This Row],[incA]]+Councils[[#This Row],[incB]]*currYear+Councils[[#This Row],[incC]]*currYear^2 -> 1840.4913 | P32: 53147894617648 | Q32: -53343096881 | R32: 13386797.03 | S32: =Councils[[#This Row],[grpA]]+Councils[[#This Row],[grpB]]*currYear+Councils[[#This Row],[grpC]]*currYear^2 -> 1.759932865e+10 | T32: 575650270 | U32: 35154827070 | V32: 37123810355 | W32: 26116 | AA32: =Councils[[#This Row],[tourA]]+Councils[[#This Row],[tourB]]*currYear+Councils[[#This Row],[tourC]]*currYear^2 -> 0
A33: Shellharbour City Council | B33: Pt Kembla | C33: Jervis Bay | D33: =INDEX(metaTides[MHW],MATCH(Councils[[#This Row],[TideGauge]],metaTides[Site],0)) -> 0.52775 | E33: 14739 | F33: 2712269 | G33: -3441.86 | H33: 1.0572 | I33: 0 | J33: =FLOOR(Councils[[#This Row],[popA]]+Councils[[#This Row],[popB]]*currYear+Councils[[#This Row],[popC]]*currYear^2+Councils[[#This Row],[popD]]*currYear^3,1) -> 72682 | K33: =Councils[[#This Row],[currPop]]/Councils[[#This Row],[Area]] -> 4.931270778 | L33: -39768 | M33: 20.404 | O33: =Councils[[#This Row],[incA]]+Councils[[#This Row],[incB]]*currYear+Councils[[#This Row],[incC]]*currYear^2 -> 1427.676 | P33: 19243639636363 | Q33: -1.918446364e+10 | R33: 4781818.18 | S33: =Councils[[#This Row],[grpA]]+Councils[[#This Row],[grpB]]*currYear+Councils[[#This Row],[grpC]]*currYear^2 -> 2624692595 | T33: 288780130 | U33: 9418615470 | V33: 10415112770 | W33: 25128 | X33: -23813166 | Y33: 12026.55 | AA33: =Councils[[#This Row],[tourA]]+Councils[[#This Row],[tourB]]*currYear+Councils[[#This Row],[tourC]]*currYear^2 -> 468438.45 | AB33: 180
A34: Shoalhaven City Council | B34: Pt Kembla | C34: Jervis Bay | D34: =INDEX(metaTides[MHW],MATCH(Councils[[#This Row],[TideGauge]],metaTides[Site],0)) -> 0.52775 | E34: 453063 | F34: -33753002 | G34: 32920 | H34: -8 | I34: 0 | J34: =FLOOR(Councils[[#This Row],[popA]]+Councils[[#This Row],[popB]]*currYear+Councils[[#This Row],[popC]]*currYear^2+Councils[[#This Row],[popD]]*currYear^3,1) -> 101590 | K34: =Councils[[#This Row],[currPop]]/Councils[[#This Row],[Area]] -> 0.2242293014 | L34: -45863 | M34: 23.2411 | O34: =Councils[[#This Row],[incA]]+Councils[[#This Row],[incB]]*currYear+Councils[[#This Row],[incC]]*currYear^2 -> 1060.7809 | Q34: -54092807.88 | R34: 27873.88 | S34: =Councils[[#This Row],[grpA]]+Councils[[#This Row],[grpB]]*currYear+Councils[[#This Row],[grpC]]*currYear^2 -> 4410618241 | T34: 1015824000 | U34: 15358541740 | V34: 20116608493 | W34: 58081 | X34: -150969732 | Y34: 76245.4 | AA34: =Councils[[#This Row],[tourA]]+Councils[[#This Row],[tourB]]*currYear+Councils[[#This Row],[tourC]]*currYear^2 -> 2969730.6 | AB34: 235
A35: Sutherland Shire Council | B35: Pt Kembla | C35: Fort Denison | D35: =INDEX(metaTides[MHW],MATCH(Councils[[#This Row],[TideGauge]],metaTides[Site],0)) -> 0.5446807692 | E35: 36873 | F35: 61924935 | G35: -62813 | H35: 15.9767 | I35: 0 | J35: =FLOOR(Councils[[#This Row],[popA]]+Councils[[#This Row],[popB]]*currYear+Councils[[#This Row],[popC]]*currYear^2+Councils[[#This Row],[popD]]*currYear^3,1) -> 232284 | K35: =Councils[[#This Row],[currPop]]/Councils[[#This Row],[Area]] -> 6.29956879 | L35: -80318 | M35: 40.8263 | O35: =Councils[[#This Row],[incA]]+Councils[[#This Row],[incB]]*currYear+Councils[[#This Row],[incC]]*currYear^2 -> 2110.2997 | P35: 17353131270588 | Q35: -1.731068655e+10 | R35: 4319327.73 | S35: =Councils[[#This Row],[grpA]]+Councils[[#This Row],[grpB]]*currYear+Councils[[#This Row],[grpC]]*currYear^2 -> 9994221601 | T35: 7853459800 | U35: 49466924800 | V35: 61669007040 | W35: 61152 | AA35: =Councils[[#This Row],[tourA]]+Councils[[#This Row],[tourB]]*currYear+Councils[[#This Row],[tourC]]*currYear^2 -> 0
A36: Council of the City of Sydney | B36: Sydney | C36: Fort Denison | D36: =INDEX(metaTides[MHW],MATCH(Councils[[#This Row],[TideGauge]],metaTides[Site],0)) -> 0.5446807692 | E36: 2672 | F36: -48858632 | G36: 42700.84 | H36: -9.1053 | I36: 0 | J36: =FLOOR(Councils[[#This Row],[popA]]+Councils[[#This Row],[popB]]*currYear+Councils[[#This Row],[popC]]*currYear^2+Councils[[#This Row],[popD]]*currYear^3,1) -> 237874 | K36: =Councils[[#This Row],[currPop]]/Councils[[#This Row],[Area]] -> 89.0247006 | L36: -89323 | M36: 45.2554 | O36: =Councils[[#This Row],[incA]]+Councils[[#This Row],[incB]]*currYear+Councils[[#This Row],[incC]]*currYear^2 -> 2047.6526 | P36: 1178079901734960 | Q36: -1.175280476e+12 | R36: 293141005.8 | S36: =Councils[[#This Row],[grpA]]+Councils[[#This Row],[grpB]]*currYear+Councils[[#This Row],[grpC]]*currYear^2 -> 1.371849848e+11 | T36: 2757037520 | U36: 55569919593 | V36: 88565814218 | W36: 27962 | AA36: =Councils[[#This Row],[tourA]]+Councils[[#This Row],[tourB]]*currYear+Councils[[#This Row],[tourC]]*currYear^2 -> 0
A37: Tweed Shire Council | B37: Byron | C37: Coffs | D37: =INDEX(metaTides[MHW],MATCH(Councils[[#This Row],[TideGauge]],metaTides[Site],0)) -> 0.53875 | E37: 130918 | F37: 75357764 | G37: -75960.73 | H37: 19.1604 | I37: 0 | J37: =FLOOR(Councils[[#This Row],[popA]]+Councils[[#This Row],[popB]]*currYear+Councils[[#This Row],[popC]]*currYear^2+Councils[[#This Row],[popD]]*currYear^3,1) -> 97757 | K37: =Councils[[#This Row],[currPop]]/Councils[[#This Row],[Area]] -> 0.7467040438 | L37: -59973 | M37: 30.2648 | O37: =Councils[[#This Row],[incA]]+Councils[[#This Row],[incB]]*currYear+Councils[[#This Row],[incC]]*currYear^2 -> 1131.6312 | Q37: -9755549.639 | R37: 5656.751 | S37: =Councils[[#This Row],[grpA]]+Councils[[#This Row],[grpB]]*currYear+Councils[[#This Row],[grpC]]*currYear^2 -> 3362504442 | T37: 388530610 | U37: 10021956760 | V37: 13172791881 | W37: 30886 | X37: -73237859 | Y37: 37214.63 | AA37: =Councils[[#This Row],[tourA]]+Councils[[#This Row],[tourB]]*currYear+Councils[[#This Row],[tourC]]*currYear^2 -> 1898478.97 | AB37: 214
A38: Waverley Council | B38: Sydney | C38: Fort Denison | D38: =INDEX(metaTides[MHW],MATCH(Councils[[#This Row],[TideGauge]],metaTides[Site],0)) -> 0.5446807692 | E38: 925 | F38: -6190019698 | G38: 9150978 | H38: -4509.452381 | I38: 0.74074074 | J38: =FLOOR(Councils[[#This Row],[popA]]+Councils[[#This Row],[popB]]*currYear+Councils[[#This Row],[popC]]*currYear^2+Councils[[#This Row],[popD]]*currYear^3,1) -> 73400 | K38: =Councils[[#This Row],[currPop]]/Councils[[#This Row],[Area]] -> 79.35135135 | L38: -107132 | M38: 54.2789 | O38: =Councils[[#This Row],[incA]]+Councils[[#This Row],[incB]]*currYear+Councils[[#This Row],[incC]]*currYear^2 -> 2457.0991 | Q38: -50205481.35 | R38: 25958.5479 | S38: =Councils[[#This Row],[grpA]]+Councils[[#This Row],[grpB]]*currYear+Councils[[#This Row],[grpC]]*currYear^2 -> 4451545426 | T38: 743858400 | U38: 29282362630 | V38: 30672629430 | W38: 13189 | AA38: =Councils[[#This Row],[tourA]]+Councils[[#This Row],[tourB]]*currYear+Councils[[#This Row],[tourC]]*currYear^2 -> 0
A39: Willoughby City Council | C39: Fort Denison | D39: =INDEX(metaTides[MHW],MATCH(Councils[[#This Row],[TideGauge]],metaTides[Site],0)) -> 0.5446807692 | E39: 2251 | F39: -50181799 | G39: 48873.55 | H39: -11.8768 | I39: 0 | J39: =FLOOR(Councils[[#This Row],[popA]]+Councils[[#This Row],[popB]]*currYear+Councils[[#This Row],[popC]]*currYear^2+Councils[[#This Row],[popD]]*currYear^3,1) -> 79774 | K39: =Councils[[#This Row],[currPop]]/Councils[[#This Row],[Area]] -> 35.43936028 | L39: -81550 | M39: 41.5899 | O39: =Councils[[#This Row],[incA]]+Councils[[#This Row],[incB]]*currYear+Councils[[#This Row],[incC]]*currYear^2 -> 2420.0081 | P39: 64621123509097 | Q39: -6.427461515e+10 | R39: 15984848.48 | S39: =Councils[[#This Row],[grpA]]+Councils[[#This Row],[grpB]]*currYear+Councils[[#This Row],[grpC]]*currYear^2 -> 1.068847334e+10 | T39: 716068700 | U39: 28925351080 | V39: 33105328400 | W39: 17367 | AA39: =Councils[[#This Row],[tourA]]+Councils[[#This Row],[tourB]]*currYear+Councils[[#This Row],[tourC]]*currYear^2 -> 0
A40: Wollongong City Council | B40: Pt Kembla | C40: Fort Denison | D40: =INDEX(metaTides[MHW],MATCH(Councils[[#This Row],[TideGauge]],metaTides[Site],0)) -> 0.5446807692 | E40: 68384 | F40: 13065071 | G40: -14823.85 | H40: 4.1906 | I40: 0 | J40: =FLOOR(Councils[[#This Row],[popA]]+Councils[[#This Row],[popB]]*currYear+Councils[[#This Row],[popC]]*currYear^2+Councils[[#This Row],[popD]]*currYear^3,1) -> 218116 | K40: =Councils[[#This Row],[currPop]]/Councils[[#This Row],[Area]] -> 3.189576509 | L40: -65125 | M40: 32.9634 | O40: =Councils[[#This Row],[incA]]+Councils[[#This Row],[incB]]*currYear+Councils[[#This Row],[incC]]*currYear^2 -> 1428.1046 | Q40: -351850489 | R40: 177617.7508 | S40: =Councils[[#This Row],[grpA]]+Councils[[#This Row],[grpB]]*currYear+Councils[[#This Row],[grpC]]*currYear^2 -> 1.364793506e+10 | T40: 1465043786 | U40: 27312968310 | V40: 31939849106 | W40: 68862 | X40: -207375374 | Y40: 104732.38 | AA40: =Councils[[#This Row],[tourA]]+Councils[[#This Row],[tourB]]*currYear+Councils[[#This Row],[tourC]]*currYear^2 -> 4079301.22 | AB40: 167
A41: Woollahra Municipal Council | C41: Fort Denison | D41: =INDEX(metaTides[MHW],MATCH(Councils[[#This Row],[TideGauge]],metaTides[Site],0)) -> 0.5446807692 | E41: 1225 | F41: -4027158619 | G41: 5966996.7 | H41: -2947.066667 | I41: 0.48518519 | J41: =FLOOR(Councils[[#This Row],[popA]]+Councils[[#This Row],[popB]]*currYear+Councils[[#This Row],[popC]]*currYear^2+Councils[[#This Row],[popD]]*currYear^3,1) -> 58076 | K41: =Councils[[#This Row],[currPop]]/Councils[[#This Row],[Area]] -> 47.40897959 | L41: -71762 | M41: 36.9488 | O41: =Councils[[#This Row],[incA]]+Councils[[#This Row],[incB]]*currYear+Councils[[#This Row],[incC]]*currYear^2 -> 2837.6272 | Q41: -92286327.65 | R41: 46885.73 | S41: =Councils[[#This Row],[grpA]]+Councils[[#This Row],[grpB]]*currYear+Councils[[#This Row],[grpC]]*currYear^2 -> 4797065703 | T41: 790290630 | U41: 37458860542 | V41: 39475952562 | W41: 13417 | AA41: =Councils[[#This Row],[tourA]]+Councils[[#This Row],[tourB]]*currYear+Councils[[#This Row],[tourC]]*currYear^2 -> 0
A98: Current Assets | B98: Council Row
A99: 0 | B99: =IF(thisCouncil = A3,1,MATCH(thisCouncil,Councils[Council Name])) -> 1
A100: Asset Types | B100: types | C100: Age | D100: Dollar Adjustment | E100: YN | F100: GF | G100: WaveClimate
A101: Beach | B101: Wall | C101: 97 | D101: 424.1697417 | E101: Yes | F101: Greenfield | G101: Low Energy
A102: Boat Ramp | B102: Bund | C102: 96 | D102: 358.0996885 | E102: No | F102: Brownfield | G102: Medium Energy
A103: Jetty | B103: Revetment | C103: 95 | D103: 342.1130952 | G103: High Energy
A104: Park | C104: 94 | D104: 341.0979228
A105: Pathway | C105: 93 | D105: 328.4285714
A106: Pool | C106: 92 | D106: 322.8932584
A107: Promenade | C107: 91 | D107: 308.1769437
A108: Wharf | C108: 90 | D108: 307.3529412
C109: 89 | D109: 301.7060367
A110: Sheltered | C110: 88 | D110: 304.1005291
A111: Exposed | C111: 87 | D111: 303.298153
C112: 86 | D112: 330.316092
C113: 85 | D113: 366.0828025
C114: 84 | D114: 380.6291391
C115: 83 | D115: 384.4481605
C116: 82 | D116: 378.125
C117: 81 | D117: 368.4294872
C118: 80 | D118: 358.0996885
C119: 79 | D119: 337.0967742
C120: 78 | D120: 325.6373938
C121: 77 | D121: 297.7979275
C122: 76 | D122: 280.3658537
C123: 75 | D123: 262.4429224
C124: 74 | D124: 237.0103093
C125: 73 | D125: 219.789675
C126: 72 | D126: 224.5117188
C127: 71 | D127: 224.5117188
C128: 70 | D128: 209.7627737
C129: 69 | D129: 183.3333333
C130: 68 | D130: 161.9014085
C131: 67 | D131: 146.619898
C132: 66 | D132: 121.6402116
C133: 65 | D133: 98.41609589
C134: 64 | D134: 90.15686275
C135: 63 | D135: 86.23405851
C136: 62 | D136: 81.06488011
C137: 61 | D137: 76.42952128
C138: 60 | D138: 73.40357599
C139: 59 | D139: 71.08843537
C140: 58 | D140: 69.08052885
C141: 57 | D141: 64.28970917
C142: 56 | D142: 61.76786674
C143: 55 | D143: 60.56375132
C144: 54 | D144: 59.00924025
C145: 53 | D145: 56.54205607
C146: 52 | D146: 52.58462946
C147: 51 | D147: 25.37527594
C148: 50 | D148: 23.85349658
C149: 49 | D149: 22.55690738
C150: 48 | D150: 20.31636621
C151: 47 | D151: 18.8442623
C152: 46 | D152: 17.03215291
C153: 45 | D153: 15.39646397
C154: 44 | D154: 14.00633605
C155: 43 | D155: 11.89835421
C156: 42 | D156: 9.374490295
C157: 41 | D157: 8.191989738
C158: 40 | D158: 7.236386528
C159: 39 | D159: 6.596465052
C160: 38 | D160: 6.107539451
C161: 37 | D161: 5.570362473
C162: 36 | D162: 4.924599434
C163: 35 | D163: 4.378213674
C164: 34 | D164: 3.936913487
C165: 33 | D165: 3.627899637
C166: 32 | D166: 3.39606476
C167: 31 | D167: 3.206415621
C168: 30 | D168: 3.019437878
C169: 29 | D169: 2.847058824
C170: 28 | D170: 2.666743997
C171: 27 | D171: 2.500543833
C172: 26 | D172: 2.362067194
C173: 25 | D173: 2.295556665
C174: 24 | D174: 2.24959881
C175: 23 | D175: 2.18640038
C176: 22 | D176: 2.110529698
C177: 21 | D177: 2.058375862
C178: 20 | D178: 2.000591737
C179: 19 | D179: 1.941165544
C180: 18 | D180: 1.896614308
C181: 17 | D181: 1.856607552
C182: 16 | D182: 1.763577785
C183: 15 | D183: 1.695327709
C184: 14 | D184: 1.625424208
C185: 13 | D185: 1.553252439
C186: 12 | D186: 1.491017576
C187: 11 | D187: 1.420784614
C188: 10 | D188: 1.359068338
C189: 9 | D189: 1.307736064
C190: 8 | D190: 1.259353397
C191: 7 | D191: 1.19555269
C192: 6 | D192: 1.149063356
C193: 5 | D193: 1.106810326
C194: 4 | D194: 1.057283714
C195: 3 | D195: 1.029648871
C196: 2 | D196: 1.016581915
C197: 1 | D197: 1
A200: Waves EVA
A201: Hs | B201: 3 | C201: 3.1 | D201: 3.2 | E201: 3.3 | F201: 3.4 | G201: 3.5 | H201: 3.6 | I201: 3.7 | J201: 3.8 | K201: 3.9 | L201: 4 | M201: 4.1 | N201: 4.2 | O201: 4.3 | P201: 4.4 | Q201: 4.5 | R201: 4.6 | S201: 4.7 | T201: 4.8 | U201: 4.9 | V201: 5 | W201: 5.1 | X201: 5.2 | Y201: 5.3 | Z201: 5.4 | AA201: 5.5 | AB201: 5.6 | AC201: 5.7 | AD201: 5.8 | AE201: 5.9 | AF201: 6 | AG201: 6.1 | AH201: 6.2 | AI201: 6.3 | AJ201: 6.4 | AK201: 6.5 | AL201: 6.6 | AM201: 6.7 | AN201: 6.8 | AO201: 6.9 | AP201: 7 | AQ201: 7.1 | AR201: 7.2 | AS201: 7.3 | AT201: 7.4 | AU201: 7.5 | AV201: 7.6 | AW201: 7.7 | AX201: 7.8 | AY201: 7.9 | AZ201: 8 | BA201: 8.1 | BB201: 8.2 | BC201: 8.3 | BD201: 8.4 | BE201: 8.5 | BF201: 8.6 | BG201: 8.7 | BH201: 8.8 | BI201: 8.9 | BJ201: 9 | BK201: 9.1 | BL201: 9.2 | BM201: 9.3 | BN201: 9.4 | BO201: 9.5 | BP201: 9.6 | BQ201: 9.7 | BR201: 9.8 | BS201: 9.9 | BT201: 10
A202: Sydney | B202: 0.06669688484 | C202: 0.07403505639 | D202: 0.08258085498 | E202: 0.09246416731 | F202: 0.1038567231 | G202: 0.1169679336 | H202: 0.132046333 | I202: 0.1493836108 | J202: 0.1693203643 | K202: 0.1922533369 | L202: 0.2186441565 | M202: 0.249029711 | N202: 0.2840343767 | O202: 0.3243843805 | P202: 0.3709246422 | Q202: 0.4246385122 | R202: 0.4866708956 | S202: 0.5583553463 | T202: 0.6412458175 | U202: 0.7371538786 | V202: 0.8481923516 | W202: 0.9768264921 | X202: 1.125934038 | Y202: 1.298875687 | Z202: 1.499577842 | AA202: 1.732629797 | AB202: 2.003397915 | AC202: 2.318159821 | AD202: 2.684262171 | AE202: 3.110306205 | AF202: 3.606366033 | AG202: 4.184245542 | AH202: 4.857780829 | AI202: 5.643196356 | AJ202: 6.559524507 | AK202: 7.629099976 | AL202: 8.878142537 | AM202: 10.33744419 | AN202: 12.04317966 | AO202: 14.0378626 | AP202: 16.37147416 | AQ202: 19.10279532 | AR202: 22.3009802 | AS202: 26.04741454 | AT202: 30.43791175 | AU202: 35.58530835 | AV202: 41.62253264 | AW202: 48.70623365 | AX202: 57.02107397 | AY202: 66.78480931 | AZ202: 78.25430077 | BA202: 91.73263265 | BB202: 107.5775419 | BC202: 126.211403 | BD202: 148.1330592 | BE202: 173.9318441 | BF202: 204.304205 | BG202: 240.073414 | BH202: 282.2129485 | BI202: 331.8742291 | BJ202: 390.4195374 | BK202: 459.4610892 | BL202: 540.9074266 | BM202: 637.0185129 | BN202: 750.4711798 | BO202: 884.4368899 | BP202: 1042.674155 | BQ202: 1229.6384 | BR202: 1450.612589 | BS202: 1711.862589 | BT202: 2020.821984
A203: Byron | B203: 0.07514748227 | C203: 0.0836441874 | D203: 0.09409518331 | E203: 0.1068648512 | F203: 0.1224276411 | G203: 0.1413897415 | H203: 0.1645202282 | I203: 0.1927928904 | J203: 0.227441201 | K203: 0.2700300608 | L203: 0.3225492988 | M203: 0.3875356147 | N203: 0.4682318953 | O203: 0.5687958209 | P203: 0.6945736791 | Q203: 0.8524606836 | R203: 1.051376362 | S203: 1.302893401 | T203: 1.622071681 | U203: 2.028567338 | V203: 2.548111424 | W203: 3.21448647 | X203: 4.072175457 | Y203: 5.179921141 | Z203: 6.615520849 | AA203: 8.482302145 | AB203: 10.91789083 | AC203: 14.1061128 | AD203: 18.29319055 | AE203: 23.80983902 | AF203: 31.10148478 | AG203: 40.76969699 | AH203: 53.6291299 | AI203: 70.78597556 | AJ203: 93.74631526 | AK203: 124.5661262 | AL203: 166.0594568 | AM203: 222.0880173 | AN203: 297.9649839 | AO203: 401.0193931 | AP203: 541.3868431 | AQ203: 733.1198344 | AR203: 995.7505833 | AS203: 1356.495772 | AT203: 1853.374058 | AU203: 2539.624274 | AV203: 3489.981224 | AW203: 4809.610166 | AX203: 6646.854877 | AY203: 9211.467646 | AZ203: 12800.73636 | BA203: 17837.01222 | BB203: 24921.73102 | BC203: 34913.3466 | BD203: 49040.00474 | BE203: 69062.7953 | BF203: 97512.79396 | BG203: 138035.9803 | BH203: 195896.1913 | BI203: 278710.0664 | BJ203: 397523.2455 | BK203: 568389.5631 | BL203: 814693.1399 | BM203: 1170569.901 | BN203: 1685959.419 | BO203: 2434079.162 | BP203: 3522505.177 | BQ203: 5109632.643 | BR203: 7429177.277 | BS203: 10826719.04 | BT203: 15814315.04
A204: Coffs | B204: 0.09404708891 | C204: 0.1059223143 | D204: 0.1200262575 | E204: 0.1366884424 | F204: 0.1563267797 | G204: 0.1794527247 | H204: 0.2066839416 | I204: 0.2387622551 | J204: 0.2765765745 | K204: 0.3211912124 | L204: 0.3738804346 | M204: 0.4361703994 | N204: 0.509889963 | O204: 0.5972321896 | P204: 0.700828818 | Q204: 0.8238404442 | R204: 0.970065789 | S204: 1.144074164 | T204: 1.351366156 | U204: 1.598568669 | V204: 1.893671807 | W204: 2.246316774 | X204: 2.668145987 | Y204: 3.173229121 | Z204: 3.778581866 | AA204: 4.504797991 | AB204: 5.376819898 | AC204: 6.424878615 | AD204: 7.685641151 | AE204: 9.203611806 | AF204: 11.03284465 | AG204: 13.23903745 | AH204: 15.90209362 | AI204: 19.11925835 | AJ204: 23.00895999 | AK204: 27.71551787 | AL204: 33.41491504 | AM204: 40.32188085 | AN204: 48.6985852 | AO204: 58.86531694 | AP204: 71.21360621 | AQ204: 86.22235853 | AR204: 104.4777022 | AS204: 126.6974163 | AT204: 153.7610116 | AU204: 186.7467915 | AV204: 226.9775357 | AW204: 276.0768403 | AX204: 336.038634 | AY204: 409.3129959 | AZ204: 498.912145 | BA204: 608.5414093 | BB204: 742.7611361 | BC204: 907.1869482 | BD204: 1108.737544 | BE204: 1355.941467 | BF204: 1659.317064 | BG204: 2031.843281 | BH204: 2489.543312 | BI204: 3052.208447 | BJ204: 3744.296206 | BK204: 4596.045212 | BL204: 5644.85971 | BM204: 6937.029696 | BN204: 8529.868909 | BO204: 10494.37336 | BP204: 12918.52847 | BQ204: 15911.4249 | BR204: 19608.38275 | BS204: 24177.33404 | BT204: 29826.77554
A205: Crowdy | B205: 0.08712365745 | C205: 0.0970103962 | D205: 0.108813912 | E205: 0.1228001738 | F205: 0.1393151814 | G205: 0.1587880138 | H205: 0.1817413575 | I205: 0.2088071992 | J205: 0.2407472971 | K205: 0.2784788109 | L205: 0.3231058989 | M205: 0.3759584324 | N205: 0.4386393162 | O205: 0.5130822902 | P205: 0.6016225365 | Q205: 0.7070829756 | R205: 0.8328798085 | S205: 0.9831517009 | T205: 1.162918042 | U205: 1.378272988 | V205: 1.636623602 | W205: 1.946982367 | X205: 2.320326802 | Y205: 2.770041985 | Z205: 3.312465565 | AA205: 3.967559587 | AB205: 4.759739367 | AC205: 5.718897006 | AD205: 6.881666321 | AE205: 8.292987475 | AF205: 10.00804392 | AG205: 12.09466226 | AH205: 14.6362881 | AI205: 17.73567912 | AJ205: 21.51949201 | AK205: 26.14398404 | AL205: 31.80210597 | AM205: 38.73233249 | AN205: 47.22966465 | AO205: 57.659349 | AP205: 70.47399725 | AQ205: 86.23496588 | AR205: 105.6390754 | AS205: 129.5520281 | AT205: 159.0502344 | AU205: 195.4732023 | AV205: 240.4892045 | AW205: 296.1776486 | AX205: 365.1324732 | AY205: 450.5920279 | AZ205: 556.6023361 | BA205: 688.2224657 | BB205: 851.7830445 | BC205: 1055.211899 | BD205: 1308.444522 | BE205: 1623.941821 | BF205: 2017.343622 | BG205: 2508.294071 | BH205: 3121.484851 | BI205: 3887.974539 | BJ205: 4846.858304 | BK205: 6047.382331 | BL205: 7551.623137 | BM205: 9437.884877 | BN205: 11805.00975 | BO205: 14777.85034 | BP205: 18514.22152 | BQ205: 23213.73726 | BR205: 29129.05046 | BS205: 36580.15797 | BT205: 45972.61751
A206: Pt Kembla | B206: 0.07695880515 | C206: 0.08555590393 | D206: 0.09579619819 | E206: 0.1079056238 | F206: 0.1221767843 | G206: 0.1389716565 | H206: 0.1587303143 | I206: 0.1819838582 | J206: 0.2093712477 | K206: 0.2416603397 | L206: 0.2797737818 | M206: 0.324820683 | N206: 0.3781352552 | O206: 0.4413239248 | P206: 0.5163227747 | Q206: 0.6054676159 | R206: 0.7115795218 | S206: 0.8380693218 | T206: 0.989065364 | U206: 1.169569864 | V206: 1.385650407 | W206: 1.644674721 | X206: 1.955598736 | Y206: 2.329320371 | Z206: 2.779114388 | AA206: 3.321167394 | AB206: 3.9752366 | AC206: 4.765461672 | AD206: 5.721366113 | AE206: 6.879093454 | AF206: 8.282934591 | AG206: 9.987216426 | AH206: 12.05863917 | AI206: 14.57917127 | AJ206: 17.64963794 | AK206: 21.39417286 | AL206: 25.96574535 | AM206: 31.55302798 | AN206: 38.38893639 | AO206: 46.76125689 | AP206: 57.02588214 | AQ206: 69.62330766 | AR206: 85.09920791 | AS206: 104.1301201 | AT206: 127.5555273 | AU206: 156.4179648 | AV206: 192.0131928 | AW206: 235.9530069 | AX206: 290.2439271 | AY206: 357.3858476 | AZ206: 440.4958008 | BA206: 543.4633352 | BB206: 671.1457192 | BC206: 829.6133481 | BD206: 1026.458476 | BE206: 1271.183875 | BF206: 1575.692451 | BG206: 1954.904439 | BH206: 2427.535949 | BI206: 3017.081684 | BJ206: 3753.056191 | BK206: 4672.562665 | BL206: 5822.27703 | BM206: 7260.958829 | BN206: 9062.630804 | BO206: 11320.60781 | BP206: 14152.60508 | BQ206: 17707.21913 | BR206: 22172.15507 | BS206: 27784.67744 | BT206: 34844.89353
A207: Batemans | B207: 0.127355077 | C207: 0.1417029959 | D207: 0.1592579556 | E207: 0.1805855262 | F207: 0.2064209573 | G207: 0.2376978401 | H207: 0.2755909403 | I207: 0.3215739051 | J207: 0.3774945959 | K207: 0.445672383 | L207: 0.529023391 | M207: 0.6312216773 | N207: 0.7569068705 | O207: 0.9119521 | P207: 1.103810395 | Q207: 1.341963466 | R207: 1.638504384 | S207: 2.008895752 | T207: 2.472958387 | U207: 3.056163431 | V207: 3.79132469 | W207: 4.720820017 | X207: 5.899513425 | Y207: 7.398607267 | Z207: 9.310731379 | AA207: 11.75668071 | AB207: 14.89435428 | AC207: 18.93063965 | AD207: 24.13724643 | AE207: 30.87184495 | AF207: 39.60634568 | AG207: 50.96480928 | AH207: 65.77437032 | AI207: 85.13378037 | AJ207: 110.5058522 | AK207: 143.8423884 | AL207: 187.7533433 | AM207: 245.7363333 | AN207: 322.4886319 | AO207: 424.3321212 | AP207: 559.7932123 | AQ207: 740.3957694 | AR207: 981.7473404 | AS207: 1305.030011 | AT207: 1739.050464 | AU207: 2323.06426 | AV207: 3110.673995 | AW207: 4175.219563 | AX207: 5617.245385 | AY207: 7574.863758 | AZ207: 10238.16367 | BA207: 13869.28037 | BB207: 18830.39979 | BC207: 25622.90442 | BD207: 34942.19035 | BE207: 47754.56376 | BF207: 65405.29913 | BG207: 89770.75093 | BH207: 123472.8487 | BI207: 170182.0796 | BJ207: 235046.1936 | BK207: 325297.8299 | BL207: 451117.1915 | BM207: 626858.8788 | BN207: 872799.5144 | BO207: 1217631.364 | BP207: 1702026.269 | BQ207: 2383737.627 | BR207: 3344916.132 | BS207: 4702616.796 | BT207: 6623913.673
A208: Eden | B208: 0.08458488004 | C208: 0.09428481128 | D208: 0.1056306404 | E208: 0.1188365646 | F208: 0.134171415 | G208: 0.151959927 | H208: 0.1725885489 | I208: 0.1965141625 | J208: 0.2242753047 | K208: 0.2565059323 | L208: 0.2939519976 | M208: 0.3374912515 | N208: 0.3881568207 | O208: 0.4471652358 | P208: 0.5159497318 | Q208: 0.5961998124 | R208: 0.6899082632 | S208: 0.7994270378 | T208: 0.927533717 | U208: 1.077510579 | V208: 1.253238719 | W208: 1.459310132 | X208: 1.701161266 | Y208: 1.985232223 | Z208: 2.319156633 | AA208: 2.71198823 | AB208: 3.174471342 | AC208: 3.719363971 | AD208: 4.36182388 | AE208: 5.119870175 | AF208: 6.014935427 | AG208: 7.072526387 | AH208: 8.323015018 | AI208: 9.802585998 | AJ208: 11.55437213 | AK208: 13.62981557 | AL208: 16.09030049 | AM208: 19.00911216 | AN208: 22.47378873 | AO208: 26.58894574 | AP208: 31.47966964 | AQ208: 37.29559691 | AR208: 44.21581918 | AS208: 52.45478411 | AT208: 62.26939722 | AU208: 73.96757237 | AV208: 87.91853078 | AW208: 104.565211 | AX208: 124.4392285 | AY208: 148.1789158 | AZ208: 176.5510862 | BA208: 210.4772995 | BB208: 251.0655735 | BC208: 299.6486848 | BD208: 357.8304459 | BE208: 427.5416401 | BF208: 511.1076555 | BG208: 611.3302947 | BH208: 731.5867683 | BI208: 875.9495239 | BJ208: 1049.331349 | BK208: 1257.661144 | BL208: 1508.096914 | BM208: 1809.283963 | BN208: 2171.667991 | BO208: 2607.874885 | BP208: 3133.171595 | BQ208: 3766.025571 | BR208: 4528.784087 | BS208: 5448.49942 | BT208: 6557.931514
A210: Site | B210: MHW
A211: Coffs | B211: 0.53875
A212: Crowdy Head | B212: 0.4914285714
A213: Port Stephens | B213: 0.47435
A214: Patonga | B214: 0.5578888889
A215: Fort Denison | B215: 0.5446807692
A216: Jervis Bay | B216: 0.52775
A217: Eden | B217: 0.38025
A220: ARI | B220: Level
A221: 1 | B221: 1.16
A222: 2 | B222: 1.23
A223: 3 | B223: 1.25
A224: 4 | B224: 1.27
A225: 5 | B225: 1.285
A226: 6 | B226: 1.295
A227: 7 | B227: 1.305
A228: 8 | B228: 1.315
A229: 9 | B229: 1.32
A230: 10 | B230: 1.33
A231: 20 | B231: 1.35
A232: 30 | B232: 1.36
A233: 40 | B233: 1.38
A234: 50 | B234: 1.39
A235: 60 | B235: 1.41
A236: 70 | B236: 1.42
A237: 80 | B237: 1.425
A238: 90 | B238: 1.435
A239: 100 | B239: 1.445
A240: Waves EVA
A241: Hs | B241: Sydney | C241: Byron | D241: Coffs | E241: Crowdy | F241: Pt Kembla | G241: Batemans | H241: Eden
A242: 3 | B242: 0.06669688484 | C242: 0.07514748227 | D242: 0.09404708891 | E242: 0.08712365745 | F242: 0.07695880515 | G242: 0.127355077 | H242: 0.08458488004
A243: 3.1 | B243: 0.07403505639 | C243: 0.0836441874 | D243: 0.1059223143 | E243: 0.0970103962 | F243: 0.08555590393 | G243: 0.1417029959 | H243: 0.09428481128
A244: 3.2 | B244: 0.08258085498 | C244: 0.09409518331 | D244: 0.1200262575 | E244: 0.108813912 | F244: 0.09579619819 | G244: 0.1592579556 | H244: 0.1056306404
A245: 3.3 | B245: 0.09246416731 | C245: 0.1068648512 | D245: 0.1366884424 | E245: 0.1228001738 | F245: 0.1079056238 | G245: 0.1805855262 | H245: 0.1188365646
A246: 3.4 | B246: 0.1038567231 | C246: 0.1224276411 | D246: 0.1563267797 | E246: 0.1393151814 | F246: 0.1221767843 | G246: 0.2064209573 | H246: 0.134171415
A247: 3.5 | B247: 0.1169679336 | C247: 0.1413897415 | D247: 0.1794527247 | E247: 0.1587880138 | F247: 0.1389716565 | G247: 0.2376978401 | H247: 0.151959927
A248: 3.6 | B248: 0.132046333 | C248: 0.1645202282 | D248: 0.2066839416 | E248: 0.1817413575 | F248: 0.1587303143 | G248: 0.2755909403 | H248: 0.1725885489
A249: 3.7 | B249: 0.1493836108 | C249: 0.1927928904 | D249: 0.2387622551 | E249: 0.2088071992 | F249: 0.1819838582 | G249: 0.3215739051 | H249: 0.1965141625
A250: 3.8 | B250: 0.1693203643 | C250: 0.227441201 | D250: 0.2765765745 | E250: 0.2407472971 | F250: 0.2093712477 | G250: 0.3774945959 | H250: 0.2242753047
A251: 3.9 | B251: 0.1922533369 | C251: 0.2700300608 | D251: 0.3211912124 | E251: 0.2784788109 | F251: 0.2416603397 | G251: 0.445672383 | H251: 0.2565059323
A252: 4 | B252: 0.2186441565 | C252: 0.3225492988 | D252: 0.3738804346 | E252: 0.3231058989 | F252: 0.2797737818 | G252: 0.529023391 | H252: 0.2939519976
A253: 4.1 | B253: 0.249029711 | C253: 0.3875356147 | D253: 0.4361703994 | E253: 0.3759584324 | F253: 0.324820683 | G253: 0.6312216773 | H253: 0.3374912515
A254: 4.2 | B254: 0.2840343767 | C254: 0.4682318953 | D254: 0.509889963 | E254: 0.4386393162 | F254: 0.3781352552 | G254: 0.7569068705 | H254: 0.3881568207
A255: 4.3 | B255: 0.3243843805 | C255: 0.5687958209 | D255: 0.5972321896 | E255: 0.5130822902 | F255: 0.4413239248 | G255: 0.9119521 | H255: 0.4471652358
A256: 4.4 | B256: 0.3709246422 | C256: 0.6945736791 | D256: 0.700828818 | E256: 0.6016225365 | F256: 0.5163227747 | G256: 1.103810395 | H256: 0.5159497318
A257: 4.5 | B257: 0.4246385122 | C257: 0.8524606836 | D257: 0.8238404442 | E257: 0.7070829756 | F257: 0.6054676159 | G257: 1.341963466 | H257: 0.5961998124
A258: 4.6 | B258: 0.4866708956 | C258: 1.051376362 | D258: 0.970065789 | E258: 0.8328798085 | F258: 0.7115795218 | G258: 1.638504384 | H258: 0.6899082632
A259: 4.7 | B259: 0.5583553463 | C259: 1.302893401 | D259: 1.144074164 | E259: 0.9831517009 | F259: 0.8380693218 | G259: 2.008895752 | H259: 0.7994270378
A260: 4.8 | B260: 0.6412458175 | C260: 1.622071681 | D260: 1.351366156 | E260: 1.162918042 | F260: 0.989065364 | G260: 2.472958387 | H260: 0.927533717
A261: 4.9 | B261: 0.7371538786 | C261: 2.028567338 | D261: 1.598568669 | E261: 1.378272988 | F261: 1.169569864 | G261: 3.056163431 | H261: 1.077510579
... 51 more rows
